Workbook

Sheet Mapping
B2: STEP ONE | C2: Enter the Title of Your Map | E2: Map of Snacks | CC2: Convert to distance
E3: (This is an example only. Simply type over this map title.) | BG3: ATTRIBUTES ==> | CC3: =MIN(input) -> 1 | CD3: =MAX(input) -> 9 | CE3: =+CD3+CC3 -> 10
BF4: BRAND | BG4: 1 | BH4: 2 | BI4: 3 | BJ4: 4 | BK4: 5 | BL4: 6 | BM4: 7 | BN4: 8 | BO4: 9 | BP4: 10 | BQ4: 11 | BR4: 12 | BS4: 13 | BT4: 14 | BU4: 15 | BV4: 16 | BW4: 17 | BX4: 18 | BY4: 19 | BZ4: 20 | CC4: 1 | CD4: 2 | CE4: 3 | CF4: 4 | CG4: 5 | CH4: 6 | CI4: 7 | CJ4: 8 | CK4: 9 | CL4: 10 | CM4: 11 | CN4: 12 | CO4: 13 | CP4: 14 | CQ4: 15 | CR4: 16 | CS4: 17 | CT4: 18 | CU4: 19 | CV4: 20 | DB4: 1 | DC4: =+DB4+1 -> 2 | DD4: =+DC4+1 -> 3 | DE4: 4 | DF4: 5 | DG4: 6 | DH4: 7 | DI4: 8 | DJ4: 9 | DK4: 10 | DL4: 11 | DM4: 12 | DN4: 13 | DO4: 14 | DP4: 15 | DQ4: 16 | DR4: 17 | DS4: 18 | DT4: 19 | DU4: 20 | DV4: 21 | DW4: 22 | DX4: 23 | DY4: 24 | DZ4: 25 | EA4: 26 | EB4: 27 | EC4: 28 | ED4: 29 | EE4: 30 | EF4: 31 | EG4: 32 | EH4: 33 | EI4: 34 | EJ4: 35 | EK4: 36 | EL4: 37 | EM4: 38 | EN4: 39 | EO4: 40 | EP4: 41 | EQ4: 42 | ER4: 43 | ES4: 44 | ET4: 45 | EU4: 46 | EV4: 47 | EW4: 48 | EX4: 49 | EY4: 50 | EZ4: 51 | FA4: 52 | FB4: 53 | FC4: 54 | FD4: 55 | FE4: 56 | FF4: 57 | FG4: 58 | FH4: 59 | FI4: 60 | FJ4: 61 | FK4: 62 | FL4: 63 | FM4: 64 | FN4: 65 | FO4: 66 | FP4: =+FO4+1 -> 67 | FQ4: 68 | FR4: 69 | FS4: 70 | FT4: 71 | FU4: 72 | FV4: 73 | FW4: 74 | FX4: 75 | FY4: 76 | FZ4: 77 | GA4: 78 | GB4: 79 | GC4: 80 | GD4: 81 | GE4: 82 | GF4: 83 | GG4: 84 | GH4: 85 | GI4: 86 | GJ4: 87 | GK4: 88 | GL4: 89 | GM4: 90 | GN4: 91 | GO4: 92 | GP4: 93 | GQ4: 94 | GR4: 95 | GS4: 96 | GT4: 97 | GU4: 98 | GV4: 99 | GW4: 100 | GX4: 101 | GY4: 102 | GZ4: 103 | HA4: 104 | HB4: 105 | HC4: 106 | HD4: 107 | HE4: 108 | HF4: 109 | HG4: 110 | HH4: 111 | HI4: 112 | HJ4: 113 | HK4: 114 | HL4: 115 | HM4: 116 | HN4: 117 | HO4: 118 | HP4: 119 | HQ4: 120 | HR4: 121 | HS4: 122 | HT4: 123 | HU4: 124 | HV4: 125 | HW4: 126 | HX4: 127 | HY4: 128 | HZ4: 129 | IA4: 130 | IB4: =+IA4+1 -> 131 | IC4: 132 | ID4: 133 | IE4: 134 | IF4: 135 | IG4: 136 | IH4: 137 | II4: 138 | IJ4: 139 | IK4: 140 | IL4: 141 | IM4: 142 | IN4: 143 | IO4: 144 | IP4: 145 | IQ4: 146 | IR4: 147 | IS4: 148 | IT4: 149 | IU4: 150 | IV4: 151 | IW4: 152 | IX4: 153 | IY4: 154 | IZ4: 155 | JA4: 156 | JB4: 157 | JC4: 158 | JD4: 159 | JE4: 160 | JF4: 161 | JG4: 162 | JH4: 163 | JI4: 164 | JJ4: 165 | JK4: 166 | JL4: 167 | JM4: 168 | JN4: 169 | JO4: 170 | JP4: 171 | JQ4: 172 | JR4: 173 | JS4: 174 | JT4: 175 | JU4: 176 | JV4: 177 | JW4: 178 | JX4: 179 | JY4: 180 | JZ4: 181 | KA4: 182 | KB4: 183 | KC4: 184 | KD4: 185 | KE4: 186 | KF4: 187 | KG4: 188 | KH4: 189 | KI4: 190 | KP4: 1 | KQ4: =+KP4+1 -> 2 | KR4: =+KQ4+1 -> 3 | KS4: =+KR4+1 -> 4 | KT4: =+KS4+1 -> 5 | KU4: =+KT4+1 -> 6 | KV4: =+KU4+1 -> 7 | KW4: =+KV4+1 -> 8 | KX4: =+KW4+1 -> 9 | KY4: =+KX4+1 -> 10 | KZ4: =+KY4+1 -> 11 | LA4: =+KZ4+1 -> 12 | LB4: =+LA4+1 -> 13 | LC4: =+LB4+1 -> 14 | LD4: =+LC4+1 -> 15 | LE4: =+LD4+1 -> 16 | LF4: =+LE4+1 -> 17 | LG4: =+LF4+1 -> 18 | LH4: =+LG4+1 -> 19 | LI4: =+LH4+1 -> 20 | LJ4: =+LI4+1 -> 21 | LK4: =+LJ4+1 -> 22 | LL4: =+LK4+1 -> 23 | LM4: =+LL4+1 -> 24 | LN4: =+LM4+1 -> 25 | LO4: =+LN4+1 -> 26 | LP4: =+LO4+1 -> 27 | LQ4: =+LP4+1 -> 28 | LR4: =+LQ4+1 -> 29 | LS4: =+LR4+1 -> 30 | LT4: =+LS4+1 -> 31 | LU4: =+LT4+1 -> 32 | LV4: =+LU4+1 -> 33 | LW4: =+LV4+1 -> 34 | LX4: =+LW4+1 -> 35 | LY4: =+LX4+1 -> 36 | LZ4: =+LY4+1 -> 37 | MA4: =+LZ4+1 -> 38 | MB4: =+MA4+1 -> 39 | MC4: =+MB4+1 -> 40 | MD4: =+MC4+1 -> 41 | ME4: =+MD4+1 -> 42 | MF4: =+ME4+1 -> 43 | MG4: =+MF4+1 -> 44 | MH4: =+MG4+1 -> 45 | MI4: =+MH4+1 -> 46 | MJ4: =+MI4+1 -> 47 | MK4: =+MJ4+1 -> 48 | ML4: =+MK4+1 -> 49 | MM4: =+ML4+1 -> 50 | MN4: =+MM4+1 -> 51 | MO4: =+MN4+1 -> 52 | MP4: =+MO4+1 -> 53 | MQ4: =+MP4+1 -> 54 | MR4: =+MQ4+1 -> 55 | MS4: =+MR4+1 -> 56 | MT4: =+MS4+1 -> 57 | MU4: =+MT4+1 -> 58 | MV4: =+MU4+1 -> 59 | MW4: =+MV4+1 -> 60 | MX4: =+MW4+1 -> 61 | MY4: =+MX4+1 -> 62 | MZ4: =+MY4+1 -> 63 | NA4: =+MZ4+1 -> 64 | NB4: =+NA4+1 -> 65 | NC4: =+NB4+1 -> 66 | ND4: =+NC4+1 -> 67 | NE4: =+ND4+1 -> 68 | NF4: =+NE4+1 -> 69 | NG4: =+NF4+1 -> 70 | NH4: =+NG4+1 -> 71 | NI4: =+NH4+1 -> 72 | NJ4: =+NI4+1 -> 73 | NK4: =+NJ4+1 -> 74 | NL4: =+NK4+1 -> 75 | NM4: =+NL4+1 -> 76 | NN4: =+NM4+1 -> 77 | NO4: =+NN4+1 -> 78 | NP4: =+NO4+1 -> 79 | NQ4: =+NP4+1 -> 80 | NR4: =+NQ4+1 -> 81 | NS4: =+NR4+1 -> 82 | NT4: =+NS4+1 -> 83 | NU4: =+NT4+1 -> 84 | NV4: =+NU4+1 -> 85 | NW4: =+NV4+1 -> 86 | NX4: =+NW4+1 -> 87 | NY4: =+NX4+1 -> 88 | NZ4: =+NY4+1 -> 89 | OA4: =+NZ4+1 -> 90 | OB4: =+OA4+1 -> 91 | OC4: =+OB4+1 -> 92 | OD4: =+OC4+1 -> 93 | OE4: =+OD4+1 -> 94 | OF4: =+OE4+1 -> 95 | OG4: =+OF4+1 -> 96 | OH4: =+OG4+1 -> 97 | OI4: =+OH4+1 -> 98 | OJ4: =+OI4+1 -> 99 | OK4: =+OJ4+1 -> 100 | OL4: =+OK4+1 -> 101 | OM4: =+OL4+1 -> 102 | ON4: =+OM4+1 -> 103 | OO4: =+ON4+1 -> 104 | OP4: =+OO4+1 -> 105 | OQ4: =+OP4+1 -> 106 | OR4: =+OQ4+1 -> 107 | OS4: =+OR4+1 -> 108 | OT4: =+OS4+1 -> 109 | OU4: =+OT4+1 -> 110 | OV4: =+OU4+1 -> 111 | OW4: =+OV4+1 -> 112 | OX4: =+OW4+1 -> 113 | OY4: =+OX4+1 -> 114 | OZ4: =+OY4+1 -> 115 | PA4: =+OZ4+1 -> 116 | PB4: =+PA4+1 -> 117 | PC4: =+PB4+1 -> 118 | PD4: =+PC4+1 -> 119 | PE4: =+PD4+1 -> 120 | PF4: =+PE4+1 -> 121 | PG4: =+PF4+1 -> 122 | PH4: =+PG4+1 -> 123 | PI4: =+PH4+1 -> 124 | PJ4: =+PI4+1 -> 125 | PK4: =+PJ4+1 -> 126 | PL4: =+PK4+1 -> 127 | PM4: =+PL4+1 -> 128 | PN4: =+PM4+1 -> 129 | PO4: =+PN4+1 -> 130 | PP4: =+PO4+1 -> 131 | PQ4: =+PP4+1 -> 132 | PR4: =+PQ4+1 -> 133 | PS4: =+PR4+1 -> 134 | PT4: =+PS4+1 -> 135 | PU4: =+PT4+1 -> 136 | PV4: =+PU4+1 -> 137 | PW4: =+PV4+1 -> 138 | PX4: =+PW4+1 -> 139 | PY4: =+PX4+1 -> 140 | PZ4: =+PY4+1 -> 141 | QA4: =+PZ4+1 -> 142 | QB4: =+QA4+1 -> 143 | QC4: =+QB4+1 -> 144 | QD4: =+QC4+1 -> 145 | QE4: =+QD4+1 -> 146 | QF4: =+QE4+1 -> 147 | QG4: =+QF4+1 -> 148 | QH4: =+QG4+1 -> 149 | QI4: =+QH4+1 -> 150 | QJ4: =+QI4+1 -> 151 | QK4: =+QJ4+1 -> 152 | QL4: =+QK4+1 -> 153 | QM4: =+QL4+1 -> 154 | QN4: =+QM4+1 -> 155 | QO4: =+QN4+1 -> 156 | QP4: =+QO4+1 -> 157 | QQ4: =+QP4+1 -> 158 | QR4: =+QQ4+1 -> 159 | QS4: =+QR4+1 -> 160 | QT4: =+QS4+1 -> 161 | QU4: =+QT4+1 -> 162 | QV4: =+QU4+1 -> 163 | QW4: =+QV4+1 -> 164 | QX4: =+QW4+1 -> 165 | QY4: =+QX4+1 -> 166 | QZ4: =+QY4+1 -> 167 | RA4: =+QZ4+1 -> 168 | RB4: =+RA4+1 -> 169 | RC4: =+RB4+1 -> 170 | RD4: =+RC4+1 -> 171 | RE4: =+RD4+1 -> 172 | RF4: =+RE4+1 -> 173 | RG4: =+RF4+1 -> 174 | RH4: =+RG4+1 -> 175 | RI4: =+RH4+1 -> 176 | RJ4: =+RI4+1 -> 177 | RK4: =+RJ4+1 -> 178 | RL4: =+RK4+1 -> 179 | RM4: =+RL4+1 -> 180 | RN4: =+RM4+1 -> 181 | RO4: =+RN4+1 -> 182 | RP4: =+RO4+1 -> 183 | RQ4: =+RP4+1 -> 184 | RR4: =+RQ4+1 -> 185 | RS4: =+RR4+1 -> 186 | RT4: =+RS4+1 -> 187 | RU4: =+RT4+1 -> 188 | RV4: =+RU4+1 -> 189 | RW4: =+RV4+1 -> 190
BF5: 1 | BG5: =IF(E10<>"",E10,"") -> 1 | BH5: =IF(F10<>"",F10,"") -> 6 | BI5: =IF(G10<>"",G10,"") ->  | BJ5: =IF(H10<>"",H10,"") ->  | BK5: =IF(I10<>"",I10,"") ->  | BL5: =IF(J10<>"",J10,"") ->  | BM5: =IF(K10<>"",K10,"") ->  | BN5: =IF(L10<>"",L10,"") ->  | BO5: =IF(M10<>"",M10,"") ->  | BP5: =IF(N10<>"",N10,"") ->  | BQ5: =IF(O10<>"",O10,"") ->  | BR5: =IF(P10<>"",P10,"") ->  | BS5: =IF(Q10<>"",Q10,"") ->  | BT5: =IF(R10<>"",R10,"") ->  | BU5: =IF(S10<>"",S10,"") ->  | BV5: =IF(T10<>"",T10,"") ->  | BW5: =IF(U10<>"",U10,"") ->  | BX5: =IF(V10<>"",V10,"") ->  | BY5: =IF(W10<>"",W10,"") ->  | BZ5: =IF(X10<>"",X10,"") ->  | CB5: 1 | CC5: =IF(BG5<>"",$CE$3-BG5,"") -> 9 | CD5: =IF(BH5<>"",$CE$3-BH5,"") -> 4 | CN5: =IF(BR5<>"",$CE$3-BR5,"") ->  | CO5: =IF(BS5<>"",$CE$3-BS5,"") ->  | CP5: =IF(BT5<>"",$CE$3-BT5,"") ->  | CQ5: =IF(BU5<>"",$CE$3-BU5,"") ->  | CR5: =IF(BV5<>"",$CE$3-BV5,"") ->  | CS5: =IF(BW5<>"",$CE$3-BW5,"") ->  | CT5: =IF(BX5<>"",$CE$3-BX5,"") ->  | CU5: =IF(BY5<>"",$CE$3-BY5,"") ->  | CV5: =IF(BZ5<>"",$CE$3-BZ5,"") -> 
E6: STEP THREE >>> | H6: Enter Attribute Label Across >>> (from E9 to X9) | BF6: 2 | BG6: =IF(E11<>"",E11,"") -> 9 | BH6: =IF(F11<>"",F11,"") -> 1 | BI6: =IF(G11<>"",G11,"") ->  | BJ6: =IF(H11<>"",H11,"") ->  | BK6: =IF(I11<>"",I11,"") ->  | BL6: =IF(J11<>"",J11,"") ->  | BM6: =IF(K11<>"",K11,"") ->  | BN6: =IF(L11<>"",L11,"") ->  | BO6: =IF(M11<>"",M11,"") ->  | BP6: =IF(N11<>"",N11,"") ->  | BQ6: =IF(O11<>"",O11,"") ->  | BR6: =IF(P11<>"",P11,"") ->  | BS6: =IF(Q11<>"",Q11,"") ->  | BT6: =IF(R11<>"",R11,"") ->  | BU6: =IF(S11<>"",S11,"") ->  | BV6: =IF(T11<>"",T11,"") ->  | BW6: =IF(U11<>"",U11,"") ->  | BX6: =IF(V11<>"",V11,"") ->  | BY6: =IF(W11<>"",W11,"") ->  | BZ6: =IF(X11<>"",X11,"") ->  | CB6: 2 | CC6: =IF(BG6<>"",$CE$3-BG6,"") -> 1 | CD6: 9 | DB6: 1 | DC6: =+DB6 -> 1 | DD6: =+DC6 -> 1 | DE6: 1 | DF6: 1 | DG6: 1 | DH6: 1 | DI6: 1 | DJ6: 1 | DK6: 1 | DL6: 1 | DM6: 1 | DN6: 1 | DO6: 1 | DP6: 1 | DQ6: 1 | DR6: 1 | DS6: 1 | DT6: 1 | DU6: 2 | DV6: 2 | DW6: =+DV6 -> 2 | DX6: =+DW6 -> 2 | DY6: 2 | DZ6: 2 | EA6: 2 | EB6: 2 | EC6: 2 | ED6: 2 | EE6: 2 | EF6: 2 | EG6: 2 | EH6: 2 | EI6: 2 | EJ6: 2 | EK6: 2 | EL6: 2 | EM6: 3 | EN6: =+EM6 -> 3 | EO6: =+EN6 -> 3 | EP6: 3 | EQ6: 3 | ER6: 3 | ES6: 3 | ET6: 3 | EU6: 3 | EV6: 3 | EW6: 3 | EX6: 3 | EY6: 3 | EZ6: 3 | FA6: 3 | FB6: 3 | FC6: 3 | FD6: 4 | FE6: 4 | FF6: 4 | FG6: 4 | FH6: 4 | FI6: 4 | FJ6: 4 | FK6: 4 | FL6: 4 | FM6: 4 | FN6: 4 | FO6: 4 | FP6: 4 | FQ6: 4 | FR6: 4 | FS6: 4 | FT6: 5 | FU6: 5 | FV6: 5 | FW6: 5 | FX6: 5 | FY6: 5 | FZ6: 5 | GA6: 5 | GB6: 5 | GC6: 5 | GD6: 5 | GE6: 5 | GF6: 5 | GG6: 5 | GH6: 5 | GI6: 6 | GJ6: 6 | GK6: 6 | GL6: 6 | GM6: 6 | GN6: 6 | GO6: 6 | GP6: 6 | GQ6: 6 | GR6: 6 | GS6: 6 | GT6: 6 | GU6: 6 | GV6: 6 | GW6: 7 | GX6: 7 | GY6: 7 | GZ6: 7 | HA6: =+GZ6 -> 7 | HB6: 7 | HC6: 7 | HD6: 7 | HE6: 7 | HF6: 7 | HG6: 7 | HH6: 7 | HI6: 7 | HJ6: 8 | HK6: 8 | HL6: 8 | HM6: 8 | HN6: 8 | HO6: 8 | HP6: 8 | HQ6: 8 | HR6: 8 | HS6: 8 | HT6: 8 | HU6: 8 | HV6: 9 | HW6: 9 | HX6: 9 | HY6: 9 | HZ6: 9 | IA6: 9 | IB6: 9 | IC6: 9 | ID6: 9 | IE6: 9 | IF6: 9 | IG6: 10 | IH6: 10 | II6: 10 | IJ6: 10 | IK6: 10 | IL6: 10 | IM6: 10 | IN6: 10 | IO6: 10 | IP6: 10 | IQ6: 11 | IR6: 11 | IS6: 11 | IT6: 11 | IU6: 11 | IV6: 11 | IW6: 11 | IX6: 11 | IY6: 11 | IZ6: 12 | JA6: 12 | JB6: 12 | JC6: 12 | JD6: 12 | JE6: 12 | JF6: 12 | JG6: 12 | JH6: 13 | JI6: 13 | JJ6: 13 | JK6: 13 | JL6: 13 | JM6: =+JL6 -> 13 | JN6: 13 | JO6: 14 | JP6: 14 | JQ6: 14 | JR6: 14 | JS6: 14 | JT6: 14 | JU6: 15 | JV6: =+JU6 -> 15 | JW6: 15 | JX6: 15 | JY6: 15 | JZ6: 16 | KA6: 16 | KB6: 16 | KC6: 16 | KD6: 17 | KE6: 17 | KF6: 17 | KG6: 18 | KH6: 18 | KI6: 19 | KN6: Min | KO6: =MIN(KP$7:RW$7) -> 0.5 | KP6: =SUM(KP36:KP55) -> 89 | KQ6: =SUM(KQ36:KQ55) -> 5 | KR6: 65 | KS6: 5 | KT6: 6.25 | KU6: 65 | KV6: 34 | KW6: 65 | KX6: 65 | KY6: 5 | KZ6: 50 | LA6: 34 | LB6: 58 | LC6: 41 | LD6: 9 | LE6: 26 | LF6: 26 | LG6: 58 | LH6: 45 | LI6: 72 | LJ6: 2 | LK6: 98 | LL6: 78.25 | LM6: 2 | LN6: 13 | LO6: 2 | LP6: 2 | LQ6: 98 | LR6: 9 | LS6: 13 | LT6: 5 | LU6: 10 | LV6: 128 | LW6: 25 | LX6: 25 | LY6: 65 | LZ6: 8 | MA6: 50 | MB6: 2 | MC6: 0.25 | MD6: 50 | ME6: 25 | MF6: 50 | MG6: 50 | MH6: 2 | MI6: 45 | MJ6: 25 | MK6: 41 | ML6: 34 | MM6: 8 | MN6: 13 | MO6: 13 | MP6: 29 | MQ6: 32 | MR6: 72 | MS6: 55.25 | MT6: 0 | MU6: 5 | MV6: 0 | MW6: 0 | MX6: 72 | MY6: 5 | MZ6: 5 | NA6: 1 | NB6: 4 | NC6: =SUM(NC36:NC55) -> 98 | ND6: 13 | NE6: 13 | NF6: 49 | NG6: 2 | NH6: 1.25 | NI6: 72 | NJ6: 41 | NK6: 72 | NL6: 72 | NM6: 0 | NN6: 65 | NO6: 41 | NP6: 61 | NQ6: 52 | NR6: 2 | NS6: 25 | NT6: 25 | NU6: 37 | NV6: 50 | NW6: 55.25 | NX6: 29.25 | NY6: 55.25 | NZ6: 55.25 | OA6: 1.25 | OB6: 51.25 | OC6: 29.25 | OD6: 45.25 | OE6: 39.25 | OF6: 6.25 | OG6: 15.25 | OH6: 15.25 | OI6: 27.25 | OJ6: 36.25 | OK6: 5 | OL6: 0 | OM6: 0 | ON6: 72 | OO6: 5 | OP6: 5 | OQ6: 1 | OR6: 4 | OS6: 98 | OT6: 13 | OU6: 13 | OV6: 49 | OW6: 2 | OX6: 5 | OY6: 5 | OZ6: 41 | PA6: 4 | PB6: 0 | PC6: 4 | PD6: 1 | PE6: 61 | PF6: 4 | PG6: 4 | PH6: 40 | PI6: 1 | PJ6: 0 | PK6: 72 | PL6: 5 | PM6: 5 | PN6: 1 | PO6: =SUM(PO36:PO55) -> 4 | PP6: 98 | PQ6: 13 | PR6: 13 | PS6: 49 | PT6: 2 | PU6: 72 | PV6: 5 | PW6: 5 | PX6: 1 | PY6: 4 | PZ6: 98 | QA6: 13 | QB6: 13 | QC6: 49 | QD6: 2 | QE6: 65 | QF6: 41 | QG6: 61 | QH6: 52 | QI6: 2 | QJ6: 25 | QK6: 25 | QL6: 37 | QM6: 50 | QN6: 4 | QO6: 8 | QP6: 1 | QQ6: 89 | QR6: 16 | QS6: 16 | QT6: 68 | QU6: 5 | QV6: 4 | QW6: 1 | QX6: 61 | QY6: 4 | QZ6: 4 | RA6: 40 | RB6: 1 | RC6: 5 | RD6: 85 | RE6: 8 | RF6: 8 | RG6: 36 | RH6: 1 | RI6: 74 | RJ6: 9 | RK6: 9 | RL6: 53 | RM6: 2 | RN6: 41 | RO6: 41 | RP6: 49 | RQ6: 72 | RR6: 0 | RS6: 20 | RT6: 5 | RU6: 20 | RV6: 5 | RW6: 37
B7: STEP TWO | C7: Enter Brands Below | E7: You may enter up to 20 attributes | H7: Some examples provided, simply type over the top to enter your own attributes | BF7: 3 | BG7: 3 | BH7: 7 | CB7: 3 | CC7: 7 | CD7: 3 | DB7: 2 | DC7: =+DB7+1 -> 3 | DD7: =+DC7+1 -> 4 | DE7: 5 | DF7: 6 | DG7: 7 | DH7: 8 | DI7: 9 | DJ7: 10 | DK7: 11 | DL7: 12 | DM7: 13 | DN7: 14 | DO7: 15 | DP7: 16 | DQ7: 17 | DR7: 18 | DS7: 19 | DT7: 20 | DU7: 3 | DV7: =+DU7+1 -> 4 | DW7: =+DV7+1 -> 5 | DX7: 6 | DY7: 7 | DZ7: 8 | EA7: 9 | EB7: 10 | EC7: 11 | ED7: 12 | EE7: 13 | EF7: 14 | EG7: 15 | EH7: 16 | EI7: 17 | EJ7: 18 | EK7: 19 | EL7: 20 | EM7: 4 | EN7: =+EM7+1 -> 5 | EO7: =+EN7+1 -> 6 | EP7: 7 | EQ7: 8 | ER7: 9 | ES7: 10 | ET7: 11 | EU7: 12 | EV7: 13 | EW7: 14 | EX7: 15 | EY7: 16 | EZ7: 17 | FA7: 18 | FB7: 19 | FC7: 20 | FD7: 5 | FE7: 6 | FF7: 7 | FG7: 8 | FH7: 9 | FI7: 10 | FJ7: 11 | FK7: 12 | FL7: 13 | FM7: 14 | FN7: 15 | FO7: 16 | FP7: 17 | FQ7: 18 | FR7: 19 | FS7: 20 | FT7: 6 | FU7: 7 | FV7: 8 | FW7: 9 | FX7: 10 | FY7: 11 | FZ7: 12 | GA7: 13 | GB7: 14 | GC7: 15 | GD7: 16 | GE7: 17 | GF7: 18 | GG7: 19 | GH7: 20 | GI7: 7 | GJ7: 8 | GK7: 9 | GL7: 10 | GM7: 11 | GN7: 12 | GO7: 13 | GP7: 14 | GQ7: 15 | GR7: 16 | GS7: 17 | GT7: 18 | GU7: 19 | GV7: 20 | GW7: 8 | GX7: 9 | GY7: 10 | GZ7: 11 | HA7: =+GZ7+1 -> 12 | HB7: 13 | HC7: 14 | HD7: 15 | HE7: 16 | HF7: 17 | HG7: 18 | HH7: 19 | HI7: 20 | HJ7: 9 | HK7: 10 | HL7: 11 | HM7: 12 | HN7: 13 | HO7: 14 | HP7: 15 | HQ7: 16 | HR7: 17 | HS7: 18 | HT7: 19 | HU7: 20 | HV7: 10 | HW7: 11 | HX7: 12 | HY7: 13 | HZ7: 14 | IA7: 15 | IB7: 16 | IC7: 17 | ID7: 18 | IE7: 19 | IF7: 20 | IG7: 11 | IH7: 12 | II7: 13 | IJ7: 14 | IK7: 15 | IL7: 16 | IM7: 17 | IN7: 18 | IO7: 19 | IP7: 20 | IQ7: 12 | IR7: 13 | IS7: 14 | IT7: 15 | IU7: 16 | IV7: 17 | IW7: 18 | IX7: 19 | IY7: 20 | IZ7: 13 | JA7: 14 | JB7: 15 | JC7: 16 | JD7: 17 | JE7: 18 | JF7: 19 | JG7: 20 | JH7: 14 | JI7: 15 | JJ7: 16 | JK7: 17 | JL7: 18 | JM7: =+JL7+1 -> 19 | JN7: 20 | JO7: 15 | JP7: 16 | JQ7: 17 | JR7: 18 | JS7: 19 | JT7: 20 | JU7: 16 | JV7: =+JU7+1 -> 17 | JW7: 18 | JX7: 19 | JY7: 20 | JZ7: 17 | KA7: 18 | KB7: 19 | KC7: 20 | KD7: 18 | KE7: 19 | KF7: 20 | KG7: 19 | KH7: 20 | KI7: 20 | KN7: Max | KO7: =MAX(KP$7:RW$7) -> 11.3137085 | KP7: =IF(KP6<>0,KP6^0.5,"") -> 9.433981132 | KQ7: =IF(KQ6<>0,KQ6^0.5,"") -> 2.236067977 | KR7: 8.062257748 | KS7: 2.236067977 | KT7: 2.5 | KU7: 8.062257748 | KV7: 5.830951895 | KW7: 8.062257748 | KX7: 8.062257748 | KY7: 2.236067977 | KZ7: 7.071067812 | LA7: 5.830951895 | LB7: 7.615773106 | LC7: 6.403124237 | LD7: 3 | LE7: 5.099019514 | LF7: 5.099019514 | LG7: 7.615773106 | LH7: 6.708203932 | LI7: 8.485281374 | LJ7: 1.414213562 | LK7: 9.899494937 | LL7: 8.845903006 | LM7: 1.414213562 | LN7: 3.605551275 | LO7: 1.414213562 | LP7: 1.414213562 | LQ7: 9.899494937 | LR7: 3 | LS7: 3.605551275 | LT7: 2.236067977 | LU7: 3.16227766 | LV7: 11.3137085 | LW7: 5 | LX7: 5 | LY7: 8.062257748 | LZ7: 2.828427125 | MA7: 7.071067812 | MB7: 1.414213562 | MC7: 0.5 | MD7: 7.071067812 | ME7: 5 | MF7: 7.071067812 | MG7: 7.071067812 | MH7: 1.414213562 | MI7: 6.708203932 | MJ7: 5 | MK7: 6.403124237 | ML7: 5.830951895 | MM7: 2.828427125 | MN7: 3.605551275 | MO7: 3.605551275 | MP7: 5.385164807 | MQ7: 5.656854249 | MR7: 8.485281374 | MS7: 7.433034374 | MU7: 2.236067977 | MX7: 8.485281374 | MY7: 2.236067977 | MZ7: 2.236067977 | NA7: 1 | NB7: 2 | NC7: =IF(NC6<>0,NC6^0.5,"") -> 9.899494937 | ND7: 3.605551275 | NE7: 3.605551275 | NF7: 7 | NG7: 1.414213562 | NH7: 1.118033989 | NI7: 8.485281374 | NJ7: 6.403124237 | NK7: 8.485281374 | NL7: 8.485281374 | NN7: 8.062257748 | NO7: 6.403124237 | NP7: 7.810249676 | NQ7: 7.211102551 | NR7: 1.414213562 | NS7: 5 | NT7: 5 | NU7: 6.08276253 | NV7: 7.071067812 | NW7: 7.433034374 | NX7: 5.408326913 | NY7: 7.433034374 | NZ7: 7.433034374 | OA7: 1.118033989 | OB7: 7.158910532 | OC7: 5.408326913 | OD7: 6.726812024 | OE7: 6.264982043 | OF7: 2.5 | OG7: 3.905124838 | OH7: 3.905124838 | OI7: 5.220153254 | OJ7: 6.020797289 | OK7: 2.236067977 | ON7: 8.485281374 | OO7: 2.236067977 | OP7: 2.236067977 | OQ7: 1 | OR7: 2 | OS7: 9.899494937 | OT7: 3.605551275 | OU7: 3.605551275 | OV7: 7 | OW7: 1.414213562 | OX7: 2.236067977 | OY7: 2.236067977 | OZ7: 6.403124237 | PA7: 2 | PC7: 2 | PD7: 1 | PE7: 7.810249676 | PF7: 2 | PG7: 2 | PH7: 6.32455532 | PI7: 1 | PK7: 8.485281374 | PL7: 2.236067977 | PM7: 2.236067977 | PN7: 1 | PO7: =IF(PO6<>0,PO6^0.5,"") -> 2 | PP7: 9.899494937 | PQ7: 3.605551275 | PR7: 3.605551275 | PS7: 7 | PT7: 1.414213562 | PU7: 8.485281374 | PV7: 2.236067977 | PW7: 2.236067977 | PX7: 1 | PY7: 2 | PZ7: 9.899494937 | QA7: 3.605551275 | QB7: 3.605551275 | QC7: 7 | QD7: 1.414213562 | QE7: 8.062257748 | QF7: 6.403124237 | QG7: 7.810249676 | QH7: 7.211102551 | QI7: 1.414213562 | QJ7: 5 | QK7: 5 | QL7: 6.08276253 | QM7: 7.071067812 | QN7: 2 | QO7: 2.828427125 | QP7: 1 | QQ7: 9.433981132 | QR7: 4 | QS7: 4 | QT7: 8.246211251 | QU7: 2.236067977 | QV7: 2 | QW7: 1 | QX7: 7.810249676 | QY7: 2 | QZ7: 2 | RA7: 6.32455532 | RB7: 1 | RC7: 2.236067977 | RD7: 9.219544457 | RE7: 2.828427125 | RF7: 2.828427125 | RG7: 6 | RH7: 1 | RI7: 8.602325267 | RJ7: 3 | RK7: 3 | RL7: 7.280109889 | RM7: 1.414213562 | RN7: 6.403124237 | RO7: 6.403124237 | RP7: 7 | RQ7: 8.485281374 | RS7: 4.472135955 | RT7: 2.236067977 | RU7: 4.472135955 | RV7: 2.236067977 | RW7: 6.08276253
C8: You may enter up to 20 brands | E8: 1 | F8: 2 | G8: 3 | H8: 4 | I8: 5 | J8: 6 | K8: 7 | L8: 8 | M8: 9 | N8: 10 | O8: 11 | P8: 12 | Q8: 13 | R8: 14 | S8: 15 | T8: 16 | U8: 17 | V8: 18 | W8: 19 | X8: 20 | BF8: 4 | BG8: 8 | BH8: 2 | CB8: 4 | CC8: 2 | CD8: 8 | KN8: =+KN33 -> 1 | KO8: =+KO33 -> 9 | KP8: =IFERROR((KP7-$KO6)*$KO10+1,"") -> 7.609374486 | KQ8: =IFERROR((KQ7-$KO6)*$KO10+1,"") -> 2.284346052 | KR8: 6.594571186 | KS8: 2.284346052 | KT8: 2.479603413 | KU8: 6.594571186 | KV8: 4.943847309 | KW8: 6.594571186 | KX8: 6.594571186 | KY8: =IFERROR((KY7-$KO6)*$KO10+1,"") -> 2.284346052 | KZ8: =IFERROR((KZ7-$KO6)*$KO10+1,"") -> 5.86128718 | LA8: =IFERROR((LA7-$KO6)*$KO10+1,"") -> 4.943847309 | LB8: =IFERROR((LB7-$KO6)*$KO10+1,"") -> 6.264261086 | LC8: =IFERROR((LC7-$KO6)*$KO10+1,"") -> 5.367141384 | LD8: =IFERROR((LD7-$KO6)*$KO10+1,"") -> 2.849504266 | LE8: =IFERROR((LE7-$KO6)*$KO10+1,"") -> 4.402362484 | LF8: =IFERROR((LF7-$KO6)*$KO10+1,"") -> 4.402362484 | LG8: =IFERROR((LG7-$KO6)*$KO10+1,"") -> 6.264261086 | LH8: =IFERROR((LH7-$KO6)*$KO10+1,"") -> 5.592839863 | LI8: =IFERROR((LI7-$KO6)*$KO10+1,"") -> 6.907524787 | LJ8: =IFERROR((LJ7-$KO6)*$KO10+1,"") -> 1.676336753 | LK8: =IFERROR((LK7-$KO6)*$KO10+1,"") -> 7.953762393 | LL8: =IFERROR((LL7-$KO6)*$KO10+1,"") -> 7.174313286 | LM8: =IFERROR((LM7-$KO6)*$KO10+1,"") -> 1.676336753 | LN8: =IFERROR((LN7-$KO6)*$KO10+1,"") -> 3.297492133 | LO8: =IFERROR((LO7-$KO6)*$KO10+1,"") -> 1.676336753 | LP8: =IFERROR((LP7-$KO6)*$KO10+1,"") -> 1.676336753 | LQ8: =IFERROR((LQ7-$KO6)*$KO10+1,"") -> 7.953762393 | LR8: =IFERROR((LR7-$KO6)*$KO10+1,"") -> 2.849504266 | LS8: =IFERROR((LS7-$KO6)*$KO10+1,"") -> 3.297492133 | LT8: =IFERROR((LT7-$KO6)*$KO10+1,"") -> 2.284346052 | LU8: =IFERROR((LU7-$KO6)*$KO10+1,"") -> 2.969557556 | LV8: =IFERROR((LV7-$KO6)*$KO10+1,"") -> 9 | LW8: =IFERROR((LW7-$KO6)*$KO10+1,"") -> 4.329107679 | LX8: =IFERROR((LX7-$KO6)*$KO10+1,"") -> 4.329107679 | LY8: =IFERROR((LY7-$KO6)*$KO10+1,"") -> 6.594571186 | LZ8: =IFERROR((LZ7-$KO6)*$KO10+1,"") -> 2.72257436 | MA8: =IFERROR((MA7-$KO6)*$KO10+1,"") -> 5.86128718 | MB8: =IFERROR((MB7-$KO6)*$KO10+1,"") -> 1.676336753 | MC8: =IFERROR((MC7-$KO6)*$KO10+1,"") -> 1 | MD8: =IFERROR((MD7-$KO6)*$KO10+1,"") -> 5.86128718 | ME8: =IFERROR((ME7-$KO6)*$KO10+1,"") -> 4.329107679 | MF8: =IFERROR((MF7-$KO6)*$KO10+1,"") -> 5.86128718 | MG8: =IFERROR((MG7-$KO6)*$KO10+1,"") -> 5.86128718 | MH8: =IFERROR((MH7-$KO6)*$KO10+1,"") -> 1.676336753 | MI8: =IFERROR((MI7-$KO6)*$KO10+1,"") -> 5.592839863 | MJ8: =IFERROR((MJ7-$KO6)*$KO10+1,"") -> 4.329107679 | MK8: =IFERROR((MK7-$KO6)*$KO10+1,"") -> 5.367141384 | ML8: =IFERROR((ML7-$KO6)*$KO10+1,"") -> 4.943847309 | MM8: =IFERROR((MM7-$KO6)*$KO10+1,"") -> 2.72257436 | MN8: =IFERROR((MN7-$KO6)*$KO10+1,"") -> 3.297492133 | MO8: =IFERROR((MO7-$KO6)*$KO10+1,"") -> 3.297492133 | MP8: =IFERROR((MP7-$KO6)*$KO10+1,"") -> 4.61405326 | MQ8: =IFERROR((MQ7-$KO6)*$KO10+1,"") -> 4.815049573 | MR8: =IFERROR((MR7-$KO6)*$KO10+1,"") -> 6.907524787 | MS8: =IFERROR((MS7-$KO6)*$KO10+1,"") -> 6.12907066 | MT8: =IFERROR((MT7-$KO6)*$KO10+1,"") ->  | MU8: =IFERROR((MU7-$KO6)*$KO10+1,"") -> 2.284346052 | MV8: =IFERROR((MV7-$KO6)*$KO10+1,"") ->  | MW8: =IFERROR((MW7-$KO6)*$KO10+1,"") ->  | MX8: =IFERROR((MX7-$KO6)*$KO10+1,"") -> 6.907524787 | MY8: =IFERROR((MY7-$KO6)*$KO10+1,"") -> 2.284346052 | MZ8: =IFERROR((MZ7-$KO6)*$KO10+1,"") -> 2.284346052 | NA8: =IFERROR((NA7-$KO6)*$KO10+1,"") -> 1.369900853 | NB8: =IFERROR((NB7-$KO6)*$KO10+1,"") -> 2.10970256 | NC8: =IFERROR((NC7-$KO6)*$KO10+1,"") -> 7.953762393 | ND8: =IFERROR((ND7-$KO6)*$KO10+1,"") -> 3.297492133 | NE8: =IFERROR((NE7-$KO6)*$KO10+1,"") -> 3.297492133 | NF8: =IFERROR((NF7-$KO6)*$KO10+1,"") -> 5.808711092 | NG8: =IFERROR((NG7-$KO6)*$KO10+1,"") -> 1.676336753 | NH8: =IFERROR((NH7-$KO6)*$KO10+1,"") -> 1.457222599 | NI8: =IFERROR((NI7-$KO6)*$KO10+1,"") -> 6.907524787 | NJ8: =IFERROR((NJ7-$KO6)*$KO10+1,"") -> 5.367141384 | NK8: =IFERROR((NK7-$KO6)*$KO10+1,"") -> 6.907524787 | NL8: =IFERROR((NL7-$KO6)*$KO10+1,"") -> 6.907524787 | NM8: =IFERROR((NM7-$KO6)*$KO10+1,"") ->  | NN8: =IFERROR((NN7-$KO6)*$KO10+1,"") -> 6.594571186 | NO8: =IFERROR((NO7-$KO6)*$KO10+1,"") -> 5.367141384 | NP8: =IFERROR((NP7-$KO6)*$KO10+1,"") -> 6.408135184 | NQ8: =IFERROR((NQ7-$KO6)*$KO10+1,"") -> 5.964885119 | NR8: =IFERROR((NR7-$KO6)*$KO10+1,"") -> 1.676336753 | NS8: =IFERROR((NS7-$KO6)*$KO10+1,"") -> 4.329107679 | NT8: =IFERROR((NT7-$KO6)*$KO10+1,"") -> 4.329107679 | NU8: =IFERROR((NU7-$KO6)*$KO10+1,"") -> 5.130137246 | NV8: =IFERROR((NV7-$KO6)*$KO10+1,"") -> 5.86128718 | NW8: =IFERROR((NW7-$KO6)*$KO10+1,"") -> 6.12907066 | NX8: =IFERROR((NX7-$KO6)*$KO10+1,"") -> 4.631188626 | NY8: =IFERROR((NY7-$KO6)*$KO10+1,"") -> 6.12907066 | NZ8: =IFERROR((NZ7-$KO6)*$KO10+1,"") -> 6.12907066 | OA8: =IFERROR((OA7-$KO6)*$KO10+1,"") -> 1.457222599 | OB8: =IFERROR((OB7-$KO6)*$KO10+1,"") -> 5.926273374 | OC8: =IFERROR((OC7-$KO6)*$KO10+1,"") -> 4.631188626 | OD8: =IFERROR((OD7-$KO6)*$KO10+1,"") -> 5.60660616 | OE8: =IFERROR((OE7-$KO6)*$KO10+1,"") -> 5.264943553 | OF8: =IFERROR((OF7-$KO6)*$KO10+1,"") -> 2.479603413 | OG8: =IFERROR((OG7-$KO6)*$KO10+1,"") -> 3.519117166 | OH8: =IFERROR((OH7-$KO6)*$KO10+1,"") -> 3.519117166 | OI8: =IFERROR((OI7-$KO6)*$KO10+1,"") -> 4.491977432 | OJ8: =IFERROR((OJ7-$KO6)*$KO10+1,"") -> 5.084295255 | OK8: =IFERROR((OK7-$KO6)*$KO10+1,"") -> 2.284346052 | OL8: =IFERROR((OL7-$KO6)*$KO10+1,"") ->  | OM8: =IFERROR((OM7-$KO6)*$KO10+1,"") ->  | ON8: =IFERROR((ON7-$KO6)*$KO10+1,"") -> 6.907524787 | OO8: =IFERROR((OO7-$KO6)*$KO10+1,"") -> 2.284346052 | OP8: =IFERROR((OP7-$KO6)*$KO10+1,"") -> 2.284346052 | OQ8: =IFERROR((OQ7-$KO6)*$KO10+1,"") -> 1.369900853 | OR8: =IFERROR((OR7-$KO6)*$KO10+1,"") -> 2.10970256 | OS8: =IFERROR((OS7-$KO6)*$KO10+1,"") -> 7.953762393 | OT8: =IFERROR((OT7-$KO6)*$KO10+1,"") -> 3.297492133 | OU8: =IFERROR((OU7-$KO6)*$KO10+1,"") -> 3.297492133 | OV8: =IFERROR((OV7-$KO6)*$KO10+1,"") -> 5.808711092 | OW8: =IFERROR((OW7-$KO6)*$KO10+1,"") -> 1.676336753 | OX8: =IFERROR((OX7-$KO6)*$KO10+1,"") -> 2.284346052 | OY8: =IFERROR((OY7-$KO6)*$KO10+1,"") -> 2.284346052 | OZ8: =IFERROR((OZ7-$KO6)*$KO10+1,"") -> 5.367141384 | PA8: =IFERROR((PA7-$KO6)*$KO10+1,"") -> 2.10970256 | PB8: =IFERROR((PB7-$KO6)*$KO10+1,"") ->  | PC8: =IFERROR((PC7-$KO6)*$KO10+1,"") -> 2.10970256 | PD8: =IFERROR((PD7-$KO6)*$KO10+1,"") -> 1.369900853 | PE8: =IFERROR((PE7-$KO6)*$KO10+1,"") -> 6.408135184 | PF8: =IFERROR((PF7-$KO6)*$KO10+1,"") -> 2.10970256 | PG8: =IFERROR((PG7-$KO6)*$KO10+1,"") -> 2.10970256 | PH8: =IFERROR((PH7-$KO6)*$KO10+1,"") -> 5.309015965 | PI8: =IFERROR((PI7-$KO6)*$KO10+1,"") -> 1.369900853 | PJ8: =IFERROR((PJ7-$KO6)*$KO10+1,"") ->  | PK8: =IFERROR((PK7-$KO6)*$KO10+1,"") -> 6.907524787 | PL8: =IFERROR((PL7-$KO6)*$KO10+1,"") -> 2.284346052 | PM8: =IFERROR((PM7-$KO6)*$KO10+1,"") -> 2.284346052 | PN8: =IFERROR((PN7-$KO6)*$KO10+1,"") -> 1.369900853 | PO8: =IFERROR((PO7-$KO6)*$KO10+1,"") -> 2.10970256 | PP8: =IFERROR((PP7-$KO6)*$KO10+1,"") -> 7.953762393 | PQ8: =IFERROR((PQ7-$KO6)*$KO10+1,"") -> 3.297492133 | PR8: =IFERROR((PR7-$KO6)*$KO10+1,"") -> 3.297492133 | PS8: =IFERROR((PS7-$KO6)*$KO10+1,"") -> 5.808711092 | PT8: =IFERROR((PT7-$KO6)*$KO10+1,"") -> 1.676336753 | PU8: =IFERROR((PU7-$KO6)*$KO10+1,"") -> 6.907524787 | PV8: =IFERROR((PV7-$KO6)*$KO10+1,"") -> 2.284346052 | PW8: =IFERROR((PW7-$KO6)*$KO10+1,"") -> 2.284346052 | PX8: =IFERROR((PX7-$KO6)*$KO10+1,"") -> 1.369900853 | PY8: =IFERROR((PY7-$KO6)*$KO10+1,"") -> 2.10970256 | PZ8: =IFERROR((PZ7-$KO6)*$KO10+1,"") -> 7.953762393 | QA8: =IFERROR((QA7-$KO6)*$KO10+1,"") -> 3.297492133 | QB8: =IFERROR((QB7-$KO6)*$KO10+1,"") -> 3.297492133 | QC8: =IFERROR((QC7-$KO6)*$KO10+1,"") -> 5.808711092 | QD8: =IFERROR((QD7-$KO6)*$KO10+1,"") -> 1.676336753 | QE8: =IFERROR((QE7-$KO6)*$KO10+1,"") -> 6.594571186 | QF8: =IFERROR((QF7-$KO6)*$KO10+1,"") -> 5.367141384 | QG8: =IFERROR((QG7-$KO6)*$KO10+1,"") -> 6.408135184 | QH8: =IFERROR((QH7-$KO6)*$KO10+1,"") -> 5.964885119 | QI8: =IFERROR((QI7-$KO6)*$KO10+1,"") -> 1.676336753 | QJ8: =IFERROR((QJ7-$KO6)*$KO10+1,"") -> 4.329107679 | QK8: =IFERROR((QK7-$KO6)*$KO10+1,"") -> 4.329107679 | QL8: =IFERROR((QL7-$KO6)*$KO10+1,"") -> 5.130137246 | QM8: =IFERROR((QM7-$KO6)*$KO10+1,"") -> 5.86128718 | QN8: =IFERROR((QN7-$KO6)*$KO10+1,"") -> 2.10970256 | QO8: =IFERROR((QO7-$KO6)*$KO10+1,"") -> 2.72257436 | QP8: =IFERROR((QP7-$KO6)*$KO10+1,"") -> 1.369900853 | QQ8: =IFERROR((QQ7-$KO6)*$KO10+1,"") -> 7.609374486 | QR8: =IFERROR((QR7-$KO6)*$KO10+1,"") -> 3.589305972 | QS8: =IFERROR((QS7-$KO6)*$KO10+1,"") -> 3.589305972 | QT8: =IFERROR((QT7-$KO6)*$KO10+1,"") -> 6.730660302 | QU8: =IFERROR((QU7-$KO6)*$KO10+1,"") -> 2.284346052 | QV8: =IFERROR((QV7-$KO6)*$KO10+1,"") -> 2.10970256 | QW8: =IFERROR((QW7-$KO6)*$KO10+1,"") -> 1.369900853 | QX8: =IFERROR((QX7-$KO6)*$KO10+1,"") -> 6.408135184 | QY8: =IFERROR((QY7-$KO6)*$KO10+1,"") -> 2.10970256 | QZ8: =IFERROR((QZ7-$KO6)*$KO10+1,"") -> 2.10970256 | RA8: =IFERROR((RA7-$KO6)*$KO10+1,"") -> 5.309015965 | RB8: =IFERROR((RB7-$KO6)*$KO10+1,"") -> 1.369900853 | RC8: =IFERROR((RC7-$KO6)*$KO10+1,"") -> 2.284346052 | RD8: =IFERROR((RD7-$KO6)*$KO10+1,"") -> 7.450733868 | RE8: =IFERROR((RE7-$KO6)*$KO10+1,"") -> 2.72257436 | RF8: =IFERROR((RF7-$KO6)*$KO10+1,"") -> 2.72257436 | RG8: =IFERROR((RG7-$KO6)*$KO10+1,"") -> 5.068909385 | RH8: =IFERROR((RH7-$KO6)*$KO10+1,"") -> 1.369900853 | RI8: =IFERROR((RI7-$KO6)*$KO10+1,"") -> 6.994114058 | RJ8: =IFERROR((RJ7-$KO6)*$KO10+1,"") -> 2.849504266 | RK8: =IFERROR((RK7-$KO6)*$KO10+1,"") -> 2.849504266 | RL8: =IFERROR((RL7-$KO6)*$KO10+1,"") -> 6.015936866 | RM8: =IFERROR((RM7-$KO6)*$KO10+1,"") -> 1.676336753 | RN8: =IFERROR((RN7-$KO6)*$KO10+1,"") -> 5.367141384 | RO8: =IFERROR((RO7-$KO6)*$KO10+1,"") -> 5.367141384 | RP8: =IFERROR((RP7-$KO6)*$KO10+1,"") -> 5.808711092 | RQ8: =IFERROR((RQ7-$KO6)*$KO10+1,"") -> 6.907524787 | RR8: =IFERROR((RR7-$KO6)*$KO10+1,"") ->  | RS8: =IFERROR((RS7-$KO6)*$KO10+1,"") -> 3.938592958 | RT8: =IFERROR((RT7-$KO6)*$KO10+1,"") -> 2.284346052 | RU8: =IFERROR((RU7-$KO6)*$KO10+1,"") -> 3.938592958 | RV8: =IFERROR((RV7-$KO6)*$KO10+1,"") -> 2.284346052 | RW8: =IFERROR((RW7-$KO6)*$KO10+1,"") -> 5.130137246
C9: Some examples provided, simply type over the top to enter your own brands | E9: Sweet Taste | F9: Savoury Taste | BF9: 5 | BG9: 2 | BH9: 8 | CB9: 5 | CC9: 8 | CD9: 2 | DB9: Difference between attributes, based on brands | KM9: Diff | KN9: =+KO8-KN8 -> 8 | KO9: =+KO7-KO6 -> 10.8137085 | KP9: Difference between attributes, based on brands
C10: 1 | D10: A | E10: 1 | F10: 6 | BF10: 6 | BG10: 3 | BH10: 7.5 | CB10: 6 | CC10: 7 | CD10: 2.5 | DA10: 2 | DB10: =IFERROR(IF(AND(HLOOKUP(DB$6,distance,$DA10)>0.5,HLOOKUP(DB$7,distance,$DA10)>0.5),SQRT(((HLOOKUP(DB$6,distance,$DA10)-HLOOKUP(DB$7,distance,$DA10)))^2),""),"") -> 5 | DL10: =IFERROR(IF(AND(HLOOKUP(DL$6,distance,$DA10)>0.5,HLOOKUP(DL$7,distance,$DA10)>0.5),SQRT(((HLOOKUP(DL$6,distance,$DA10)-HLOOKUP(DL$7,distance,$DA10)))^2),""),"") ->  | DV10: =IFERROR(IF(AND(HLOOKUP(DV$6,distance,$DA10)>0.5,HLOOKUP(DV$7,distance,$DA10)>0.5),SQRT(((HLOOKUP(DV$6,distance,$DA10)-HLOOKUP(DV$7,distance,$DA10)))^2),""),"") ->  | EF10: =IFERROR(IF(AND(HLOOKUP(EF$6,distance,$DA10)>0.5,HLOOKUP(EF$7,distance,$DA10)>0.5),SQRT(((HLOOKUP(EF$6,distance,$DA10)-HLOOKUP(EF$7,distance,$DA10)))^2),""),"") ->  | EP10: =IFERROR(IF(AND(HLOOKUP(EP$6,distance,$DA10)>0.5,HLOOKUP(EP$7,distance,$DA10)>0.5),SQRT(((HLOOKUP(EP$6,distance,$DA10)-HLOOKUP(EP$7,distance,$DA10)))^2),""),"") ->  | EZ10: =IFERROR(IF(AND(HLOOKUP(EZ$6,distance,$DA10)>0.5,HLOOKUP(EZ$7,distance,$DA10)>0.5),SQRT(((HLOOKUP(EZ$6,distance,$DA10)-HLOOKUP(EZ$7,distance,$DA10)))^2),""),"") ->  | FJ10: =IFERROR(IF(AND(HLOOKUP(FJ$6,distance,$DA10)>0.5,HLOOKUP(FJ$7,distance,$DA10)>0.5),SQRT(((HLOOKUP(FJ$6,distance,$DA10)-HLOOKUP(FJ$7,distance,$DA10)))^2),""),"") ->  | FT10: =IFERROR(IF(AND(HLOOKUP(FT$6,distance,$DA10)>0.5,HLOOKUP(FT$7,distance,$DA10)>0.5),SQRT(((HLOOKUP(FT$6,distance,$DA10)-HLOOKUP(FT$7,distance,$DA10)))^2),""),"") ->  | GD10: =IFERROR(IF(AND(HLOOKUP(GD$6,distance,$DA10)>0.5,HLOOKUP(GD$7,distance,$DA10)>0.5),SQRT(((HLOOKUP(GD$6,distance,$DA10)-HLOOKUP(GD$7,distance,$DA10)))^2),""),"") ->  | GN10: =IFERROR(IF(AND(HLOOKUP(GN$6,distance,$DA10)>0.5,HLOOKUP(GN$7,distance,$DA10)>0.5),SQRT(((HLOOKUP(GN$6,distance,$DA10)-HLOOKUP(GN$7,distance,$DA10)))^2),""),"") ->  | GX10: =IFERROR(IF(AND(HLOOKUP(GX$6,distance,$DA10)>0.5,HLOOKUP(GX$7,distance,$DA10)>0.5),SQRT(((HLOOKUP(GX$6,distance,$DA10)-HLOOKUP(GX$7,distance,$DA10)))^2),""),"") ->  | HH10: =IFERROR(IF(AND(HLOOKUP(HH$6,distance,$DA10)>0.5,HLOOKUP(HH$7,distance,$DA10)>0.5),SQRT(((HLOOKUP(HH$6,distance,$DA10)-HLOOKUP(HH$7,distance,$DA10)))^2),""),"") ->  | HR10: =IFERROR(IF(AND(HLOOKUP(HR$6,distance,$DA10)>0.5,HLOOKUP(HR$7,distance,$DA10)>0.5),SQRT(((HLOOKUP(HR$6,distance,$DA10)-HLOOKUP(HR$7,distance,$DA10)))^2),""),"") ->  | IB10: =IFERROR(IF(AND(HLOOKUP(IB$6,distance,$DA10)>0.5,HLOOKUP(IB$7,distance,$DA10)>0.5),SQRT(((HLOOKUP(IB$6,distance,$DA10)-HLOOKUP(IB$7,distance,$DA10)))^2),""),"") ->  | IL10: =IFERROR(IF(AND(HLOOKUP(IL$6,distance,$DA10)>0.5,HLOOKUP(IL$7,distance,$DA10)>0.5),SQRT(((HLOOKUP(IL$6,distance,$DA10)-HLOOKUP(IL$7,distance,$DA10)))^2),""),"") ->  | IV10: =IFERROR(IF(AND(HLOOKUP(IV$6,distance,$DA10)>0.5,HLOOKUP(IV$7,distance,$DA10)>0.5),SQRT(((HLOOKUP(IV$6,distance,$DA10)-HLOOKUP(IV$7,distance,$DA10)))^2),""),"") ->  | JF10: =IFERROR(IF(AND(HLOOKUP(JF$6,distance,$DA10)>0.5,HLOOKUP(JF$7,distance,$DA10)>0.5),SQRT(((HLOOKUP(JF$6,distance,$DA10)-HLOOKUP(JF$7,distance,$DA10)))^2),""),"") ->  | JP10: =IFERROR(IF(AND(HLOOKUP(JP$6,distance,$DA10)>0.5,HLOOKUP(JP$7,distance,$DA10)>0.5),SQRT(((HLOOKUP(JP$6,distance,$DA10)-HLOOKUP(JP$7,distance,$DA10)))^2),""),"") ->  | JZ10: =IFERROR(IF(AND(HLOOKUP(JZ$6,distance,$DA10)>0.5,HLOOKUP(JZ$7,distance,$DA10)>0.5),SQRT(((HLOOKUP(JZ$6,distance,$DA10)-HLOOKUP(JZ$7,distance,$DA10)))^2),""),"") ->  | KO10: =+KN9/KO9 -> 0.7398017064 | KP10: =+IF(DB10<>"",DB10^2,"") -> 25 | KQ10: =+IF(DC10<>"",DC10^2,"") ->  | NC10: =+IF(FO10<>"",FO10^2,"") ->  | PO10: =+IF(IA10<>"",IA10^2,"") -> 
C11: 2 | D11: B | E11: 9 | F11: 1 | BF11: 7 | BG11: 8 | BH11: 2 | CB11: 7 | CC11: 2 | CD11: 8 | DA11: =+DA10+1 -> 3 | DB11: 8 | KP11: =+IF(DB11<>"",DB11^2,"") -> 64
C12: 3 | D12: C | E12: 3 | F12: 7 | BF12: 8 | BG12: 6 | BH12: 3 | CB12: 8 | CC12: 4 | CD12: 7 | DA12: =+DA11+1 -> 4 | DB12: 4 | KP12: 16
C13: 4 | D13: D | E13: 8 | F13: 2 | BF13: 9 | BG13: 8 | BH13: 2 | CB13: 9 | CC13: 2 | CD13: 8 | DA13: 5 | DB13: 6 | KP13: 36 | NB13: =+IF(FN13<>"",FN13^2,"") ->  | PN13: =+IF(HZ13<>"",HZ13^2,"") -> 
C14: 5 | D14: E | E14: 2 | F14: 8 | BF14: 10 | BG14: 8 | BH14: 2 | CB14: 10 | CC14: 2 | CD14: 8 | DA14: 6 | DB14: 6 | KP14: 36 | KQ14: =+IF(DC14<>"",DC14^2,"") ->  | KR14: =+IF(DD14<>"",DD14^2,"") ->  | KS14: =+IF(DE14<>"",DE14^2,"") ->  | KT14: =+IF(DF14<>"",DF14^2,"") ->  | KU14: =+IF(DG14<>"",DG14^2,"") ->  | KV14: =+IF(DH14<>"",DH14^2,"") ->  | KW14: =+IF(DI14<>"",DI14^2,"") ->  | KX14: =+IF(DJ14<>"",DJ14^2,"") ->  | KY14: =+IF(DK14<>"",DK14^2,"") ->  | KZ14: =+IF(DL14<>"",DL14^2,"") ->  | LA14: =+IF(DM14<>"",DM14^2,"") ->  | LB14: =+IF(DN14<>"",DN14^2,"") ->  | LC14: =+IF(DO14<>"",DO14^2,"") ->  | LD14: =+IF(DP14<>"",DP14^2,"") ->  | LE14: =+IF(DQ14<>"",DQ14^2,"") ->  | LF14: =+IF(DR14<>"",DR14^2,"") ->  | LG14: =+IF(DS14<>"",DS14^2,"") ->  | LH14: =+IF(DT14<>"",DT14^2,"") ->  | LI14: =+IF(DU14<>"",DU14^2,"") ->  | LJ14: =+IF(DV14<>"",DV14^2,"") ->  | LK14: =+IF(DW14<>"",DW14^2,"") ->  | LL14: =+IF(DX14<>"",DX14^2,"") ->  | LM14: =+IF(DY14<>"",DY14^2,"") ->  | LN14: =+IF(DZ14<>"",DZ14^2,"") ->  | LO14: =+IF(EA14<>"",EA14^2,"") ->  | LP14: =+IF(EB14<>"",EB14^2,"") ->  | LQ14: =+IF(EC14<>"",EC14^2,"") ->  | LR14: =+IF(ED14<>"",ED14^2,"") ->  | LS14: =+IF(EE14<>"",EE14^2,"") ->  | LT14: =+IF(EF14<>"",EF14^2,"") ->  | LU14: =+IF(EG14<>"",EG14^2,"") ->  | LV14: =+IF(EH14<>"",EH14^2,"") ->  | LW14: =+IF(EI14<>"",EI14^2,"") ->  | LX14: =+IF(EJ14<>"",EJ14^2,"") ->  | LY14: =+IF(EK14<>"",EK14^2,"") ->  | LZ14: =+IF(EL14<>"",EL14^2,"") ->  | MA14: =+IF(EM14<>"",EM14^2,"") ->  | MB14: =+IF(EN14<>"",EN14^2,"") ->  | MC14: =+IF(EO14<>"",EO14^2,"") ->  | MD14: =+IF(EP14<>"",EP14^2,"") ->  | ME14: =+IF(EQ14<>"",EQ14^2,"") ->  | MF14: =+IF(ER14<>"",ER14^2,"") ->  | MG14: =+IF(ES14<>"",ES14^2,"") ->  | MH14: =+IF(ET14<>"",ET14^2,"") ->  | MI14: =+IF(EU14<>"",EU14^2,"") ->  | MJ14: =+IF(EV14<>"",EV14^2,"") ->  | MK14: =+IF(EW14<>"",EW14^2,"") ->  | ML14: =+IF(EX14<>"",EX14^2,"") ->  | MM14: =+IF(EY14<>"",EY14^2,"") ->  | MN14: =+IF(EZ14<>"",EZ14^2,"") ->  | MO14: =+IF(FA14<>"",FA14^2,"") ->  | MP14: =+IF(FB14<>"",FB14^2,"") ->  | MQ14: =+IF(FC14<>"",FC14^2,"") ->  | MR14: =+IF(FD14<>"",FD14^2,"") ->  | MS14: =+IF(FE14<>"",FE14^2,"") ->  | MT14: =+IF(FF14<>"",FF14^2,"") ->  | MU14: =+IF(FG14<>"",FG14^2,"") ->  | MV14: =+IF(FH14<>"",FH14^2,"") ->  | MW14: =+IF(FI14<>"",FI14^2,"") ->  | MX14: =+IF(FJ14<>"",FJ14^2,"") ->  | MY14: =+IF(FK14<>"",FK14^2,"") ->  | MZ14: =+IF(FL14<>"",FL14^2,"") ->  | NA14: =+IF(FM14<>"",FM14^2,"") ->  | NC14: =+IF(FO14<>"",FO14^2,"") ->  | ND14: =+IF(FP14<>"",FP14^2,"") ->  | NE14: =+IF(FQ14<>"",FQ14^2,"") ->  | NF14: =+IF(FR14<>"",FR14^2,"") ->  | NG14: =+IF(FS14<>"",FS14^2,"") ->  | NH14: =+IF(FT14<>"",FT14^2,"") ->  | NI14: =+IF(FU14<>"",FU14^2,"") ->  | NJ14: =+IF(FV14<>"",FV14^2,"") ->  | NK14: =+IF(FW14<>"",FW14^2,"") ->  | NL14: =+IF(FX14<>"",FX14^2,"") ->  | NM14: =+IF(FY14<>"",FY14^2,"") ->  | NN14: =+IF(FZ14<>"",FZ14^2,"") ->  | NO14: =+IF(GA14<>"",GA14^2,"") ->  | NP14: =+IF(GB14<>"",GB14^2,"") ->  | NQ14: =+IF(GC14<>"",GC14^2,"") ->  | NR14: =+IF(GD14<>"",GD14^2,"") ->  | NS14: =+IF(GE14<>"",GE14^2,"") ->  | NT14: =+IF(GF14<>"",GF14^2,"") ->  | NU14: =+IF(GG14<>"",GG14^2,"") ->  | NV14: =+IF(GH14<>"",GH14^2,"") ->  | NW14: =+IF(GI14<>"",GI14^2,"") ->  | NX14: =+IF(GJ14<>"",GJ14^2,"") ->  | NY14: =+IF(GK14<>"",GK14^2,"") ->  | NZ14: =+IF(GL14<>"",GL14^2,"") ->  | OA14: =+IF(GM14<>"",GM14^2,"") ->  | OB14: =+IF(GN14<>"",GN14^2,"") ->  | OC14: =+IF(GO14<>"",GO14^2,"") ->  | OD14: =+IF(GP14<>"",GP14^2,"") ->  | OE14: =+IF(GQ14<>"",GQ14^2,"") ->  | OF14: =+IF(GR14<>"",GR14^2,"") ->  | OG14: =+IF(GS14<>"",GS14^2,"") ->  | OH14: =+IF(GT14<>"",GT14^2,"") ->  | OI14: =+IF(GU14<>"",GU14^2,"") ->  | OJ14: =+IF(GV14<>"",GV14^2,"") ->  | OK14: =+IF(GW14<>"",GW14^2,"") ->  | OL14: =+IF(GX14<>"",GX14^2,"") ->  | OM14: =+IF(GY14<>"",GY14^2,"") ->  | ON14: =+IF(GZ14<>"",GZ14^2,"") ->  | OO14: =+IF(HA14<>"",HA14^2,"") ->  | OP14: =+IF(HB14<>"",HB14^2,"") ->  | OQ14: =+IF(HC14<>"",HC14^2,"") ->  | OR14: =+IF(HD14<>"",HD14^2,"") ->  | OS14: =+IF(HE14<>"",HE14^2,"") ->  | OT14: =+IF(HF14<>"",HF14^2,"") ->  | OU14: =+IF(HG14<>"",HG14^2,"") ->  | OV14: =+IF(HH14<>"",HH14^2,"") ->  | OW14: =+IF(HI14<>"",HI14^2,"") ->  | OX14: =+IF(HJ14<>"",HJ14^2,"") ->  | OY14: =+IF(HK14<>"",HK14^2,"") ->  | OZ14: =+IF(HL14<>"",HL14^2,"") ->  | PA14: =+IF(HM14<>"",HM14^2,"") ->  | PB14: =+IF(HN14<>"",HN14^2,"") ->  | PC14: =+IF(HO14<>"",HO14^2,"") ->  | PD14: =+IF(HP14<>"",HP14^2,"") ->  | PE14: =+IF(HQ14<>"",HQ14^2,"") ->  | PF14: =+IF(HR14<>"",HR14^2,"") ->  | PG14: =+IF(HS14<>"",HS14^2,"") ->  | PH14: =+IF(HT14<>"",HT14^2,"") ->  | PI14: =+IF(HU14<>"",HU14^2,"") ->  | PJ14: =+IF(HV14<>"",HV14^2,"") ->  | PK14: =+IF(HW14<>"",HW14^2,"") ->  | PL14: =+IF(HX14<>"",HX14^2,"") ->  | PM14: =+IF(HY14<>"",HY14^2,"") ->  | PZ14: =+IF(IL14<>"",IL14^2,"") ->  | QA14: =+IF(IM14<>"",IM14^2,"") ->  | QB14: =+IF(IN14<>"",IN14^2,"") ->  | QC14: =+IF(IO14<>"",IO14^2,"") ->  | QD14: =+IF(IP14<>"",IP14^2,"") ->  | QE14: =+IF(IQ14<>"",IQ14^2,"") ->  | QF14: =+IF(IR14<>"",IR14^2,"") ->  | QG14: =+IF(IS14<>"",IS14^2,"") ->  | QH14: =+IF(IT14<>"",IT14^2,"") ->  | QI14: =+IF(IU14<>"",IU14^2,"") ->  | QJ14: =+IF(IV14<>"",IV14^2,"") ->  | QK14: =+IF(IW14<>"",IW14^2,"") ->  | QL14: =+IF(IX14<>"",IX14^2,"") ->  | QM14: =+IF(IY14<>"",IY14^2,"") ->  | QN14: =+IF(IZ14<>"",IZ14^2,"") ->  | QO14: =+IF(JA14<>"",JA14^2,"") ->  | QP14: =+IF(JB14<>"",JB14^2,"") ->  | QQ14: =+IF(JC14<>"",JC14^2,"") ->  | QR14: =+IF(JD14<>"",JD14^2,"") ->  | QS14: =+IF(JE14<>"",JE14^2,"") ->  | QT14: =+IF(JF14<>"",JF14^2,"") ->  | QU14: =+IF(JG14<>"",JG14^2,"") ->  | QV14: =+IF(JH14<>"",JH14^2,"") ->  | QW14: =+IF(JI14<>"",JI14^2,"") ->  | QX14: =+IF(JJ14<>"",JJ14^2,"") ->  | QY14: =+IF(JK14<>"",JK14^2,"") ->  | QZ14: =+IF(JL14<>"",JL14^2,"") ->  | RA14: =+IF(JM14<>"",JM14^2,"") ->  | RB14: =+IF(JN14<>"",JN14^2,"") ->  | RC14: =+IF(JO14<>"",JO14^2,"") ->  | RD14: =+IF(JP14<>"",JP14^2,"") ->  | RE14: =+IF(JQ14<>"",JQ14^2,"") ->  | RF14: =+IF(JR14<>"",JR14^2,"") ->  | RG14: =+IF(JS14<>"",JS14^2,"") ->  | RH14: =+IF(JT14<>"",JT14^2,"") ->  | RI14: =+IF(JU14<>"",JU14^2,"") ->  | RJ14: =+IF(JV14<>"",JV14^2,"") ->  | RK14: =+IF(JW14<>"",JW14^2,"") ->  | RL14: =+IF(JX14<>"",JX14^2,"") ->  | RM14: =+IF(JY14<>"",JY14^2,"") ->  | RN14: =+IF(JZ14<>"",JZ14^2,"") ->  | RO14: =+IF(KA14<>"",KA14^2,"") ->  | RP14: =+IF(KB14<>"",KB14^2,"") ->  | RQ14: =+IF(KC14<>"",KC14^2,"") ->  | RR14: =+IF(KD14<>"",KD14^2,"") ->  | RS14: =+IF(KE14<>"",KE14^2,"") ->  | RT14: =+IF(KF14<>"",KF14^2,"") ->  | RU14: =+IF(KG14<>"",KG14^2,"") ->  | RV14: =+IF(KH14<>"",KH14^2,"") ->  | RW14: =+IF(KI14<>"",KI14^2,"") -> 
C15: 6 | D15: F | E15: 3 | F15: 7.5 | BF15: 11 | BG15: 2 | BH15: 8 | CB15: 11 | CC15: 8 | CD15: 2 | DA15: 7 | DB15: 4.5 | KP15: 20.25 | PO15: =+IF(IA15<>"",IA15^2,"") ->  | PP15: =+IF(IB15<>"",IB15^2,"") ->  | PQ15: =+IF(IC15<>"",IC15^2,"") ->  | PR15: =+IF(ID15<>"",ID15^2,"") ->  | PS15: =+IF(IE15<>"",IE15^2,"") ->  | PT15: =+IF(IF15<>"",IF15^2,"") ->  | PU15: =+IF(IG15<>"",IG15^2,"") ->  | PV15: =+IF(IH15<>"",IH15^2,"") ->  | PW15: =+IF(II15<>"",II15^2,"") ->  | PX15: =+IF(IJ15<>"",IJ15^2,"") ->  | PY15: =+IF(IK15<>"",IK15^2,"") -> 
C16: 7 | D16: G | E16: 8 | F16: 2 | BF16: 12 | BG16: 6 | BH16: 1 | CB16: 12 | CC16: 4 | CD16: 9 | DA16: 8 | DB16: 6 | KP16: 36
C17: 8 | D17: H | E17: 6 | F17: 3 | BF17: 13 | BG17: 6 | BH17: 3 | CB17: 13 | CC17: 4 | CD17: 7 | DA17: 9 | DB17: 3 | KP17: 9
C18: 9 | D18: I | E18: 8 | F18: 2 | BF18: 14 | BG18: 8 | BH18: 3 | CB18: 14 | CC18: 2 | CD18: 7 | DA18: 10 | DB18: 6 | KP18: 36
C19: 10 | D19: J | E19: 8 | F19: 2 | BF19: 15 | BG19: 6 | BH19: 2 | CB19: 15 | CC19: 4 | CD19: 8 | DA19: 11 | DB19: 6 | KP19: 36
C20: 11 | D20: K | E20: 2 | F20: 8 | BF20: 16 | BG20: 1 | BH20: 9 | CB20: 16 | CC20: 9 | CD20: 1 | DA20: 12 | DB20: =IFERROR(IF(AND(HLOOKUP(DB$6,distance,$DA20)>0.5,HLOOKUP(DB$7,distance,$DA20)>0.5),SQRT(((HLOOKUP(DB$6,distance,$DA20)-HLOOKUP(DB$7,distance,$DA20)))^2),""),"") -> 6 | DL20: =IFERROR(IF(AND(HLOOKUP(DL$6,distance,$DA20)>0.5,HLOOKUP(DL$7,distance,$DA20)>0.5),SQRT(((HLOOKUP(DL$6,distance,$DA20)-HLOOKUP(DL$7,distance,$DA20)))^2),""),"") ->  | DV20: =IFERROR(IF(AND(HLOOKUP(DV$6,distance,$DA20)>0.5,HLOOKUP(DV$7,distance,$DA20)>0.5),SQRT(((HLOOKUP(DV$6,distance,$DA20)-HLOOKUP(DV$7,distance,$DA20)))^2),""),"") ->  | EF20: =IFERROR(IF(AND(HLOOKUP(EF$6,distance,$DA20)>0.5,HLOOKUP(EF$7,distance,$DA20)>0.5),SQRT(((HLOOKUP(EF$6,distance,$DA20)-HLOOKUP(EF$7,distance,$DA20)))^2),""),"") ->  | EP20: =IFERROR(IF(AND(HLOOKUP(EP$6,distance,$DA20)>0.5,HLOOKUP(EP$7,distance,$DA20)>0.5),SQRT(((HLOOKUP(EP$6,distance,$DA20)-HLOOKUP(EP$7,distance,$DA20)))^2),""),"") ->  | EZ20: =IFERROR(IF(AND(HLOOKUP(EZ$6,distance,$DA20)>0.5,HLOOKUP(EZ$7,distance,$DA20)>0.5),SQRT(((HLOOKUP(EZ$6,distance,$DA20)-HLOOKUP(EZ$7,distance,$DA20)))^2),""),"") ->  | FJ20: =IFERROR(IF(AND(HLOOKUP(FJ$6,distance,$DA20)>0.5,HLOOKUP(FJ$7,distance,$DA20)>0.5),SQRT(((HLOOKUP(FJ$6,distance,$DA20)-HLOOKUP(FJ$7,distance,$DA20)))^2),""),"") ->  | FT20: =IFERROR(IF(AND(HLOOKUP(FT$6,distance,$DA20)>0.5,HLOOKUP(FT$7,distance,$DA20)>0.5),SQRT(((HLOOKUP(FT$6,distance,$DA20)-HLOOKUP(FT$7,distance,$DA20)))^2),""),"") ->  | GD20: =IFERROR(IF(AND(HLOOKUP(GD$6,distance,$DA20)>0.5,HLOOKUP(GD$7,distance,$DA20)>0.5),SQRT(((HLOOKUP(GD$6,distance,$DA20)-HLOOKUP(GD$7,distance,$DA20)))^2),""),"") ->  | GN20: =IFERROR(IF(AND(HLOOKUP(GN$6,distance,$DA20)>0.5,HLOOKUP(GN$7,distance,$DA20)>0.5),SQRT(((HLOOKUP(GN$6,distance,$DA20)-HLOOKUP(GN$7,distance,$DA20)))^2),""),"") ->  | GX20: =IFERROR(IF(AND(HLOOKUP(GX$6,distance,$DA20)>0.5,HLOOKUP(GX$7,distance,$DA20)>0.5),SQRT(((HLOOKUP(GX$6,distance,$DA20)-HLOOKUP(GX$7,distance,$DA20)))^2),""),"") ->  | HH20: =IFERROR(IF(AND(HLOOKUP(HH$6,distance,$DA20)>0.5,HLOOKUP(HH$7,distance,$DA20)>0.5),SQRT(((HLOOKUP(HH$6,distance,$DA20)-HLOOKUP(HH$7,distance,$DA20)))^2),""),"") ->  | HR20: =IFERROR(IF(AND(HLOOKUP(HR$6,distance,$DA20)>0.5,HLOOKUP(HR$7,distance,$DA20)>0.5),SQRT(((HLOOKUP(HR$6,distance,$DA20)-HLOOKUP(HR$7,distance,$DA20)))^2),""),"") ->  | IB20: =IFERROR(IF(AND(HLOOKUP(IB$6,distance,$DA20)>0.5,HLOOKUP(IB$7,distance,$DA20)>0.5),SQRT(((HLOOKUP(IB$6,distance,$DA20)-HLOOKUP(IB$7,distance,$DA20)))^2),""),"") ->  | IL20: =IFERROR(IF(AND(HLOOKUP(IL$6,distance,$DA20)>0.5,HLOOKUP(IL$7,distance,$DA20)>0.5),SQRT(((HLOOKUP(IL$6,distance,$DA20)-HLOOKUP(IL$7,distance,$DA20)))^2),""),"") ->  | IV20: =IFERROR(IF(AND(HLOOKUP(IV$6,distance,$DA20)>0.5,HLOOKUP(IV$7,distance,$DA20)>0.5),SQRT(((HLOOKUP(IV$6,distance,$DA20)-HLOOKUP(IV$7,distance,$DA20)))^2),""),"") ->  | JF20: =IFERROR(IF(AND(HLOOKUP(JF$6,distance,$DA20)>0.5,HLOOKUP(JF$7,distance,$DA20)>0.5),SQRT(((HLOOKUP(JF$6,distance,$DA20)-HLOOKUP(JF$7,distance,$DA20)))^2),""),"") ->  | JP20: =IFERROR(IF(AND(HLOOKUP(JP$6,distance,$DA20)>0.5,HLOOKUP(JP$7,distance,$DA20)>0.5),SQRT(((HLOOKUP(JP$6,distance,$DA20)-HLOOKUP(JP$7,distance,$DA20)))^2),""),"") ->  | JZ20: =IFERROR(IF(AND(HLOOKUP(JZ$6,distance,$DA20)>0.5,HLOOKUP(JZ$7,distance,$DA20)>0.5),SQRT(((HLOOKUP(JZ$6,distance,$DA20)-HLOOKUP(JZ$7,distance,$DA20)))^2),""),"") ->  | KP20: 36
C21: 12 | D21: L | E21: 6 | F21: 1 | BF21: 17 | BG21: 6 | BH21: 5 | CB21: 17 | CC21: 4 | CD21: =IF(BH21<>"",$CE$3-BH21,"") -> 5 | CE21: =IF(BI21<>"",$CE$3-BI21,"") ->  | CF21: =IF(BJ21<>"",$CE$3-BJ21,"") ->  | CG21: =IF(BK21<>"",$CE$3-BK21,"") ->  | CH21: =IF(BL21<>"",$CE$3-BL21,"") ->  | CI21: =IF(BM21<>"",$CE$3-BM21,"") ->  | CJ21: =IF(BN21<>"",$CE$3-BN21,"") ->  | CK21: =IF(BO21<>"",$CE$3-BO21,"") ->  | CL21: =IF(BP21<>"",$CE$3-BP21,"") ->  | CM21: =IF(BQ21<>"",$CE$3-BQ21,"") ->  | DA21: 13 | DB21: 5 | KP21: 25
C22: =+C21+1 -> 13 | D22: M | E22: 6 | F22: 3 | BF22: 18 | BG22: 6 | BH22: 5 | CB22: 18 | CC22: 4 | CD22: 5 | DA22: 14 | DB22: 3 | KP22: 9
C23: =+C22+1 -> 14 | D23: N | E23: 8 | F23: 3 | BF23: 19 | BG23: 8 | BH23: 9 | CB23: 19 | CC23: 2 | CD23: 1 | DA23: 15 | DB23: 5 | KP23: 25
C24: 15 | D24: O | E24: 6 | F24: 2 | BF24: 20 | BG24: 7 | BH24: 3 | CB24: 20 | CC24: 3 | CD24: 7 | DA24: 16 | DB24: 4 | KP24: 16
C25: 16 | D25: P | E25: 1 | F25: 9 | DA25: 17 | DB25: 8 | KP25: 64
C26: 17 | D26: Q | E26: 6 | F26: 5 | DA26: 18 | DB26: 1 | KP26: 1
C27: 18 | D27: R | E27: 6 | F27: 5 | CC27: Convert to distance | DA27: 19 | DB27: 1 | KP27: 1
C28: 19 | D28: S | E28: 8 | F28: 9 | BG28: BRAND ==> | CC28: =MIN(brandcomp) -> 1 | CD28: =MAX(brandcomp) -> 9 | CE28: =+CD28+CC28 -> 10 | DA28: 20 | DB28: 1 | KP28: 1
C29: 20 | D29: T | E29: 7 | F29: 3 | BF29: ATTRIBUTE | BG29: 1 | BH29: 2 | BI29: 3 | BJ29: 4 | BK29: 5 | BL29: 6 | BM29: 7 | BN29: 8 | BO29: 9 | BP29: 10 | BQ29: 11 | BR29: 12 | BS29: 13 | BT29: 14 | BU29: 15 | BV29: 16 | BW29: 17 | BX29: 18 | BY29: 19 | BZ29: 20 | CC29: 1 | CD29: 2 | CE29: 3 | CF29: 4 | CG29: 5 | CH29: 6 | CI29: 7 | CJ29: 8 | CK29: 9 | CL29: 10 | CM29: 11 | CN29: 12 | CO29: 13 | CP29: 14 | CQ29: 15 | CR29: 16 | CS29: 17 | CT29: 18 | CU29: 19 | CV29: 20 | DA29: 21 | DB29: 4 | KP29: =+IF(DB29<>"",DB29^2,"") -> 16
BF30: 1 | BG30: =INDEX(input,BG$4,$BF5) -> 1 | BH30: 9 | BI30: 3 | BJ30: 8 | BK30: 2 | BL30: 3 | BM30: 8 | BN30: 6 | BO30: 8 | BP30: 8 | BQ30: 2 | BR30: 6 | BS30: 6 | BT30: 8 | BU30: 6 | BV30: 1 | BW30: 6 | BX30: 6 | BY30: 8 | BZ30: 7 | CB30: 1 | CC30: =IF(BG30<>"",$CE$3-BG30,"") -> 9 | CD30: =IF(BH30<>"",$CE$3-BH30,"") -> 1 | CE30: =IF(BI30<>"",$CE$3-BI30,"") -> 7 | CF30: =IF(BJ30<>"",$CE$3-BJ30,"") -> 2 | CG30: =IF(BK30<>"",$CE$3-BK30,"") -> 8 | CH30: =IF(BL30<>"",$CE$3-BL30,"") -> 7 | CI30: =IF(BM30<>"",$CE$3-BM30,"") -> 2 | CJ30: =IF(BN30<>"",$CE$3-BN30,"") -> 4 | CK30: =IF(BO30<>"",$CE$3-BO30,"") -> 2 | CL30: =IF(BP30<>"",$CE$3-BP30,"") -> 2 | CM30: =IF(BQ30<>"",$CE$3-BQ30,"") -> 8 | CN30: =IF(BR30<>"",$CE$3-BR30,"") -> 4 | CO30: =IF(BS30<>"",$CE$3-BS30,"") -> 4 | CP30: =IF(BT30<>"",$CE$3-BT30,"") -> 2 | CQ30: =IF(BU30<>"",$CE$3-BU30,"") -> 4 | CR30: =IF(BV30<>"",$CE$3-BV30,"") -> 9 | CS30: =IF(BW30<>"",$CE$3-BW30,"") -> 4 | CT30: =IF(BX30<>"",$CE$3-BX30,"") -> 4 | CU30: =IF(BY30<>"",$CE$3-BY30,"") -> 2 | CV30: =IF(BZ30<>"",$CE$3-BZ30,"") -> 3 | CY30: Min | CZ30: Max | KP30: =SUM(KP10:KP29) -> 508.25 | KQ30: =SUM(KQ10:KQ29) -> 0 | KR30: 0 | KS30: 0 | KT30: 0 | KU30: 0 | KV30: 0 | KW30: 0 | KX30: 0 | KY30: 0 | KZ30: 0 | LA30: 0 | LB30: 0 | LC30: 0 | LD30: 0 | LE30: 0 | LF30: 0 | LG30: 0 | LH30: 0 | LI30: 0 | LJ30: 0 | LK30: 0 | LL30: 0 | LM30: 0 | LN30: 0 | LO30: 0 | LP30: 0 | LQ30: 0 | LR30: 0 | LS30: 0 | LT30: 0 | LU30: 0 | LV30: 0 | LW30: 0 | LX30: 0 | LY30: 0 | LZ30: 0 | MA30: 0 | MB30: 0 | MC30: 0 | MD30: 0 | ME30: 0 | MF30: 0 | MG30: 0 | MH30: 0 | MI30: 0 | MJ30: 0 | MK30: 0 | ML30: 0 | MM30: 0 | MN30: 0 | MO30: 0 | MP30: 0 | MQ30: 0 | MR30: 0 | MS30: 0 | MT30: 0 | MU30: 0 | MV30: 0 | MW30: 0 | MX30: 0 | MY30: 0 | MZ30: 0 | NA30: 0 | NB30: 0 | NC30: =SUM(NC10:NC29) -> 0 | ND30: 0 | NE30: 0 | NF30: 0 | NG30: 0 | NH30: 0 | NI30: 0 | NJ30: 0 | NK30: 0 | NL30: 0 | NM30: 0 | NN30: 0 | NO30: 0 | NP30: 0 | NQ30: 0 | NR30: 0 | NS30: 0 | NT30: 0 | NU30: 0 | NV30: 0 | NW30: 0 | NX30: 0 | NY30: 0 | NZ30: 0 | OA30: 0 | OB30: 0 | OC30: 0 | OD30: 0 | OE30: 0 | OF30: 0 | OG30: 0 | OH30: 0 | OI30: 0 | OJ30: 0 | OK30: 0 | OL30: 0 | OM30: 0 | ON30: 0 | OO30: 0 | OP30: 0 | OQ30: 0 | OR30: 0 | OS30: 0 | OT30: 0 | OU30: 0 | OV30: 0 | OW30: 0 | OX30: 0 | OY30: 0 | OZ30: 0 | PA30: 0 | PB30: 0 | PC30: 0 | PD30: 0 | PE30: 0 | PF30: 0 | PG30: 0 | PH30: 0 | PI30: 0 | PJ30: 0 | PK30: 0 | PL30: 0 | PM30: 0 | PN30: 0 | PO30: =SUM(PO10:PO29) -> 0 | PP30: 0 | PQ30: 0 | PR30: 0 | PS30: 0 | PT30: 0 | PU30: 0 | PV30: 0 | PW30: 0 | PX30: 0 | PY30: 0 | PZ30: 0 | QA30: 0 | QB30: 0 | QC30: 0 | QD30: 0 | QE30: 0 | QF30: 0 | QG30: 0 | QH30: 0 | QI30: 0 | QJ30: 0 | QK30: 0 | QL30: 0 | QM30: 0 | QN30: 0 | QO30: 0 | QP30: 0 | QQ30: 0 | QR30: 0 | QS30: 0 | QT30: 0 | QU30: 0 | QV30: 0 | QW30: 0 | QX30: 0 | QY30: 0 | QZ30: 0 | RA30: 0 | RB30: 0 | RC30: 0 | RD30: 0 | RE30: 0 | RF30: 0 | RG30: 0 | RH30: 0 | RI30: 0 | RJ30: 0 | RK30: 0 | RL30: 0 | RM30: 0 | RN30: 0 | RO30: 0 | RP30: 0 | RQ30: 0 | RR30: 0 | RS30: 0 | RT30: 0 | RU30: 0 | RV30: 0 | RW30: 0
B31: STEP FOUR | D31: Enter the attribute score (using a 1-9 scale) for each brand in the above table | BF31: 2 | BG31: =INDEX(input,BG$4,$BF6) -> 6 | BH31: 1 | BI31: 7 | BJ31: 2 | BK31: 8 | BL31: 7.5 | BM31: 2 | BN31: 3 | BO31: 2 | BP31: 2 | BQ31: 8 | BR31: 1 | BS31: 3 | BT31: 3 | BU31: 2 | BV31: 9 | BW31: 5 | BX31: 5 | BY31: 9 | BZ31: 3 | CB31: 2 | CC31: =IF(BG31<>"",$CE$3-BG31,"") -> 4 | CD31: 9 | CE31: 3 | CF31: 8 | CG31: 2 | CH31: 2.5 | CI31: 8 | CJ31: 7 | CK31: 8 | CL31: 8 | CM31: 2 | CN31: 9 | CO31: 7 | CP31: 7 | CQ31: 8 | CR31: 1 | CS31: 5 | CT31: 5 | CU31: 1 | CV31: 7 | CY31: =MIN($DB31:$KI31) -> 4.625 | CZ31: =MAX($DB31:$KI31) -> 4.625 | DA31: Average | DB31: =IFERROR(AVERAGE(DB10:DB29),"") -> 4.625 | DC31: =IFERROR(AVERAGE(DC10:DC29),"") ->  | FO31: =IFERROR(AVERAGE(FO10:FO29),"") ->  | IA31: =IFERROR(AVERAGE(IA10:IA29),"") ->  | KN31: Min | KO31: =MIN(KP$31:RW$31) -> 22.54440064 | KP31: =IF(KP30<>0,KP30^0.5,"") -> 22.54440064 | KQ31: =IF(KQ30<>0,KQ30^0.5,"") ->  | NC31: =IF(NC30<>0,NC30^0.5,"") ->  | PO31: =IF(PO30<>0,PO30^0.5,"") -> 
D32: The higher the number = the greater association that the brand has with that attribute | BF32: 3 | BG32: =INDEX(input,BG$4,$BF7) ->  | CB32: 3 | CY32: =+CC3 -> 1 | CZ32: =+CD3 -> 9 | DA32: Rescaled | DB32: =+DB33 ->  | DC32: =+DC33 ->  | FO32: =+FO33 ->  | IA32: =+IA33 ->  | KN32: Max | KO32: =MAX(KP$31:RW$31) -> 22.54440064 | KP32: =IFERROR((KP31-$KO31)*$KO35+1,"") ->  | KQ32: =IFERROR((KQ31-$KO31)*$KO35+1,"") ->  | NC32: =IFERROR((NC31-$KO31)*$KO35+1,"") ->  | PO32: =IFERROR((PO31-$KO31)*$KO35+1,"") -> 
D33: For example, 1 = no association with the attribute, 5 = some association and 9 = very high association | BF33: 4 | BG33: =INDEX(input,BG$4,$BF8) ->  | CB33: 4 | CX33: Diff | CY33: =+CZ32-CY32 -> 8 | CZ33: =+CZ31-CY31 -> 0 | DA33: Squared | DB33: =+KP32 ->  | DC33: =+KQ32 ->  | FO33: =+NC32 ->  | IA33: =+PO32 ->  | KN33: =+CY32 -> 1 | KO33: =+CZ32 -> 9
BF34: 5 | BG34: =INDEX(input,BG$4,$BF9) ->  | CB34: 5 | CZ34: =+CY33/CZ33 ->  | KM34: Diff | KN34: =+KO33-KN33 -> 8 | KO34: =+KO32-KO31 -> 0
D35: Important Note for Apple Mac users | O35: ATTENTION APPLE MAC USERS!!! | BF35: 6 | BG35: =INDEX(input,BG$4,$BF10) ->  | CB35: 6 | DB35: Difference between brands, based on attributes | KO35: =+KN34/KO34 ->  | KP35: Difference between brands, based on attributes | KU35: See above for sums
B36: STEP FIVE | D36: Ensure that your spreadsheet has the 'Solver add-in' loaded | O36: Do not follow the instructions in Step Five | BF36: 7 | BG36: =INDEX(input,BG$4,$BF11) ->  | CB36: 7 | DA36: 2 | DB36: =IFERROR(IF(AND(HLOOKUP(DB$6,branddistance,$DA36)>0.5,HLOOKUP(DB$7,branddistance,$DA36)>0.5),SQRT(((HLOOKUP(DB$6,branddistance,$DA36)-HLOOKUP(DB$7,branddistance,$DA36)))^2),""),"") -> 8 | DC36: 2 | DD36: 7 | DE36: 1 | DF36: 2 | DG36: 7 | DH36: 5 | DI36: 7 | DJ36: 7 | DK36: 1 | DL36: =IFERROR(IF(AND(HLOOKUP(DL$6,branddistance,$DA36)>0.5,HLOOKUP(DL$7,branddistance,$DA36)>0.5),SQRT(((HLOOKUP(DL$6,branddistance,$DA36)-HLOOKUP(DL$7,branddistance,$DA36)))^2),""),"") -> 5 | DM36: 5 | DN36: 7 | DO36: 5 | DP36: 0 | DQ36: 5 | DR36: 5 | DS36: 7 | DT36: 6 | DU36: 6 | DV36: =IFERROR(IF(AND(HLOOKUP(DV$6,branddistance,$DA36)>0.5,HLOOKUP(DV$7,branddistance,$DA36)>0.5),SQRT(((HLOOKUP(DV$6,branddistance,$DA36)-HLOOKUP(DV$7,branddistance,$DA36)))^2),""),"") -> 1 | DW36: 7 | DX36: 6 | DY36: 1 | DZ36: 3 | EA36: 1 | EB36: 1 | EC36: 7 | ED36: 3 | EE36: 3 | EF36: =IFERROR(IF(AND(HLOOKUP(EF$6,branddistance,$DA36)>0.5,HLOOKUP(EF$7,branddistance,$DA36)>0.5),SQRT(((HLOOKUP(EF$6,branddistance,$DA36)-HLOOKUP(EF$7,branddistance,$DA36)))^2),""),"") -> 1 | EG36: 3 | EH36: 8 | EI36: 3 | EJ36: 3 | EK36: 1 | EL36: 2 | EM36: 5 | EN36: 1 | EO36: 0 | EP36: =IFERROR(IF(AND(HLOOKUP(EP$6,branddistance,$DA36)>0.5,HLOOKUP(EP$7,branddistance,$DA36)>0.5),SQRT(((HLOOKUP(EP$6,branddistance,$DA36)-HLOOKUP(EP$7,branddistance,$DA36)))^2),""),"") -> 5 | EQ36: 3 | ER36: 5 | ES36: 5 | ET36: 1 | EU36: 3 | EV36: 3 | EW36: 5 | EX36: 3 | EY36: 2 | EZ36: =IFERROR(IF(AND(HLOOKUP(EZ$6,branddistance,$DA36)>0.5,HLOOKUP(EZ$7,branddistance,$DA36)>0.5),SQRT(((HLOOKUP(EZ$6,branddistance,$DA36)-HLOOKUP(EZ$7,branddistance,$DA36)))^2),""),"") -> 3 | FA36: 3 | FB36: 5 | FC36: 4 | FD36: 6 | FE36: 5 | FF36: 0 | FG36: 2 | FH36: 0 | FI36: 0 | FJ36: =IFERROR(IF(AND(HLOOKUP(FJ$6,branddistance,$DA36)>0.5,HLOOKUP(FJ$7,branddistance,$DA36)>0.5),SQRT(((HLOOKUP(FJ$6,branddistance,$DA36)-HLOOKUP(FJ$7,branddistance,$DA36)))^2),""),"") -> 6 | FK36: 2 | FL36: 2 | FM36: 0 | FN36: 2 | FO36: 7 | FP36: 2 | FQ36: 2 | FR36: 0 | FS36: 1 | FT36: =IFERROR(IF(AND(HLOOKUP(FT$6,branddistance,$DA36)>0.5,HLOOKUP(FT$7,branddistance,$DA36)>0.5),SQRT(((HLOOKUP(FT$6,branddistance,$DA36)-HLOOKUP(FT$7,branddistance,$DA36)))^2),""),"") -> 1 | FU36: 6 | FV36: 4 | FW36: 6 | FX36: 6 | FY36: 0 | FZ36: 4 | GA36: 4 | GB36: 6 | GC36: 4 | GD36: =IFERROR(IF(AND(HLOOKUP(GD$6,branddistance,$DA36)>0.5,HLOOKUP(GD$7,branddistance,$DA36)>0.5),SQRT(((HLOOKUP(GD$6,branddistance,$DA36)-HLOOKUP(GD$7,branddistance,$DA36)))^2),""),"") -> 1 | GE36: 4 | GF36: 4 | GG36: 6 | GH36: 5 | GI36: 5 | GJ36: 3 | GK36: 5 | GL36: 5 | GM36: 1 | GN36: =IFERROR(IF(AND(HLOOKUP(GN$6,branddistance,$DA36)>0.5,HLOOKUP(GN$7,branddistance,$DA36)>0.5),SQRT(((HLOOKUP(GN$6,branddistance,$DA36)-HLOOKUP(GN$7,branddistance,$DA36)))^2),""),"") -> 3 | GO36: 3 | GP36: 5 | GQ36: 3 | GR36: 2 | GS36: 3 | GT36: 3 | GU36: 5 | GV36: 4 | GW36: 2 | GX36: =IFERROR(IF(AND(HLOOKUP(GX$6,branddistance,$DA36)>0.5,HLOOKUP(GX$7,branddistance,$DA36)>0.5),SQRT(((HLOOKUP(GX$6,branddistance,$DA36)-HLOOKUP(GX$7,branddistance,$DA36)))^2),""),"") -> 0 | GY36: 0 | GZ36: 6 | HA36: 2 | HB36: 2 | HC36: 0 | HD36: 2 | HE36: 7 | HF36: 2 | HG36: 2 | HH36: =IFERROR(IF(AND(HLOOKUP(HH$6,branddistance,$DA36)>0.5,HLOOKUP(HH$7,branddistance,$DA36)>0.5),SQRT(((HLOOKUP(HH$6,branddistance,$DA36)-HLOOKUP(HH$7,branddistance,$DA36)))^2),""),"") -> 0 | HI36: 1 | HJ36: 2 | HK36: 2 | HL36: 4 | HM36: 0 | HN36: 0 | HO36: 2 | HP36: 0 | HQ36: 5 | HR36: =IFERROR(IF(AND(HLOOKUP(HR$6,branddistance,$DA36)>0.5,HLOOKUP(HR$7,branddistance,$DA36)>0.5),SQRT(((HLOOKUP(HR$6,branddistance,$DA36)-HLOOKUP(HR$7,branddistance,$DA36)))^2),""),"") -> 0 | HS36: 0 | HT36: 2 | HU36: 1 | HV36: 0 | HW36: 6 | HX36: 2 | HY36: 2 | HZ36: 0 | IA36: 2 | IB36: =IFERROR(IF(AND(HLOOKUP(IB$6,branddistance,$DA36)>0.5,HLOOKUP(IB$7,branddistance,$DA36)>0.5),SQRT(((HLOOKUP(IB$6,branddistance,$DA36)-HLOOKUP(IB$7,branddistance,$DA36)))^2),""),"") -> 7 | IC36: 2 | ID36: 2 | IE36: 0 | IF36: 1 | IG36: 6 | IH36: 2 | II36: 2 | IJ36: 0 | IK36: 2 | IL36: =IFERROR(IF(AND(HLOOKUP(IL$6,branddistance,$DA36)>0.5,HLOOKUP(IL$7,branddistance,$DA36)>0.5),SQRT(((HLOOKUP(IL$6,branddistance,$DA36)-HLOOKUP(IL$7,branddistance,$DA36)))^2),""),"") -> 7 | IM36: 2 | IN36: 2 | IO36: 0 | IP36: 1 | IQ36: 4 | IR36: 4 | IS36: 6 | IT36: 4 | IU36: 1 | IV36: =IFERROR(IF(AND(HLOOKUP(IV$6,branddistance,$DA36)>0.5,HLOOKUP(IV$7,branddistance,$DA36)>0.5),SQRT(((HLOOKUP(IV$6,branddistance,$DA36)-HLOOKUP(IV$7,branddistance,$DA36)))^2),""),"") -> 4 | IW36: 4 | IX36: 6 | IY36: 5 | IZ36: 0 | JA36: 2 | JB36: 0 | JC36: 5 | JD36: 0 | JE36: 0 | JF36: =IFERROR(IF(AND(HLOOKUP(JF$6,branddistance,$DA36)>0.5,HLOOKUP(JF$7,branddistance,$DA36)>0.5),SQRT(((HLOOKUP(JF$6,branddistance,$DA36)-HLOOKUP(JF$7,branddistance,$DA36)))^2),""),"") -> 2 | JG36: 1 | JH36: 2 | JI36: 0 | JJ36: 5 | JK36: 0 | JL36: 0 | JM36: 2 | JN36: 1 | JO36: 2 | JP36: =IFERROR(IF(AND(HLOOKUP(JP$6,branddistance,$DA36)>0.5,HLOOKUP(JP$7,branddistance,$DA36)>0.5),SQRT(((HLOOKUP(JP$6,branddistance,$DA36)-HLOOKUP(JP$7,branddistance,$DA36)))^2),""),"") -> 7 | JQ36: 2 | JR36: 2 | JS36: 0 | JT36: 1 | JU36: 5 | JV36: 0 | JW36: 0 | JX36: 2 | JY36: 1 | JZ36: =IFERROR(IF(AND(HLOOKUP(JZ$6,branddistance,$DA36)>0.5,HLOOKUP(JZ$7,branddistance,$DA36)>0.5),SQRT(((HLOOKUP(JZ$6,branddistance,$DA36)-HLOOKUP(JZ$7,branddistance,$DA36)))^2),""),"") -> 5 | KA36: 5 | KB36: 7 | KC36: 6 | KD36: 0 | KE36: 2 | KF36: 1 | KG36: 2 | KH36: 1 | KI36: 1 | KO36: 1 | KP36: =+IF(DB36<>"",DB36^2,"") -> 64 | KQ36: =+IF(DC36<>"",DC36^2,"") -> 4 | KR36: 49 | KS36: 1 | KT36: 4 | KU36: 49 | KV36: 25 | KW36: 49 | KX36: 49 | KY36: 1 | KZ36: 25 | LA36: 25 | LB36: 49 | LC36: 25 | LD36: 0 | LE36: 25 | LF36: 25 | LG36: =+IF(DS36<>"",DS36^2,"") -> 49 | LH36: 36 | LI36: 36 | LJ36: 1 | LK36: 49 | LL36: 36 | LM36: 1 | LN36: 9 | LO36: 1 | LP36: 1 | LQ36: 49 | LR36: 9 | LS36: 9 | LT36: 1 | LU36: 9 | LV36: 64 | LW36: =+IF(EI36<>"",EI36^2,"") -> 9 | LX36: 9 | LY36: 1 | LZ36: 4 | MA36: 25 | MB36: 1 | MC36: 0 | MD36: 25 | ME36: 9 | MF36: 25 | MG36: 25 | MH36: 1 | MI36: 9 | MJ36: 9 | MK36: 25 | ML36: 9 | MM36: =+IF(EY36<>"",EY36^2,"") -> 4 | MN36: 9 | MO36: 9 | MP36: 25 | MQ36: 16 | MR36: 36 | MS36: 25 | MT36: 0 | MU36: 4 | MV36: 0 | MW36: 0 | MX36: 36 | MY36: 4 | MZ36: 4 | NA36: 0 | NB36: 4 | NC36: =+IF(FO36<>"",FO36^2,"") -> 49 | ND36: 4 | NE36: 4 | NF36: 0 | NG36: 1 | NH36: 1 | NI36: 36 | NJ36: 16 | NK36: 36 | NL36: 36 | NM36: 0 | NN36: 16 | NO36: 16 | NP36: 36 | NQ36: 16 | NR36: 1 | NS36: =+IF(GE36<>"",GE36^2,"") -> 16 | NT36: 16 | NU36: 36 | NV36: 25 | NW36: 25 | NX36: 9 | NY36: 25 | NZ36: 25 | OA36: 1 | OB36: 9 | OC36: 9 | OD36: 25 | OE36: 9 | OF36: 4 | OG36: 9 | OH36: 9 | OI36: =+IF(GU36<>"",GU36^2,"") -> 25 | OJ36: 16 | OK36: 4 | OL36: 0 | OM36: 0 | ON36: 36 | OO36: 4 | OP36: 4 | OQ36: 0 | OR36: 4 | OS36: 49 | OT36: 4 | OU36: 4 | OV36: 0 | OW36: 1 | OX36: 4 | OY36: =+IF(HK36<>"",HK36^2,"") -> 4 | OZ36: 16 | PA36: 0 | PB36: 0 | PC36: 4 | PD36: 0 | PE36: 25 | PF36: 0 | PG36: 0 | PH36: 4 | PI36: 1 | PJ36: 0 | PK36: 36 | PL36: 4 | PM36: 4 | PN36: 0 | PO36: =+IF(IA36<>"",IA36^2,"") -> 4 | PP36: 49 | PQ36: 4 | PR36: 4 | PS36: 0 | PT36: 1 | PU36: 36 | PV36: 4 | PW36: 4 | PX36: 0 | PY36: 4 | PZ36: 49 | QA36: 4 | QB36: 4 | QC36: 0 | QD36: 1 | QE36: =+IF(IQ36<>"",IQ36^2,"") -> 16 | QF36: 16 | QG36: 36 | QH36: 16 | QI36: 1 | QJ36: 16 | QK36: 16 | QL36: 36 | QM36: 25 | QN36: 0 | QO36: 4 | QP36: 0 | QQ36: 25 | QR36: 0 | QS36: 0 | QT36: 4 | QU36: =+IF(JG36<>"",JG36^2,"") -> 1 | QV36: 4 | QW36: 0 | QX36: 25 | QY36: 0 | QZ36: 0 | RA36: 4 | RB36: 1 | RC36: 4 | RD36: 49 | RE36: 4 | RF36: 4 | RG36: 0 | RH36: 1 | RI36: 25 | RJ36: 0 | RK36: =+IF(JW36<>"",JW36^2,"") -> 0 | RL36: 4 | RM36: 1 | RN36: 25 | RO36: 25 | RP36: 49 | RQ36: 36 | RR36: 0 | RS36: 4 | RT36: 1 | RU36: 4 | RV36: 1 | RW36: 1
D37: Follow the sequence as shown | E37: In the top menu of Excel click "File" then select "Options" and then select "Add-Ins" | O37: Instead, select 'Tools', then 'Add-ins' and then 'Solver' | BF37: 8 | BG37: =INDEX(input,BG$4,$BF12) ->  | CB37: 8 | DA37: =+DA36+1 -> 3 | DB37: 5 | DC37: 1 | DD37: 4 | DE37: 2 | DF37: 1.5 | DG37: 4 | DH37: 3 | DI37: 4 | DJ37: 4 | DK37: 2 | DL37: 5 | DM37: 3 | DN37: 3 | DO37: 4 | DP37: 3 | DQ37: 1 | DR37: 1 | DS37: 3 | DT37: 3 | DU37: 6 | DV37: 1 | DW37: 7 | DX37: 6.5 | DY37: 1 | DZ37: 2 | EA37: 1 | EB37: 1 | EC37: 7 | ED37: 0 | EE37: 2 | EF37: 2 | EG37: 1 | EH37: 8 | EI37: 4 | EJ37: 4 | EK37: 8 | EL37: 2 | EM37: 5 | EN37: 1 | EO37: 0.5 | EP37: 5 | EQ37: 4 | ER37: 5 | ES37: 5 | ET37: 1 | EU37: 6 | EV37: 4 | EW37: 4 | EX37: 5 | EY37: 2 | EZ37: 2 | FA37: 2 | FB37: 2 | FC37: 4 | FD37: 6 | FE37: 5.5 | FF37: 0 | FG37: 1 | FH37: 0 | FI37: 0 | FJ37: 6 | FK37: 1 | FL37: 1 | FM37: 1 | FN37: 0 | FO37: 7 | FP37: 3 | FQ37: 3 | FR37: 7 | FS37: 1 | FT37: 0.5 | FU37: 6 | FV37: 5 | FW37: 6 | FX37: 6 | FY37: 0 | FZ37: 7 | GA37: 5 | GB37: 5 | GC37: 6 | GD37: 1 | GE37: 3 | GF37: 3 | GG37: 1 | GH37: 5 | GI37: 5.5 | GJ37: 4.5 | GK37: 5.5 | GL37: 5.5 | GM37: 0.5 | GN37: 6.5 | GO37: 4.5 | GP37: 4.5 | GQ37: 5.5 | GR37: 1.5 | GS37: 2.5 | GT37: 2.5 | GU37: 1.5 | GV37: 4.5 | GW37: 1 | GX37: 0 | GY37: 0 | GZ37: 6 | HA37: 1 | HB37: 1 | HC37: 1 | HD37: 0 | HE37: 7 | HF37: 3 | HG37: 3 | HH37: 7 | HI37: 1 | HJ37: 1 | HK37: 1 | HL37: 5 | HM37: 2 | HN37: 0 | HO37: 0 | HP37: 1 | HQ37: 6 | HR37: 2 | HS37: 2 | HT37: 6 | HU37: 0 | HV37: 0 | HW37: 6 | HX37: 1 | HY37: 1 | HZ37: 1 | IA37: 0 | IB37: 7 | IC37: 3 | ID37: 3 | IE37: 7 | IF37: 1 | IG37: 6 | IH37: 1 | II37: 1 | IJ37: 1 | IK37: 0 | IL37: 7 | IM37: 3 | IN37: 3 | IO37: 7 | IP37: 1 | IQ37: 7 | IR37: 5 | IS37: 5 | IT37: 6 | IU37: 1 | IV37: 3 | IW37: 3 | IX37: 1 | IY37: 5 | IZ37: 2 | JA37: 2 | JB37: 1 | JC37: 8 | JD37: 4 | JE37: 4 | JF37: 8 | JG37: 2 | JH37: 0 | JI37: 1 | JJ37: 6 | JK37: 2 | JL37: 2 | JM37: 6 | JN37: 0 | JO37: 1 | JP37: 6 | JQ37: 2 | JR37: 2 | JS37: 6 | JT37: 0 | JU37: 7 | JV37: 3 | JW37: 3 | JX37: 7 | JY37: 1 | JZ37: 4 | KA37: 4 | KB37: 0 | KC37: 6 | KD37: 0 | KE37: 4 | KF37: 2 | KG37: 4 | KH37: 2 | KI37: 6 | KO37: =+KO36+1 -> 2 | KP37: =+IF(DB37<>"",DB37^2,"") -> 25 | KQ37: 1 | KR37: 16 | KS37: 4 | KT37: 2.25 | KU37: 16 | KV37: 9 | KW37: 16 | KX37: 16 | KY37: 4 | KZ37: 25 | LA37: 9 | LB37: 9 | LC37: 16 | LD37: 9 | LE37: 1 | LF37: 1 | LG37: 9 | LH37: 9 | LI37: 36 | LJ37: 1 | LK37: 49 | LL37: 42.25 | LM37: 1 | LN37: 4 | LO37: 1 | LP37: 1 | LQ37: 49 | LR37: 0 | LS37: 4 | LT37: 4 | LU37: 1 | LV37: 64 | LW37: 16 | LX37: 16 | LY37: 64 | LZ37: 4 | MA37: 25 | MB37: 1 | MC37: 0.25 | MD37: 25 | ME37: 16 | MF37: 25 | MG37: 25 | MH37: 1 | MI37: 36 | MJ37: 16 | MK37: 16 | ML37: 25 | MM37: 4 | MN37: 4 | MO37: 4 | MP37: 4 | MQ37: 16 | MR37: 36 | MS37: 30.25 | MT37: 0 | MU37: 1 | MV37: 0 | MW37: 0 | MX37: 36 | MY37: 1 | MZ37: 1 | NA37: 1 | NB37: 0 | NC37: 49 | ND37: 9 | NE37: 9 | NF37: 49 | NG37: 1 | NH37: 0.25 | NI37: 36 | NJ37: 25 | NK37: 36 | NL37: 36 | NM37: 0 | NN37: 49 | NO37: 25 | NP37: 25 | NQ37: 36 | NR37: 1 | NS37: 9 | NT37: 9 | NU37: 1 | NV37: 25 | NW37: 30.25 | NX37: 20.25 | NY37: 30.25 | NZ37: 30.25 | OA37: 0.25 | OB37: 42.25 | OC37: 20.25 | OD37: 20.25 | OE37: 30.25 | OF37: 2.25 | OG37: 6.25 | OH37: 6.25 | OI37: 2.25 | OJ37: 20.25 | OK37: 1 | OL37: 0 | OM37: 0 | ON37: 36 | OO37: 1 | OP37: 1 | OQ37: 1 | OR37: 0 | OS37: 49 | OT37: 9 | OU37: 9 | OV37: 49 | OW37: 1 | OX37: 1 | OY37: 1 | OZ37: 25 | PA37: 4 | PB37: 0 | PC37: 0 | PD37: 1 | PE37: 36 | PF37: 4 | PG37: 4 | PH37: 36 | PI37: 0 | PJ37: 0 | PK37: 36 | PL37: 1 | PM37: 1 | PN37: 1 | PO37: 0 | PP37: 49 | PQ37: 9 | PR37: 9 | PS37: 49 | PT37: 1 | PU37: 36 | PV37: 1 | PW37: 1 | PX37: 1 | PY37: 0 | PZ37: 49 | QA37: 9 | QB37: 9 | QC37: 49 | QD37: 1 | QE37: 49 | QF37: 25 | QG37: 25 | QH37: 36 | QI37: 1 | QJ37: 9 | QK37: 9 | QL37: 1 | QM37: 25 | QN37: 4 | QO37: 4 | QP37: 1 | QQ37: 64 | QR37: 16 | QS37: 16 | QT37: 64 | QU37: 4 | QV37: 0 | QW37: 1 | QX37: 36 | QY37: 4 | QZ37: 4 | RA37: 36 | RB37: 0 | RC37: 1 | RD37: 36 | RE37: 4 | RF37: 4 | RG37: 36 | RH37: 0 | RI37: 49 | RJ37: 9 | RK37: 9 | RL37: 49 | RM37: 1 | RN37: 16 | RO37: 16 | RP37: 0 | RQ37: 36 | RR37: 0 | RS37: 16 | RT37: 4 | RU37: 16 | RV37: 4 | RW37: 36
E38: Then click 'Go' next to 'Manage Excel Add-ins' and select the 'Solver Add-in' (as shown below) | O38: You will also need to follow Step Six below | BF38: 9 | BG38: =INDEX(input,BG$4,$BF13) ->  | CB38: 9 | DA38: =+DA37+1 -> 4 | KO38: =+KO37+1 -> 3
B39: STEP SIX | E39: Please note that these options are standard with every version of Excel, including the student version | BF39: 10 | BG39: =INDEX(input,BG$4,$BF14) ->  | CB39: 10 | DA39: 5 | KO39: 4
BF40: 11 | BG40: =INDEX(input,BG$4,$BF15) ->  | CB40: 11 | DA40: 6 | KO40: 5
BF41: 12 | BG41: =INDEX(input,BG$4,$BF16) ->  | CB41: 12 | DA41: 7 | KO41: 6
BF42: 13 | BG42: =INDEX(input,BG$4,$BF17) ->  | CB42: 13 | DA42: 8 | KO42: 7
BF43: 14 | BG43: =INDEX(input,BG$4,$BF18) ->  | CB43: 14 | DA43: 9 | KO43: 8
BF44: 15 | BG44: =INDEX(input,BG$4,$BF19) ->  | CB44: 15 | DA44: 10 | KO44: 9
BF45: 16 | BG45: =INDEX(input,BG$4,$BF20) ->  | CB45: 16 | DA45: 11 | KO45: 10
BF46: 17 | BG46: =INDEX(input,BG$4,$BF21) ->  | CB46: 17 | DA46: 12 | DB46: =IFERROR(IF(AND(HLOOKUP(DB$6,branddistance,$DA46)>0.5,HLOOKUP(DB$7,branddistance,$DA46)>0.5),SQRT(((HLOOKUP(DB$6,branddistance,$DA46)-HLOOKUP(DB$7,branddistance,$DA46)))^2),""),"") ->  | DL46: =IFERROR(IF(AND(HLOOKUP(DL$6,branddistance,$DA46)>0.5,HLOOKUP(DL$7,branddistance,$DA46)>0.5),SQRT(((HLOOKUP(DL$6,branddistance,$DA46)-HLOOKUP(DL$7,branddistance,$DA46)))^2),""),"") ->  | DV46: =IFERROR(IF(AND(HLOOKUP(DV$6,branddistance,$DA46)>0.5,HLOOKUP(DV$7,branddistance,$DA46)>0.5),SQRT(((HLOOKUP(DV$6,branddistance,$DA46)-HLOOKUP(DV$7,branddistance,$DA46)))^2),""),"") ->  | EF46: =IFERROR(IF(AND(HLOOKUP(EF$6,branddistance,$DA46)>0.5,HLOOKUP(EF$7,branddistance,$DA46)>0.5),SQRT(((HLOOKUP(EF$6,branddistance,$DA46)-HLOOKUP(EF$7,branddistance,$DA46)))^2),""),"") ->  | EP46: =IFERROR(IF(AND(HLOOKUP(EP$6,branddistance,$DA46)>0.5,HLOOKUP(EP$7,branddistance,$DA46)>0.5),SQRT(((HLOOKUP(EP$6,branddistance,$DA46)-HLOOKUP(EP$7,branddistance,$DA46)))^2),""),"") ->  | EZ46: =IFERROR(IF(AND(HLOOKUP(EZ$6,branddistance,$DA46)>0.5,HLOOKUP(EZ$7,branddistance,$DA46)>0.5),SQRT(((HLOOKUP(EZ$6,branddistance,$DA46)-HLOOKUP(EZ$7,branddistance,$DA46)))^2),""),"") ->  | FJ46: =IFERROR(IF(AND(HLOOKUP(FJ$6,branddistance,$DA46)>0.5,HLOOKUP(FJ$7,branddistance,$DA46)>0.5),SQRT(((HLOOKUP(FJ$6,branddistance,$DA46)-HLOOKUP(FJ$7,branddistance,$DA46)))^2),""),"") ->  | FT46: =IFERROR(IF(AND(HLOOKUP(FT$6,branddistance,$DA46)>0.5,HLOOKUP(FT$7,branddistance,$DA46)>0.5),SQRT(((HLOOKUP(FT$6,branddistance,$DA46)-HLOOKUP(FT$7,branddistance,$DA46)))^2),""),"") ->  | GD46: =IFERROR(IF(AND(HLOOKUP(GD$6,branddistance,$DA46)>0.5,HLOOKUP(GD$7,branddistance,$DA46)>0.5),SQRT(((HLOOKUP(GD$6,branddistance,$DA46)-HLOOKUP(GD$7,branddistance,$DA46)))^2),""),"") ->  | GN46: =IFERROR(IF(AND(HLOOKUP(GN$6,branddistance,$DA46)>0.5,HLOOKUP(GN$7,branddistance,$DA46)>0.5),SQRT(((HLOOKUP(GN$6,branddistance,$DA46)-HLOOKUP(GN$7,branddistance,$DA46)))^2),""),"") ->  | GX46: =IFERROR(IF(AND(HLOOKUP(GX$6,branddistance,$DA46)>0.5,HLOOKUP(GX$7,branddistance,$DA46)>0.5),SQRT(((HLOOKUP(GX$6,branddistance,$DA46)-HLOOKUP(GX$7,branddistance,$DA46)))^2),""),"") ->  | HH46: =IFERROR(IF(AND(HLOOKUP(HH$6,branddistance,$DA46)>0.5,HLOOKUP(HH$7,branddistance,$DA46)>0.5),SQRT(((HLOOKUP(HH$6,branddistance,$DA46)-HLOOKUP(HH$7,branddistance,$DA46)))^2),""),"") ->  | HR46: =IFERROR(IF(AND(HLOOKUP(HR$6,branddistance,$DA46)>0.5,HLOOKUP(HR$7,branddistance,$DA46)>0.5),SQRT(((HLOOKUP(HR$6,branddistance,$DA46)-HLOOKUP(HR$7,branddistance,$DA46)))^2),""),"") ->  | IB46: =IFERROR(IF(AND(HLOOKUP(IB$6,branddistance,$DA46)>0.5,HLOOKUP(IB$7,branddistance,$DA46)>0.5),SQRT(((HLOOKUP(IB$6,branddistance,$DA46)-HLOOKUP(IB$7,branddistance,$DA46)))^2),""),"") ->  | IL46: =IFERROR(IF(AND(HLOOKUP(IL$6,branddistance,$DA46)>0.5,HLOOKUP(IL$7,branddistance,$DA46)>0.5),SQRT(((HLOOKUP(IL$6,branddistance,$DA46)-HLOOKUP(IL$7,branddistance,$DA46)))^2),""),"") ->  | IV46: =IFERROR(IF(AND(HLOOKUP(IV$6,branddistance,$DA46)>0.5,HLOOKUP(IV$7,branddistance,$DA46)>0.5),SQRT(((HLOOKUP(IV$6,branddistance,$DA46)-HLOOKUP(IV$7,branddistance,$DA46)))^2),""),"") ->  | JF46: =IFERROR(IF(AND(HLOOKUP(JF$6,branddistance,$DA46)>0.5,HLOOKUP(JF$7,branddistance,$DA46)>0.5),SQRT(((HLOOKUP(JF$6,branddistance,$DA46)-HLOOKUP(JF$7,branddistance,$DA46)))^2),""),"") ->  | JP46: =IFERROR(IF(AND(HLOOKUP(JP$6,branddistance,$DA46)>0.5,HLOOKUP(JP$7,branddistance,$DA46)>0.5),SQRT(((HLOOKUP(JP$6,branddistance,$DA46)-HLOOKUP(JP$7,branddistance,$DA46)))^2),""),"") ->  | JZ46: =IFERROR(IF(AND(HLOOKUP(JZ$6,branddistance,$DA46)>0.5,HLOOKUP(JZ$7,branddistance,$DA46)>0.5),SQRT(((HLOOKUP(JZ$6,branddistance,$DA46)-HLOOKUP(JZ$7,branddistance,$DA46)))^2),""),"") ->  | KO46: 11
BF47: 18 | BG47: =INDEX(input,BG$4,$BF22) ->  | CB47: 18 | DA47: 13 | KO47: 12
BF48: 19 | BG48: =INDEX(input,BG$4,$BF23) ->  | CB48: 19 | DA48: 14 | KO48: 13
BF49: 20 | BG49: =INDEX(input,BG$4,$BF24) ->  | CB49: 20 | DA49: 15 | KO49: 14
DA50: 16 | KO50: 15
DA51: 17 | KO51: 16 | LF51: =+IF(DR51<>"",DR51^2,"") ->  | LV51: =+IF(EH51<>"",EH51^2,"") ->  | ML51: =+IF(EX51<>"",EX51^2,"") ->  | NB51: =+IF(FN51<>"",FN51^2,"") ->  | NR51: =+IF(GD51<>"",GD51^2,"") ->  | OH51: =+IF(GT51<>"",GT51^2,"") ->  | OX51: =+IF(HJ51<>"",HJ51^2,"") ->  | PN51: =+IF(HZ51<>"",HZ51^2,"") ->  | QD51: =+IF(IP51<>"",IP51^2,"") ->  | QT51: =+IF(JF51<>"",JF51^2,"") ->  | RJ51: =+IF(JV51<>"",JV51^2,"") -> 
DA52: 18 | KO52: 17 | KQ52: =+IF(DC52<>"",DC52^2,"") ->  | KR52: =+IF(DD52<>"",DD52^2,"") ->  | KS52: =+IF(DE52<>"",DE52^2,"") ->  | KT52: =+IF(DF52<>"",DF52^2,"") ->  | KU52: =+IF(DG52<>"",DG52^2,"") ->  | KV52: =+IF(DH52<>"",DH52^2,"") ->  | KW52: =+IF(DI52<>"",DI52^2,"") ->  | KX52: =+IF(DJ52<>"",DJ52^2,"") ->  | KY52: =+IF(DK52<>"",DK52^2,"") ->  | KZ52: =+IF(DL52<>"",DL52^2,"") ->  | LA52: =+IF(DM52<>"",DM52^2,"") ->  | LB52: =+IF(DN52<>"",DN52^2,"") ->  | LC52: =+IF(DO52<>"",DO52^2,"") ->  | LD52: =+IF(DP52<>"",DP52^2,"") ->  | LE52: =+IF(DQ52<>"",DQ52^2,"") ->  | LG52: =+IF(DS52<>"",DS52^2,"") ->  | LH52: =+IF(DT52<>"",DT52^2,"") ->  | LI52: =+IF(DU52<>"",DU52^2,"") ->  | LJ52: =+IF(DV52<>"",DV52^2,"") ->  | LK52: =+IF(DW52<>"",DW52^2,"") ->  | LL52: =+IF(DX52<>"",DX52^2,"") ->  | LM52: =+IF(DY52<>"",DY52^2,"") ->  | LN52: =+IF(DZ52<>"",DZ52^2,"") ->  | LO52: =+IF(EA52<>"",EA52^2,"") ->  | LP52: =+IF(EB52<>"",EB52^2,"") ->  | LQ52: =+IF(EC52<>"",EC52^2,"") ->  | LR52: =+IF(ED52<>"",ED52^2,"") ->  | LS52: =+IF(EE52<>"",EE52^2,"") ->  | LT52: =+IF(EF52<>"",EF52^2,"") ->  | LU52: =+IF(EG52<>"",EG52^2,"") ->  | LW52: =+IF(EI52<>"",EI52^2,"") ->  | LX52: =+IF(EJ52<>"",EJ52^2,"") ->  | LY52: =+IF(EK52<>"",EK52^2,"") ->  | LZ52: =+IF(EL52<>"",EL52^2,"") ->  | MA52: =+IF(EM52<>"",EM52^2,"") ->  | MB52: =+IF(EN52<>"",EN52^2,"") ->  | MC52: =+IF(EO52<>"",EO52^2,"") ->  | MD52: =+IF(EP52<>"",EP52^2,"") ->  | ME52: =+IF(EQ52<>"",EQ52^2,"") ->  | MF52: =+IF(ER52<>"",ER52^2,"") ->  | MG52: =+IF(ES52<>"",ES52^2,"") ->  | MH52: =+IF(ET52<>"",ET52^2,"") ->  | MI52: =+IF(EU52<>"",EU52^2,"") ->  | MJ52: =+IF(EV52<>"",EV52^2,"") ->  | MK52: =+IF(EW52<>"",EW52^2,"") ->  | MM52: =+IF(EY52<>"",EY52^2,"") ->  | MN52: =+IF(EZ52<>"",EZ52^2,"") ->  | MO52: =+IF(FA52<>"",FA52^2,"") ->  | MP52: =+IF(FB52<>"",FB52^2,"") ->  | MQ52: =+IF(FC52<>"",FC52^2,"") ->  | MR52: =+IF(FD52<>"",FD52^2,"") ->  | MS52: =+IF(FE52<>"",FE52^2,"") ->  | MT52: =+IF(FF52<>"",FF52^2,"") ->  | MU52: =+IF(FG52<>"",FG52^2,"") ->  | MV52: =+IF(FH52<>"",FH52^2,"") ->  | MW52: =+IF(FI52<>"",FI52^2,"") ->  | MX52: =+IF(FJ52<>"",FJ52^2,"") ->  | MY52: =+IF(FK52<>"",FK52^2,"") ->  | MZ52: =+IF(FL52<>"",FL52^2,"") ->  | NA52: =+IF(FM52<>"",FM52^2,"") ->  | NC52: =+IF(FO52<>"",FO52^2,"") ->  | ND52: =+IF(FP52<>"",FP52^2,"") ->  | NE52: =+IF(FQ52<>"",FQ52^2,"") ->  | NF52: =+IF(FR52<>"",FR52^2,"") ->  | NG52: =+IF(FS52<>"",FS52^2,"") ->  | NH52: =+IF(FT52<>"",FT52^2,"") ->  | NI52: =+IF(FU52<>"",FU52^2,"") ->  | NJ52: =+IF(FV52<>"",FV52^2,"") ->  | NK52: =+IF(FW52<>"",FW52^2,"") ->  | NL52: =+IF(FX52<>"",FX52^2,"") ->  | NM52: =+IF(FY52<>"",FY52^2,"") ->  | NN52: =+IF(FZ52<>"",FZ52^2,"") ->  | NO52: =+IF(GA52<>"",GA52^2,"") ->  | NP52: =+IF(GB52<>"",GB52^2,"") ->  | NQ52: =+IF(GC52<>"",GC52^2,"") ->  | NS52: =+IF(GE52<>"",GE52^2,"") ->  | NT52: =+IF(GF52<>"",GF52^2,"") ->  | NU52: =+IF(GG52<>"",GG52^2,"") ->  | NV52: =+IF(GH52<>"",GH52^2,"") ->  | NW52: =+IF(GI52<>"",GI52^2,"") ->  | NX52: =+IF(GJ52<>"",GJ52^2,"") ->  | NY52: =+IF(GK52<>"",GK52^2,"") ->  | NZ52: =+IF(GL52<>"",GL52^2,"") ->  | OA52: =+IF(GM52<>"",GM52^2,"") ->  | OB52: =+IF(GN52<>"",GN52^2,"") ->  | OC52: =+IF(GO52<>"",GO52^2,"") ->  | OD52: =+IF(GP52<>"",GP52^2,"") ->  | OE52: =+IF(GQ52<>"",GQ52^2,"") ->  | OF52: =+IF(GR52<>"",GR52^2,"") ->  | OG52: =+IF(GS52<>"",GS52^2,"") ->  | OI52: =+IF(GU52<>"",GU52^2,"") ->  | OJ52: =+IF(GV52<>"",GV52^2,"") ->  | OK52: =+IF(GW52<>"",GW52^2,"") ->  | OL52: =+IF(GX52<>"",GX52^2,"") ->  | OM52: =+IF(GY52<>"",GY52^2,"") ->  | ON52: =+IF(GZ52<>"",GZ52^2,"") ->  | OO52: =+IF(HA52<>"",HA52^2,"") ->  | OP52: =+IF(HB52<>"",HB52^2,"") ->  | OQ52: =+IF(HC52<>"",HC52^2,"") ->  | OR52: =+IF(HD52<>"",HD52^2,"") ->  | OS52: =+IF(HE52<>"",HE52^2,"") ->  | OT52: =+IF(HF52<>"",HF52^2,"") ->  | OU52: =+IF(HG52<>"",HG52^2,"") ->  | OV52: =+IF(HH52<>"",HH52^2,"") ->  | OW52: =+IF(HI52<>"",HI52^2,"") ->  | OY52: =+IF(HK52<>"",HK52^2,"") ->  | OZ52: =+IF(HL52<>"",HL52^2,"") ->  | PA52: =+IF(HM52<>"",HM52^2,"") ->  | PB52: =+IF(HN52<>"",HN52^2,"") ->  | PC52: =+IF(HO52<>"",HO52^2,"") ->  | PD52: =+IF(HP52<>"",HP52^2,"") ->  | PE52: =+IF(HQ52<>"",HQ52^2,"") ->  | PF52: =+IF(HR52<>"",HR52^2,"") ->  | PG52: =+IF(HS52<>"",HS52^2,"") ->  | PH52: =+IF(HT52<>"",HT52^2,"") ->  | PI52: =+IF(HU52<>"",HU52^2,"") ->  | PJ52: =+IF(HV52<>"",HV52^2,"") ->  | PK52: =+IF(HW52<>"",HW52^2,"") ->  | PL52: =+IF(HX52<>"",HX52^2,"") ->  | PM52: =+IF(HY52<>"",HY52^2,"") ->  | PO52: =+IF(IA52<>"",IA52^2,"") ->  | PP52: =+IF(IB52<>"",IB52^2,"") ->  | PQ52: =+IF(IC52<>"",IC52^2,"") ->  | PR52: =+IF(ID52<>"",ID52^2,"") ->  | PS52: =+IF(IE52<>"",IE52^2,"") ->  | PT52: =+IF(IF52<>"",IF52^2,"") ->  | PU52: =+IF(IG52<>"",IG52^2,"") ->  | PV52: =+IF(IH52<>"",IH52^2,"") ->  | PW52: =+IF(II52<>"",II52^2,"") ->  | PX52: =+IF(IJ52<>"",IJ52^2,"") ->  | PY52: =+IF(IK52<>"",IK52^2,"") ->  | PZ52: =+IF(IL52<>"",IL52^2,"") ->  | QA52: =+IF(IM52<>"",IM52^2,"") ->  | QB52: =+IF(IN52<>"",IN52^2,"") ->  | QC52: =+IF(IO52<>"",IO52^2,"") ->  | QE52: =+IF(IQ52<>"",IQ52^2,"") ->  | QF52: =+IF(IR52<>"",IR52^2,"") ->  | QG52: =+IF(IS52<>"",IS52^2,"") ->  | QH52: =+IF(IT52<>"",IT52^2,"") ->  | QI52: =+IF(IU52<>"",IU52^2,"") ->  | QJ52: =+IF(IV52<>"",IV52^2,"") ->  | QK52: =+IF(IW52<>"",IW52^2,"") ->  | QL52: =+IF(IX52<>"",IX52^2,"") ->  | QM52: =+IF(IY52<>"",IY52^2,"") ->  | QN52: =+IF(IZ52<>"",IZ52^2,"") ->  | QO52: =+IF(JA52<>"",JA52^2,"") ->  | QP52: =+IF(JB52<>"",JB52^2,"") ->  | QQ52: =+IF(JC52<>"",JC52^2,"") ->  | QR52: =+IF(JD52<>"",JD52^2,"") ->  | QS52: =+IF(JE52<>"",JE52^2,"") ->  | QU52: =+IF(JG52<>"",JG52^2,"") ->  | QV52: =+IF(JH52<>"",JH52^2,"") ->  | QW52: =+IF(JI52<>"",JI52^2,"") ->  | QX52: =+IF(JJ52<>"",JJ52^2,"") ->  | QY52: =+IF(JK52<>"",JK52^2,"") ->  | QZ52: =+IF(JL52<>"",JL52^2,"") ->  | RA52: =+IF(JM52<>"",JM52^2,"") ->  | RB52: =+IF(JN52<>"",JN52^2,"") ->  | RC52: =+IF(JO52<>"",JO52^2,"") ->  | RD52: =+IF(JP52<>"",JP52^2,"") ->  | RE52: =+IF(JQ52<>"",JQ52^2,"") ->  | RF52: =+IF(JR52<>"",JR52^2,"") ->  | RG52: =+IF(JS52<>"",JS52^2,"") ->  | RH52: =+IF(JT52<>"",JT52^2,"") ->  | RI52: =+IF(JU52<>"",JU52^2,"") ->  | RK52: =+IF(JW52<>"",JW52^2,"") ->  | RL52: =+IF(JX52<>"",JX52^2,"") ->  | RM52: =+IF(JY52<>"",JY52^2,"") ->  | RN52: =+IF(JZ52<>"",JZ52^2,"") ->  | RO52: =+IF(KA52<>"",KA52^2,"") ->  | RP52: =+IF(KB52<>"",KB52^2,"") ->  | RQ52: =+IF(KC52<>"",KC52^2,"") ->  | RR52: =+IF(KD52<>"",KD52^2,"") ->  | RS52: =+IF(KE52<>"",KE52^2,"") ->  | RT52: =+IF(KF52<>"",KF52^2,"") ->  | RU52: =+IF(KG52<>"",KG52^2,"") ->  | RV52: =+IF(KH52<>"",KH52^2,"") ->  | RW52: =+IF(KI52<>"",KI52^2,"") -> 
D53: Part A: Select Options | E53: Part B: Select Add-ins | G53: Part C: Select Go | L53: Part D: Tick Solver Add-in | DA53: 19 | KO53: 18
DA54: 20 | KO54: 19
DA55: 21 | KO55: 20 | KP55: =+IF(DB55<>"",DB55^2,"") -> 
B56: STEP SIX | D56: IMPORTANT: Save the spreadsheet and exit Excel, then reopen the spreadsheet | CY56: Min | CZ56: Max | KO56: 1 | KP56: 2 | KQ56: 3 | KR56: 4 | KS56: 5 | KT56: 6 | KU56: 7 | KV56: 8 | KW56: 9 | KX56: 10 | KY56: 11 | KZ56: 12 | LA56: 13 | LB56: 14 | LC56: 15 | LD56: 16 | LE56: 17 | LF56: 18 | LG56: 19 | LH56: 20 | LM56: 1 | LN56: 2 | LO56: 3 | LP56: 4 | LQ56: 5 | LR56: 6 | LS56: 7 | LT56: 8 | LU56: 9 | LV56: 10 | LW56: 11 | LX56: 12 | LY56: 13 | LZ56: 14 | MA56: 15 | MB56: 16 | MC56: 17 | MD56: 18 | ME56: 19 | MF56: 20
D57: Note: You need to save, exit and reopen Excel in order for the Solver Add-in to be loaded into the spreadsheet | CY57: =MIN($DB57:$KI57) -> 0 | CZ57: =MAX($DB57:$KI57) -> 8 | DA57: Average | DB57: =IFERROR(AVERAGE(DB36:DB55),"") -> 6.5 | DC57: =IFERROR(AVERAGE(DC36:DC55),"") -> 1.5 | DD57: 5.5 | DE57: 1.5 | DF57: 1.75 | DG57: 5.5 | DH57: 4 | DI57: 5.5 | DJ57: 5.5 | DK57: 1.5 | DL57: 5 | DM57: 4 | DN57: 5 | DO57: 4.5 | DP57: 1.5 | DQ57: 3 | DR57: 3 | DS57: 5 | DT57: 4.5 | DU57: 6 | DV57: 1 | DW57: 7 | DX57: 6.25 | DY57: 1 | DZ57: 2.5 | EA57: 1 | EB57: 1 | EC57: 7 | ED57: 1.5 | EE57: 2.5 | EF57: 1.5 | EG57: 2 | EH57: 8 | EI57: 3.5 | EJ57: 3.5 | EK57: 4.5 | EL57: 2 | EM57: 5 | EN57: 1 | EO57: 0.25 | EP57: 5 | EQ57: 3.5 | ER57: 5 | ES57: 5 | ET57: 1 | EU57: 4.5 | EV57: 3.5 | EW57: 4.5 | EX57: 4 | EY57: 2 | EZ57: 2.5 | FA57: 2.5 | FB57: 3.5 | FC57: 4 | FD57: 6 | FE57: 5.25 | FF57: 0 | FG57: 1.5 | FH57: 0 | FI57: 0 | FJ57: 6 | FK57: 1.5 | FL57: 1.5 | FM57: 0.5 | FN57: 1 | FO57: =IFERROR(AVERAGE(FO36:FO55),"") -> 7 | FP57: 2.5 | FQ57: 2.5 | FR57: 3.5 | FS57: 1 | FT57: 0.75 | FU57: 6 | FV57: 4.5 | FW57: 6 | FX57: 6 | FY57: 0 | FZ57: 5.5 | GA57: 4.5 | GB57: 5.5 | GC57: 5 | GD57: 1 | GE57: 3.5 | GF57: 3.5 | GG57: 3.5 | GH57: 5 | GI57: 5.25 | GJ57: 3.75 | GK57: 5.25 | GL57: 5.25 | GM57: 0.75 | GN57: 4.75 | GO57: 3.75 | GP57: 4.75 | GQ57: 4.25 | GR57: 1.75 | GS57: 2.75 | GT57: 2.75 | GU57: 3.25 | GV57: 4.25 | GW57: 1.5 | GX57: 0 | GY57: 0 | GZ57: 6 | HA57: 1.5 | HB57: 1.5 | HC57: 0.5 | HD57: 1 | HE57: 7 | HF57: 2.5 | HG57: 2.5 | HH57: 3.5 | HI57: 1 | HJ57: 1.5 | HK57: 1.5 | HL57: 4.5 | HM57: 1 | HN57: 0 | HO57: 1 | HP57: 0.5 | HQ57: 5.5 | HR57: 1 | HS57: 1 | HT57: 4 | HU57: 0.5 | HV57: 0 | HW57: 6 | HX57: 1.5 | HY57: 1.5 | HZ57: 0.5 | IA57: =IFERROR(AVERAGE(IA36:IA55),"") -> 1 | IB57: 7 | IC57: 2.5 | ID57: 2.5 | IE57: 3.5 | IF57: 1 | IG57: 6 | IH57: 1.5 | II57: 1.5 | IJ57: 0.5 | IK57: 1 | IL57: 7 | IM57: 2.5 | IN57: 2.5 | IO57: 3.5 | IP57: 1 | IQ57: 5.5 | IR57: 4.5 | IS57: 5.5 | IT57: 5 | IU57: 1 | IV57: 3.5 | IW57: 3.5 | IX57: 3.5 | IY57: 5 | IZ57: 1 | JA57: 2 | JB57: 0.5 | JC57: 6.5 | JD57: 2 | JE57: 2 | JF57: 5 | JG57: 1.5 | JH57: 1 | JI57: 0.5 | JJ57: 5.5 | JK57: 1 | JL57: 1 | JM57: 4 | JN57: 0.5 | JO57: 1.5 | JP57: 6.5 | JQ57: 2 | JR57: 2 | JS57: 3 | JT57: 0.5 | JU57: 6 | JV57: 1.5 | JW57: 1.5 | JX57: 4.5 | JY57: 1 | JZ57: 4.5 | KA57: 4.5 | KB57: 3.5 | KC57: 6 | KD57: 0 | KE57: 3 | KF57: 1.5 | KG57: 3 | KH57: 1.5 | KI57: 3.5 | KK57: 1 | KL57: 2 | KM57: 1 | KN57: =INDEX(branddiff,KO$56,KM57) -> 7.609374486 | KO57: =IF(KK57=1,KN57,"") -> 7.609374486 | LI57: 1 | LJ57: 2 | LK57: 1 | LL57: =INDEX(attdiff,LM$56,LK57) ->  | LM57: =IF(LI57=1,LL57,"") -> 
D58: Solver should then appear under Data in the top menu, as shown below | CY58: =+CY32 -> 1 | CZ58: =+CZ32 -> 9 | DA58: Rescaled | DB58: =+DB59 -> 7.609374486 | DC58: =+DC59 -> 2.284346052 | DD58: 6.594571186 | DE58: 2.284346052 | DF58: 2.479603413 | DG58: 6.594571186 | DH58: 4.943847309 | DI58: 6.594571186 | DJ58: 6.594571186 | DK58: 2.284346052 | DL58: 5.86128718 | DM58: 4.943847309 | DN58: 6.264261086 | DO58: 5.367141384 | DP58: 2.849504266 | DQ58: 4.402362484 | DR58: 4.402362484 | DS58: 6.264261086 | DT58: 5.592839863 | DU58: 6.907524787 | DV58: 1.676336753 | DW58: 7.953762393 | DX58: 7.174313286 | DY58: 1.676336753 | DZ58: 3.297492133 | EA58: 1.676336753 | EB58: 1.676336753 | EC58: 7.953762393 | ED58: 2.849504266 | EE58: 3.297492133 | EF58: 2.284346052 | EG58: 2.969557556 | EH58: 9 | EI58: 4.329107679 | EJ58: 4.329107679 | EK58: 6.594571186 | EL58: 2.72257436 | EM58: 5.86128718 | EN58: 1.676336753 | EO58: 1 | EP58: 5.86128718 | EQ58: 4.329107679 | ER58: 5.86128718 | ES58: 5.86128718 | ET58: 1.676336753 | EU58: 5.592839863 | EV58: 4.329107679 | EW58: 5.367141384 | EX58: 4.943847309 | EY58: 2.72257436 | EZ58: 3.297492133 | FA58: 3.297492133 | FB58: 4.61405326 | FC58: 4.815049573 | FD58: 6.907524787 | FE58: 6.12907066 | FG58: 2.284346052 | FJ58: 6.907524787 | FK58: 2.284346052 | FL58: 2.284346052 | FM58: 1.369900853 | FN58: 2.10970256 | FO58: =+FO59 -> 7.953762393 | FP58: 3.297492133 | FQ58: 3.297492133 | FR58: 5.808711092 | FS58: 1.676336753 | FT58: 1.457222599 | FU58: 6.907524787 | FV58: 5.367141384 | FW58: 6.907524787 | FX58: 6.907524787 | FZ58: 6.594571186 | GA58: 5.367141384 | GB58: 6.408135184 | GC58: 5.964885119 | GD58: 1.676336753 | GE58: 4.329107679 | GF58: 4.329107679 | GG58: 5.130137246 | GH58: 5.86128718 | GI58: 6.12907066 | GJ58: 4.631188626 | GK58: 6.12907066 | GL58: 6.12907066 | GM58: 1.457222599 | GN58: 5.926273374 | GO58: 4.631188626 | GP58: 5.60660616 | GQ58: 5.264943553 | GR58: 2.479603413 | GS58: 3.519117166 | GT58: 3.519117166 | GU58: 4.491977432 | GV58: 5.084295255 | GW58: 2.284346052 | GZ58: 6.907524787 | HA58: 2.284346052 | HB58: 2.284346052 | HC58: 1.369900853 | HD58: 2.10970256 | HE58: 7.953762393 | HF58: 3.297492133 | HG58: 3.297492133 | HH58: 5.808711092 | HI58: 1.676336753 | HJ58: 2.284346052 | HK58: 2.284346052 | HL58: 5.367141384 | HM58: 2.10970256 | HO58: 2.10970256 | HP58: 1.369900853 | HQ58: 6.408135184 | HR58: 2.10970256 | HS58: 2.10970256 | HT58: 5.309015965 | HU58: 1.369900853 | HW58: 6.907524787 | HX58: 2.284346052 | HY58: 2.284346052 | HZ58: 1.369900853 | IA58: =+IA59 -> 2.10970256 | IB58: 7.953762393 | IC58: 3.297492133 | ID58: 3.297492133 | IE58: 5.808711092 | IF58: 1.676336753 | IG58: 6.907524787 | IH58: 2.284346052 | II58: 2.284346052 | IJ58: 1.369900853 | IK58: 2.10970256 | IL58: 7.953762393 | IM58: 3.297492133 | IN58: 3.297492133 | IO58: 5.808711092 | IP58: 1.676336753 | IQ58: 6.594571186 | IR58: 5.367141384 | IS58: 6.408135184 | IT58: 5.964885119 | IU58: 1.676336753 | IV58: 4.329107679 | IW58: 4.329107679 | IX58: 5.130137246 | IY58: 5.86128718 | IZ58: 2.10970256 | JA58: 2.72257436 | JB58: 1.369900853 | JC58: 7.609374486 | JD58: 3.589305972 | JE58: 3.589305972 | JF58: 6.730660302 | JG58: 2.284346052 | JH58: 2.10970256 | JI58: 1.369900853 | JJ58: 6.408135184 | JK58: 2.10970256 | JL58: 2.10970256 | JM58: 5.309015965 | JN58: 1.369900853 | JO58: 2.284346052 | JP58: 7.450733868 | JQ58: 2.72257436 | JR58: 2.72257436 | JS58: 5.068909385 | JT58: 1.369900853 | JU58: 6.994114058 | JV58: 2.849504266 | JW58: 2.849504266 | JX58: 6.015936866 | JY58: 1.676336753 | JZ58: 5.367141384 | KA58: 5.367141384 | KB58: 5.808711092 | KC58: 6.907524787 | KE58: 3.938592958 | KF58: 2.284346052 | KG58: 3.938592958 | KH58: 2.284346052 | KI58: 5.130137246 | KK58: =+KK57 -> 1 | KL58: =+KL57+1 -> 3 | KM58: =+KM57+1 -> 2 | KN58: 2.284346052 | KO58: =IF(KK58=1,KN58,"") -> 2.284346052 | KP58: =IF(KK76=2,KN76,"") -> 6.907524787 | LI58: =+LI57 -> 1 | LJ58: =+LJ57+1 -> 3 | LK58: =+LK57+1 -> 2 | LM58: =IF(LI58=1,LL58,"") ->  | LN58: =IF(LI76=2,LL76,"") -> 
CY59: =+CZ58-CY58 -> 8 | CZ59: =+CZ57-CY57 -> 8 | DA59: Squared | DB59: =+KP8 -> 7.609374486 | DC59: =+KQ8 -> 2.284346052 | DD59: 6.594571186 | DE59: 2.284346052 | DF59: 2.479603413 | DG59: 6.594571186 | DH59: 4.943847309 | DI59: 6.594571186 | DJ59: 6.594571186 | DK59: 2.284346052 | DL59: 5.86128718 | DM59: 4.943847309 | DN59: 6.264261086 | DO59: 5.367141384 | DP59: 2.849504266 | DQ59: 4.402362484 | DR59: 4.402362484 | DS59: 6.264261086 | DT59: 5.592839863 | DU59: 6.907524787 | DV59: 1.676336753 | DW59: 7.953762393 | DX59: 7.174313286 | DY59: 1.676336753 | DZ59: 3.297492133 | EA59: 1.676336753 | EB59: 1.676336753 | EC59: 7.953762393 | ED59: 2.849504266 | EE59: 3.297492133 | EF59: 2.284346052 | EG59: 2.969557556 | EH59: 9 | EI59: 4.329107679 | EJ59: 4.329107679 | EK59: 6.594571186 | EL59: 2.72257436 | EM59: 5.86128718 | EN59: 1.676336753 | EO59: 1 | EP59: 5.86128718 | EQ59: 4.329107679 | ER59: 5.86128718 | ES59: 5.86128718 | ET59: 1.676336753 | EU59: 5.592839863 | EV59: 4.329107679 | EW59: 5.367141384 | EX59: 4.943847309 | EY59: 2.72257436 | EZ59: 3.297492133 | FA59: 3.297492133 | FB59: 4.61405326 | FC59: 4.815049573 | FD59: 6.907524787 | FE59: 6.12907066 | FG59: 2.284346052 | FJ59: 6.907524787 | FK59: 2.284346052 | FL59: 2.284346052 | FM59: 1.369900853 | FN59: 2.10970256 | FO59: =+NC8 -> 7.953762393 | FP59: 3.297492133 | FQ59: 3.297492133 | FR59: 5.808711092 | FS59: 1.676336753 | FT59: 1.457222599 | FU59: 6.907524787 | FV59: 5.367141384 | FW59: 6.907524787 | FX59: 6.907524787 | FZ59: 6.594571186 | GA59: 5.367141384 | GB59: 6.408135184 | GC59: 5.964885119 | GD59: 1.676336753 | GE59: 4.329107679 | GF59: 4.329107679 | GG59: 5.130137246 | GH59: 5.86128718 | GI59: 6.12907066 | GJ59: 4.631188626 | GK59: 6.12907066 | GL59: 6.12907066 | GM59: 1.457222599 | GN59: 5.926273374 | GO59: 4.631188626 | GP59: 5.60660616 | GQ59: 5.264943553 | GR59: 2.479603413 | GS59: 3.519117166 | GT59: 3.519117166 | GU59: 4.491977432 | GV59: 5.084295255 | GW59: 2.284346052 | GZ59: 6.907524787 | HA59: 2.284346052 | HB59: 2.284346052 | HC59: 1.369900853 | HD59: 2.10970256 | HE59: 7.953762393 | HF59: 3.297492133 | HG59: 3.297492133 | HH59: 5.808711092 | HI59: 1.676336753 | HJ59: 2.284346052 | HK59: 2.284346052 | HL59: 5.367141384 | HM59: 2.10970256 | HO59: 2.10970256 | HP59: 1.369900853 | HQ59: 6.408135184 | HR59: 2.10970256 | HS59: 2.10970256 | HT59: 5.309015965 | HU59: 1.369900853 | HW59: 6.907524787 | HX59: 2.284346052 | HY59: 2.284346052 | HZ59: 1.369900853 | IA59: =+PO8 -> 2.10970256 | IB59: 7.953762393 | IC59: 3.297492133 | ID59: 3.297492133 | IE59: 5.808711092 | IF59: 1.676336753 | IG59: 6.907524787 | IH59: 2.284346052 | II59: 2.284346052 | IJ59: 1.369900853 | IK59: 2.10970256 | IL59: 7.953762393 | IM59: 3.297492133 | IN59: 3.297492133 | IO59: 5.808711092 | IP59: 1.676336753 | IQ59: 6.594571186 | IR59: 5.367141384 | IS59: 6.408135184 | IT59: 5.964885119 | IU59: 1.676336753 | IV59: 4.329107679 | IW59: 4.329107679 | IX59: 5.130137246 | IY59: 5.86128718 | IZ59: 2.10970256 | JA59: 2.72257436 | JB59: 1.369900853 | JC59: 7.609374486 | JD59: 3.589305972 | JE59: 3.589305972 | JF59: 6.730660302 | JG59: 2.284346052 | JH59: 2.10970256 | JI59: 1.369900853 | JJ59: 6.408135184 | JK59: 2.10970256 | JL59: 2.10970256 | JM59: 5.309015965 | JN59: 1.369900853 | JO59: 2.284346052 | JP59: 7.450733868 | JQ59: 2.72257436 | JR59: 2.72257436 | JS59: 5.068909385 | JT59: 1.369900853 | JU59: 6.994114058 | JV59: 2.849504266 | JW59: 2.849504266 | JX59: 6.015936866 | JY59: 1.676336753 | JZ59: 5.367141384 | KA59: 5.367141384 | KB59: 5.808711092 | KC59: 6.907524787 | KE59: 3.938592958 | KF59: 2.284346052 | KG59: 3.938592958 | KH59: 2.284346052 | KI59: 5.130137246 | KK59: 1 | KL59: 4 | KM59: 3 | KN59: 6.594571186 | KO59: 6.594571186 | KP59: =IF(KK77=2,KN77,"") -> 1.676336753 | KQ59: =IF(KK94=3,KN94,"") -> 5.86128718 | LI59: 1 | LJ59: 4 | LK59: 3 | LN59: =IF(LI77=2,LL77,"") ->  | LO59: =IF(LI94=3,LL94,"") -> 
CZ60: =+CY59/CZ59 -> 1 | KK60: 1 | KL60: 5 | KM60: 4 | KN60: 2.284346052 | KO60: 2.284346052 | KP60: 7.953762393 | KQ60: =IF(KK95=3,KN95,"") -> 1.676336753 | KR60: =IF(KK111=4,KN111,"") -> 6.907524787 | LI60: 1 | LJ60: 5 | LK60: 4 | LO60: =IF(LI95=3,LL95,"") ->  | LP60: =IF(LI111=4,LL111,"") -> 
KK61: 1 | KL61: 6 | KM61: 5 | KN61: 2.479603413 | KO61: 2.479603413 | KP61: 7.174313286 | KQ61: 1 | KR61: =IF(KK112=4,KN112,"") -> 6.12907066 | KS61: =IF(KK127=5,KN127,"") -> 1.457222599 | LI61: 1 | LJ61: 6 | LK61: 5 | LP61: =IF(LI112=4,LL112,"") ->  | LQ61: =IF(LI127=5,LL127,"") -> 
KK62: 1 | KL62: 7 | KM62: 6 | KN62: 6.594571186 | KO62: 6.594571186 | KP62: 1.676336753 | KQ62: 5.86128718 | KS62: =IF(KK128=5,KN128,"") -> 6.907524787 | KT62: =IF(KK142=6,KN142,"") -> 6.12907066 | LI62: 1 | LJ62: 7 | LK62: 6 | LQ62: =IF(LI128=5,LL128,"") ->  | LR62: =IF(LI142=6,LL142,"") -> 
DB63: Brand | DC63: Brand | DD63: Brand | DE63: Brand | DF63: Brand | DG63: Brand | DH63: Brand | DI63: Brand | DJ63: Brand | DK63: Brand | DL63: Brand | DM63: Brand | DN63: Brand | DO63: Brand | DP63: Brand | DQ63: Brand | DR63: Brand | DS63: Brand | DT63: Brand | DU63: Brand | DV63: Attribute | DW63: Attribute | DX63: Attribute | DY63: Attribute | DZ63: Attribute | EA63: Attribute | EB63: Attribute | EC63: Attribute | ED63: Attribute | EE63: Attribute | EF63: Attribute | EG63: Attribute | EH63: Attribute | EI63: Attribute | EJ63: Attribute | EK63: Attribute | EL63: Attribute | EM63: Attribute | EN63: Attribute | EO63: Attribute | KK63: 1 | KL63: 8 | KM63: 7 | KN63: 4.943847309 | KO63: 4.943847309 | KP63: 3.297492133 | KQ63: 4.329107679 | KR63: 2.284346052 | KS63: 5.367141384 | KT63: =IF(KK143=6,KN143,"") -> 4.631188626 | KU63: =IF(KK156=7,KN156,"") -> 2.284346052 | LI63: 1 | LJ63: 8 | LK63: 7 | LR63: =IF(LI143=6,LL143,"") ->  | LS63: =IF(LI156=7,LL156,"") -> 
DB64: 1 | DC64: 2 | DD64: 3 | DE64: 4 | DF64: 5 | DG64: 6 | DH64: 7 | DI64: 8 | DJ64: 9 | DK64: 10 | DL64: 11 | DM64: 12 | DN64: 13 | DO64: 14 | DP64: 15 | DQ64: 16 | DR64: 17 | DS64: 18 | DT64: 19 | DU64: 20 | DV64: 1 | DW64: 2 | DX64: 3 | DY64: 4 | DZ64: 5 | EA64: 6 | EB64: 7 | EC64: 8 | ED64: 9 | EE64: 10 | EF64: 11 | EG64: 12 | EH64: 13 | EI64: 14 | EJ64: 15 | EK64: 16 | EL64: 17 | EM64: 18 | EN64: 19 | EO64: 20 | KK64: 1 | KL64: 9 | KM64: 8 | KN64: 6.594571186 | KO64: 6.594571186 | KP64: 1.676336753 | KQ64: 5.86128718 | KS64: 6.907524787 | KT64: 6.12907066 | KU64: =IF(KK157=7,KN157,"") ->  | KV64: =IF(KK169=8,KN169,"") -> 2.284346052 | LI64: 1 | LJ64: 9 | LK64: 8 | LS64: =IF(LI157=7,LL157,"") ->  | LT64: =IF(LI169=8,LL169,"") -> 
B65: STEP SEVEN | CW65: 3 | CX65: 3 | CZ65: Brand | DA65: 1 | DB65: 0 | KK65: 1 | KL65: 10 | KM65: 9 | KN65: 6.594571186 | KO65: =IF(KK65=1,KN65,"") -> 6.594571186 | KP65: =IF(KK83=2,KN83,"") -> 1.676336753 | KQ65: =IF(KK100=3,KN100,"") -> 5.86128718 | KR65: =IF(KK116=4,KN116,"") ->  | KS65: =IF(KK131=5,KN131,"") -> 6.907524787 | KT65: 6.12907066 | KV65: =IF(KK170=8,KN170,"") -> 2.284346052 | KW65: =IF(KK181=9,KN181,"") ->  | LI65: 1 | LJ65: 10 | LK65: 9 | LT65: =IF(LI170=8,LL170,"") ->  | LU65: =IF(LI181=9,LL181,"") -> 
CW66: =IF($DB66="",0,+$DB66) -> 7.609374486 | CX66: =IF($DB66="",0,0) -> 0 | CZ66: Brand | DA66: 2 | DB66: =IF(KO57="","",KO57) -> 7.609374486 | DC66: 0 | DD66: =IF(KQ57="","",KQ57) ->  | KK66: 1 | KL66: 11 | KM66: 10 | KN66: 2.284346052 | KO66: 2.284346052 | KP66: 7.953762393 | KQ66: 1.676336753 | KR66: 6.907524787 | KT66: 1.457222599 | KU66: 6.907524787 | KV66: 5.367141384 | KW66: =IF(KK182=9,KN182,"") -> 6.907524787 | KX66: =IF(KK192=10,KN192,"") -> 6.907524787 | LI66: 1 | LJ66: 11 | LK66: 10 | LU66: =IF(LI182=9,LL182,"") ->  | LV66: =IF(LI192=10,LL192,"") -> 
CW67: =IF($DB67="",0,0) -> 0 | CX67: =IF($DB67="",0,+$DB67) -> 2.284346052 | CZ67: Brand | DA67: 3 | DB67: =IF(KO58="","",KO58) -> 2.284346052 | DC67: 6.907524787 | DD67: 0 | KK67: 1 | KL67: 12 | KM67: 11 | KN67: 5.86128718 | KO67: 5.86128718 | KP67: 2.849504266 | KQ67: 5.592839863 | KR67: 2.284346052 | KS67: 6.594571186 | KT67: 5.926273374 | KU67: 2.284346052 | KV67: 2.10970256 | KW67: 2.284346052 | KX67: =IF(KK193=10,KN193,"") -> 2.284346052 | KY67: =IF(KK202=11,KN202,"") -> 6.594571186 | LI67: 1 | LJ67: 12 | LK67: 11 | LV67: =IF(LI193=10,LL193,"") ->  | LW67: =IF(LI202=11,LL202,"") -> 
CW68: =IF($DB68="",0,+$DB68) -> 6.594571186 | CX68: =IF($DB68="",0,0) -> 0 | CZ68: Brand | DA68: 4 | DB68: 6.594571186 | DC68: 1.676336753 | DD68: 5.86128718 | DE68: 0 | KK68: 1 | KL68: 13 | KM68: 12 | KN68: 4.943847309 | KO68: 4.943847309 | KP68: 3.297492133 | KQ68: 4.329107679 | KR68: 2.284346052 | KS68: 5.367141384 | KT68: 4.631188626 | KU68: 2.284346052 | KW68: 2.284346052 | KX68: 2.284346052 | KY68: =IF(KK203=11,KN203,"") -> 5.367141384 | KZ68: =IF(KK211=12,KN211,"") -> 2.10970256 | LI68: 1 | LJ68: 13 | LK68: 12 | LW68: =IF(LI203=11,LL203,"") ->  | LX68: =IF(LI211=12,LL211,"") -> 
D69: Note: It may take up to 30 seconds to calculate | CW69: =IF($DB69="",0,0) -> 0 | CX69: =IF($DB69="",0,+$DB69) -> 2.284346052 | CZ69: Brand | DA69: 5 | DB69: 2.284346052 | DC69: 7.953762393 | DD69: 1.676336753 | DE69: 6.907524787 | DF69: 0 | KK69: 1 | KL69: 14 | KM69: 13 | KN69: 6.264261086 | KO69: 6.264261086 | KP69: 2.284346052 | KQ69: 5.367141384 | KR69: 1.369900853 | KS69: 6.408135184 | KT69: 5.60660616 | KU69: 1.369900853 | KV69: 2.10970256 | KW69: 1.369900853 | KX69: 1.369900853 | KY69: 6.408135184 | KZ69: =IF(KK212=12,KN212,"") -> 2.72257436 | LA69: =IF(KK219=13,KN219,"") -> 2.10970256 | LI69: 1 | LJ69: 14 | LK69: 13 | LX69: =IF(LI212=12,LL212,"") ->  | LY69: =IF(LI219=13,LL219,"") -> 
CW70: =IF($DB70="",0,+$DB70) -> 2.479603413 | CX70: =IF($DB70="",0,0) -> 0 | CZ70: Brand | DA70: 6 | DB70: 2.479603413 | DC70: 7.174313286 | DD70: 1 | DE70: 6.12907066 | DF70: 1.457222599 | DG70: 0 | KK70: 1 | KL70: 15 | KM70: 14 | KN70: 5.367141384 | KO70: 5.367141384 | KP70: 2.969557556 | KQ70: 4.943847309 | KR70: 2.10970256 | KS70: 5.964885119 | KT70: 5.264943553 | KU70: 2.10970256 | KV70: 1.369900853 | KW70: 2.10970256 | KX70: 2.10970256 | KY70: 5.964885119 | KZ70: 1.369900853 | LA70: =IF(KK220=13,KN220,"") -> 1.369900853 | LB70: =IF(KK226=14,KN226,"") -> 2.284346052 | LI70: 1 | LJ70: 15 | LK70: 14 | LY70: =IF(LI220=13,LL220,"") ->  | LZ70: =IF(LI226=14,LL226,"") -> 
CW71: =IF($DB71="",0,0) -> 0 | CX71: =IF($DB71="",0,+$DB71) -> 6.594571186 | CZ71: Brand | DA71: 7 | DB71: 6.594571186 | DC71: 1.676336753 | DD71: 5.86128718 | DF71: 6.907524787 | DG71: 6.12907066 | DH71: 0 | KK71: 1 | KL71: 16 | KM71: 15 | KN71: 2.849504266 | KO71: 2.849504266 | KP71: 9 | KQ71: 2.72257436 | KR71: 7.953762393 | KS71: 1.676336753 | KT71: 2.479603413 | KU71: 7.953762393 | KV71: 6.408135184 | KW71: 7.953762393 | KX71: 7.953762393 | KY71: 1.676336753 | KZ71: 7.609374486 | LA71: 6.408135184 | LB71: =IF(KK227=14,KN227,"") -> 7.450733868 | LC71: =IF(KK232=15,KN232,"") -> 6.994114058 | LI71: 1 | LJ71: 16 | LK71: 15 | LZ71: =IF(LI227=14,LL227,"") ->  | MA71: =IF(LI232=15,LL232,"") -> 
CW72: =IF($DB72="",0,+$DB72) -> 4.943847309 | CX72: =IF($DB72="",0,0) -> 0 | CZ72: Brand | DA72: 8 | DB72: 4.943847309 | DC72: 3.297492133 | DD72: 4.329107679 | DE72: 2.284346052 | DF72: 5.367141384 | DG72: 4.631188626 | DH72: 2.284346052 | DI72: 0 | KK72: 1 | KL72: 17 | KM72: 16 | KN72: 4.402362484 | KO72: 4.402362484 | KP72: 4.329107679 | KQ72: 3.297492133 | KR72: 3.297492133 | KS72: 4.329107679 | KT72: 3.519117166 | KU72: 3.297492133 | KV72: 2.10970256 | KW72: 3.297492133 | KX72: 3.297492133 | KY72: 4.329107679 | KZ72: 3.589305972 | LA72: 2.10970256 | LB72: 2.72257436 | LC72: =IF(KK233=15,KN233,"") -> 2.849504266 | LD72: =IF(KK237=16,KN237,"") -> 5.367141384 | LI72: 1 | LJ72: 17 | LK72: 16 | MA72: =IF(LI233=15,LL233,"") ->  | MB72: =IF(LI237=16,LL237,"") -> 
CW73: =IF($DB73="",0,0) -> 0 | CX73: =IF($DB73="",0,+$DB73) -> 6.594571186 | CZ73: Brand | DA73: 9 | DB73: 6.594571186 | DC73: 1.676336753 | DD73: 5.86128718 | DF73: 6.907524787 | DG73: 6.12907066 | DI73: 2.284346052 | DJ73: 0 | KK73: 1 | KL73: 18 | KM73: 17 | KN73: 4.402362484 | KO73: 4.402362484 | KP73: 4.329107679 | KQ73: 3.297492133 | KR73: 3.297492133 | KS73: 4.329107679 | KT73: 3.519117166 | KU73: 3.297492133 | KV73: 2.10970256 | KW73: 3.297492133 | KX73: 3.297492133 | KY73: 4.329107679 | KZ73: 3.589305972 | LA73: 2.10970256 | LB73: 2.72257436 | LC73: 2.849504266 | LD73: =IF(KK238=16,KN238,"") -> 5.367141384 | LE73: =IF(KK241=17,KN241,"") ->  | LI73: 1 | LJ73: 18 | LK73: 17 | MB73: =IF(LI238=16,LL238,"") ->  | MC73: =IF(LI241=17,LL241,"") -> 
CW74: =IF($DB74="",0,+$DB74) -> 6.594571186 | CX74: =IF($DB74="",0,0) -> 0 | CZ74: Brand | DA74: 10 | DB74: 6.594571186 | DC74: 1.676336753 | DD74: 5.86128718 | DF74: 6.907524787 | DG74: 6.12907066 | DI74: 2.284346052 | DK74: 0 | KK74: 1 | KL74: 19 | KM74: 18 | KN74: 6.264261086 | KO74: 6.264261086 | KP74: 6.594571186 | KQ74: 4.61405326 | KR74: 5.808711092 | KS74: 5.130137246 | KT74: 4.491977432 | KU74: 5.808711092 | KV74: 5.309015965 | KW74: 5.808711092 | KX74: 5.808711092 | KY74: 5.130137246 | KZ74: 6.730660302 | LA74: 5.309015965 | LB74: 5.068909385 | LC74: 6.015936866 | LD74: 5.808711092 | LE74: =IF(KK242=17,KN242,"") -> 3.938592958 | LF74: =IF(KK244=18,KN244,"") -> 3.938592958 | LI74: 1 | LJ74: 19 | LK74: 18 | MC74: =IF(LI242=17,LL242,"") ->  | MD74: =IF(LI244=18,LL244,"") -> 
CW75: =IF($DB75="",0,0) -> 0 | CX75: =IF($DB75="",0,+$DB75) -> 2.284346052 | CZ75: Brand | DA75: 11 | DB75: 2.284346052 | DC75: 7.953762393 | DD75: 1.676336753 | DE75: 6.907524787 | DG75: 1.457222599 | DH75: 6.907524787 | DI75: 5.367141384 | DJ75: 6.907524787 | DK75: 6.907524787 | DL75: 0 | KK75: 1 | KL75: 20 | KM75: 19 | KN75: 5.592839863 | KO75: 5.592839863 | KP75: 2.72257436 | KQ75: 4.815049573 | KR75: 1.676336753 | KS75: 5.86128718 | KT75: 5.084295255 | KU75: 1.676336753 | KV75: 1.369900853 | KW75: 1.676336753 | KX75: 1.676336753 | KY75: 5.86128718 | KZ75: 2.284346052 | LA75: 1.369900853 | LB75: 1.369900853 | LC75: 1.676336753 | LD75: 6.907524787 | LE75: 2.284346052 | LF75: =IF(KK245=18,KN245,"") -> 2.284346052 | LG75: =IF(KK246=19,KN246,"") -> 5.130137246 | LI75: 1 | LJ75: 20 | LK75: 19 | MD75: =IF(LI245=18,LL245,"") ->  | ME75: =IF(LI246=19,LL246,"") -> 
CW76: =IF($DB76="",0,+$DB76) -> 5.86128718 | CX76: =IF($DB76="",0,0) -> 0 | CZ76: Brand | DA76: 12 | DB76: 5.86128718 | DC76: 2.849504266 | DD76: 5.592839863 | DE76: 2.284346052 | DF76: 6.594571186 | DG76: 5.926273374 | DH76: 2.284346052 | DI76: 2.10970256 | DJ76: 2.284346052 | DK76: 2.284346052 | DL76: 6.594571186 | DM76: 0 | KK76: 2 | KL76: 3 | KM76: =+KM75+1 -> 20 | KN76: 6.907524787 | LI76: 2 | LJ76: 3 | LK76: =+LK75+1 -> 20
CW77: =IF($DB77="",0,0) -> 0 | CX77: =IF($DB77="",0,+$DB77) -> 4.943847309 | CZ77: Brand | DA77: 13 | DB77: 4.943847309 | DC77: 3.297492133 | DD77: 4.329107679 | DE77: 2.284346052 | DF77: 5.367141384 | DG77: 4.631188626 | DH77: 2.284346052 | DJ77: 2.284346052 | DK77: 2.284346052 | DL77: 5.367141384 | DM77: 2.10970256 | DN77: 0 | KK77: 2 | KL77: =+KL76+1 -> 4 | KM77: 21 | KN77: 1.676336753 | LI77: 2 | LJ77: =+LJ76+1 -> 4 | LK77: 21
CW78: =IF($DB78="",0,+$DB78) -> 6.264261086 | CX78: =IF($DB78="",0,0) -> 0 | CZ78: Brand | DA78: 14 | DB78: 6.264261086 | DC78: 2.284346052 | DD78: 5.367141384 | DE78: 1.369900853 | DF78: 6.408135184 | DG78: 5.60660616 | DH78: 1.369900853 | DI78: 2.10970256 | DJ78: 1.369900853 | DK78: 1.369900853 | DL78: 6.408135184 | DM78: 2.72257436 | DN78: 2.10970256 | DO78: 0 | KK78: =+KK77 -> 2 | KL78: 5 | KM78: 22 | KN78: 7.953762393 | LI78: =+LI77 -> 2 | LJ78: 5 | LK78: 22
CW79: =IF($DB79="",0,0) -> 0 | CX79: =IF($DB79="",0,+$DB79) -> 5.367141384 | CZ79: Brand | DA79: 15 | DB79: 5.367141384 | DC79: 2.969557556 | DD79: 4.943847309 | DE79: 2.10970256 | DF79: 5.964885119 | DG79: 5.264943553 | DH79: 2.10970256 | DI79: 1.369900853 | DJ79: 2.10970256 | DK79: 2.10970256 | DL79: 5.964885119 | DM79: 1.369900853 | DN79: 1.369900853 | DO79: 2.284346052 | DP79: 0 | KK79: 2 | KL79: 6 | KM79: 23 | KN79: 7.174313286 | LI79: 2 | LJ79: 6 | LK79: 23
CW80: =IF($DB80="",0,+$DB80) -> 2.849504266 | CX80: =IF($DB80="",0,0) -> 0 | CZ80: Brand | DA80: 16 | DB80: 2.849504266 | DC80: 9 | DD80: 2.72257436 | DE80: 7.953762393 | DF80: =IF(KS71="","",KS71) -> 1.676336753 | DG80: =IF(KT71="","",KT71) -> 2.479603413 | DH80: =IF(KU71="","",KU71) -> 7.953762393 | DI80: =IF(KV71="","",KV71) -> 6.408135184 | DJ80: =IF(KW71="","",KW71) -> 7.953762393 | DK80: =IF(KX71="","",KX71) -> 7.953762393 | DL80: =IF(KY71="","",KY71) -> 1.676336753 | DM80: =IF(KZ71="","",KZ71) -> 7.609374486 | DN80: =IF(LA71="","",LA71) -> 6.408135184 | DO80: =IF(LB71="","",LB71) -> 7.450733868 | DP80: =IF(LC71="","",LC71) -> 6.994114058 | DQ80: 0 | DR80: =IF(LE71="","",LE71) ->  | DS80: =IF(LF71="","",LF71) ->  | DT80: =IF(LG71="","",LG71) ->  | KK80: 2 | KL80: 7 | KM80: 24 | KN80: 1.676336753 | LI80: 2 | LJ80: 7 | LK80: 24
CW81: =IF($DB81="",0,0) -> 0 | CX81: =IF($DB81="",0,+$DB81) -> 4.402362484 | CZ81: Brand | DA81: 17 | DB81: 4.402362484 | DC81: =IF(KP72="","",KP72) -> 4.329107679 | DD81: =IF(KQ72="","",KQ72) -> 3.297492133 | DE81: =IF(KR72="","",KR72) -> 3.297492133 | DF81: 4.329107679 | DG81: 3.519117166 | DH81: 3.297492133 | DI81: 2.10970256 | DJ81: 3.297492133 | DK81: 3.297492133 | DL81: 4.329107679 | DM81: 3.589305972 | DN81: 2.10970256 | DO81: 2.72257436 | DP81: 2.849504266 | DQ81: =IF(LD72="","",LD72) -> 5.367141384 | DR81: 0 | KK81: 2 | KL81: 8 | KM81: 25 | KN81: 3.297492133 | LI81: 2 | LJ81: 8 | LK81: 25
CW82: =IF($DB82="",0,+$DB82) -> 4.402362484 | CX82: =IF($DB82="",0,0) -> 0 | CZ82: Brand | DA82: 18 | DB82: 4.402362484 | DC82: 4.329107679 | DD82: 3.297492133 | DE82: 3.297492133 | DF82: 4.329107679 | DG82: 3.519117166 | DH82: 3.297492133 | DI82: 2.10970256 | DJ82: 3.297492133 | DK82: 3.297492133 | DL82: 4.329107679 | DM82: 3.589305972 | DN82: 2.10970256 | DO82: 2.72257436 | DP82: 2.849504266 | DQ82: 5.367141384 | DS82: 0 | KK82: 2 | KL82: 9 | KM82: 26 | KN82: 1.676336753 | LI82: 2 | LJ82: 9 | LK82: 26
CW83: =IF($DB83="",0,0) -> 0 | CX83: =IF($DB83="",0,+$DB83) -> 6.264261086 | CZ83: Brand | DA83: 19 | DB83: 6.264261086 | DC83: 6.594571186 | DD83: 4.61405326 | DE83: 5.808711092 | DF83: 5.130137246 | DG83: 4.491977432 | DH83: 5.808711092 | DI83: 5.309015965 | DJ83: 5.808711092 | DK83: 5.808711092 | DL83: 5.130137246 | DM83: 6.730660302 | DN83: 5.309015965 | DO83: 5.068909385 | DP83: 6.015936866 | DQ83: 5.808711092 | DR83: 3.938592958 | DS83: 3.938592958 | DT83: 0 | KK83: 2 | KL83: 10 | KM83: 27 | KN83: 1.676336753 | LI83: 2 | LJ83: 10 | LK83: 27
CW84: =IF($DB84="",0,+$DB84) -> 5.592839863 | CX84: =IF($DB84="",0,0) -> 0 | CZ84: Brand | DA84: 20 | DB84: 5.592839863 | DC84: 2.72257436 | DD84: 4.815049573 | DE84: 1.676336753 | DF84: 5.86128718 | DG84: 5.084295255 | DH84: 1.676336753 | DI84: 1.369900853 | DJ84: 1.676336753 | DK84: 1.676336753 | DL84: 5.86128718 | DM84: 2.284346052 | DN84: 1.369900853 | DO84: 1.369900853 | DP84: 1.676336753 | DQ84: 6.907524787 | DR84: 2.284346052 | DS84: 2.284346052 | DT84: 5.130137246 | DU84: 0 | KK84: 2 | KL84: 11 | KM84: 28 | KN84: 7.953762393 | LI84: 2 | LJ84: 11 | LK84: 28
CW85: =IF($DB85="",0,0) -> 0 | CX85: =IF($DB85="",0,+$DB85) -> 9 | CZ85: Attribute | DA85: 1 | DB85: =+CC30 -> 9 | DC85: =+CD30 -> 1 | DD85: 7 | DE85: 2 | DF85: 8 | DG85: 7 | DH85: 2 | DI85: 4 | DJ85: 2 | DK85: =+CL30 -> 2 | DL85: =+CM30 -> 8 | DM85: =+CN30 -> 4 | DN85: =+CO30 -> 4 | DO85: =+CP30 -> 2 | DP85: =+CQ30 -> 4 | DQ85: =+CR30 -> 9 | DR85: =+CS30 -> 4 | DS85: =+CT30 -> 4 | DT85: =+CU30 -> 2 | DU85: =+CV30 -> 3 | DV85: 0 | KK85: 2 | KL85: 12 | KM85: 29 | KN85: 2.849504266 | LI85: 2 | LJ85: 12 | LK85: 29
CW86: =IF($DB86="",0,+$DB86) -> 4 | CX86: =IF($DB86="",0,0) -> 0 | CZ86: Attribute | DA86: 2 | DB86: =+CC31 -> 4 | DC86: 9 | DD86: 3 | DE86: 8 | DF86: 2 | DG86: 2.5 | DH86: 8 | DI86: 7 | DJ86: 8 | DK86: 8 | DL86: 2 | DM86: 9 | DN86: 7 | DO86: 7 | DP86: 8 | DQ86: 1 | DR86: 5 | DS86: 5 | DT86: 1 | DU86: 7 | DV86: =IF(LM57="","",LM57) ->  | DW86: 0 | DX86: =IF(LO57="","",LO57) ->  | KK86: 2 | KL86: 13 | KM86: 30 | KN86: 3.297492133 | LI86: 2 | LJ86: 13 | LK86: 30
CW87: =IF($DB87="",0,0) -> 0 | CX87: =IF($DB87="",0,+$DB87) -> 0 | CZ87: Attribute | DA87: 3 | DV87: =IF(LM58="","",LM58) ->  | DX87: 0 | KK87: 2 | KL87: 14 | KM87: 31 | KN87: 2.284346052 | LI87: 2 | LJ87: 14 | LK87: 31
CW88: =IF($DB88="",0,+$DB88) -> 0 | CX88: =IF($DB88="",0,0) -> 0 | CZ88: Attribute | DA88: 4 | DY88: 0 | KK88: 2 | KL88: 15 | KM88: 32 | KN88: 2.969557556 | LI88: 2 | LJ88: 15 | LK88: 32
CW89: =IF($DB89="",0,0) -> 0 | CX89: =IF($DB89="",0,+$DB89) -> 0 | CZ89: Attribute | DA89: 5 | DZ89: 0 | KK89: 2 | KL89: 16 | KM89: 33 | KN89: =INDEX(branddiff,KO$56,KM89) -> 9 | LI89: 2 | LJ89: 16 | LK89: 33 | LL89: =INDEX(attdiff,LM$56,LK89) -> 
CW90: =IF($DB90="",0,+$DB90) -> 0 | CX90: =IF($DB90="",0,0) -> 0 | CZ90: Attribute | DA90: 6 | EA90: 0 | KK90: 2 | KL90: 17 | KM90: 34 | KN90: 4.329107679 | LI90: 2 | LJ90: 17 | LK90: 34
CW91: =IF($DB91="",0,0) -> 0 | CX91: =IF($DB91="",0,+$DB91) -> 0 | CZ91: Attribute | DA91: 7 | EB91: 0 | KK91: 2 | KL91: 18 | KM91: 35 | KN91: 4.329107679 | LI91: 2 | LJ91: 18 | LK91: 35
CW92: =IF($DB92="",0,+$DB92) -> 0 | CX92: =IF($DB92="",0,0) -> 0 | CZ92: Attribute | DA92: 8 | EC92: 0 | KK92: 2 | KL92: 19 | KM92: 36 | KN92: 6.594571186 | LI92: 2 | LJ92: 19 | LK92: 36
CW93: =IF($DB93="",0,0) -> 0 | CX93: =IF($DB93="",0,+$DB93) -> 0 | CZ93: Attribute | DA93: 9 | ED93: 0 | KK93: 2 | KL93: 20 | KM93: 37 | KN93: 2.72257436 | LI93: 2 | LJ93: 20 | LK93: 37
CW94: =IF($DB94="",0,+$DB94) -> 0 | CX94: =IF($DB94="",0,0) -> 0 | CZ94: Attribute | DA94: 10 | EE94: 0 | KK94: 3 | KL94: 4 | KM94: 38 | KN94: 5.86128718 | LI94: 3 | LJ94: 4 | LK94: 38
CW95: =IF($DB95="",0,0) -> 0 | CX95: =IF($DB95="",0,+$DB95) -> 0 | CZ95: Attribute | DA95: 11 | EF95: 0 | KK95: =+KK94 -> 3 | KL95: =+KL94+1 -> 5 | KM95: 39 | KN95: 1.676336753 | LI95: =+LI94 -> 3 | LJ95: =+LJ94+1 -> 5 | LK95: 39
CW96: =IF($DB96="",0,+$DB96) -> 0 | CX96: =IF($DB96="",0,0) -> 0 | CZ96: Attribute | DA96: 12 | EG96: 0 | KK96: 3 | KL96: 6 | KM96: 40 | KN96: 1 | LI96: 3 | LJ96: 6 | LK96: 40
CW97: =IF($DB97="",0,0) -> 0 | CX97: =IF($DB97="",0,+$DB97) -> 0 | CZ97: Attribute | DA97: 13 | EH97: 0 | KK97: 3 | KL97: 7 | KM97: 41 | KN97: 5.86128718 | LI97: 3 | LJ97: 7 | LK97: 41
CW98: =IF($DB98="",0,+$DB98) -> 0 | CX98: =IF($DB98="",0,0) -> 0 | CZ98: Attribute | DA98: 14 | EI98: 0 | KK98: 3 | KL98: 8 | KM98: 42 | KN98: 4.329107679 | LI98: 3 | LJ98: 8 | LK98: 42
CW99: =IF($DB99="",0,0) -> 0 | CX99: =IF($DB99="",0,+$DB99) -> 0 | CZ99: Attribute | DA99: 15 | EE99: =IF(LV70="","",LV70) ->  | EF99: =IF(LW70="","",LW70) ->  | EG99: =IF(LX70="","",LX70) ->  | EH99: =IF(LY70="","",LY70) ->  | EI99: =IF(LZ70="","",LZ70) ->  | EJ99: 0 | EK99: =IF(MB70="","",MB70) ->  | EL99: =IF(MC70="","",MC70) ->  | EM99: =IF(MD70="","",MD70) ->  | EN99: =IF(ME70="","",ME70) ->  | EO99: =IF(MF70="","",MF70) ->  | KK99: 3 | KL99: 9 | KM99: 43 | KN99: 5.86128718 | LI99: 3 | LJ99: 9 | LK99: 43
CW100: =IF($DB100="",0,+$DB100) -> 0 | CX100: =IF($DB100="",0,0) -> 0 | CZ100: Attribute | DA100: 16 | DW100: =IF(LN71="","",LN71) ->  | DX100: =IF(LO71="","",LO71) ->  | DY100: =IF(LP71="","",LP71) ->  | DZ100: =IF(LQ71="","",LQ71) ->  | EA100: =IF(LR71="","",LR71) ->  | EB100: =IF(LS71="","",LS71) ->  | EC100: =IF(LT71="","",LT71) ->  | ED100: =IF(LU71="","",LU71) ->  | EJ100: =IF(MA71="","",MA71) ->  | EK100: 0 | KK100: 3 | KL100: 10 | KM100: 44 | KN100: 5.86128718 | LI100: 3 | LJ100: 10 | LK100: 44
CW101: =IF($DB101="",0,0) -> 0 | CX101: =IF($DB101="",0,+$DB101) -> 0 | CZ101: Attribute | DA101: 17 | DC101: =+CD46 ->  | DD101: =+CE46 ->  | DE101: =+CF46 ->  | DF101: =+CG46 ->  | DG101: =+CH46 ->  | DH101: =+CI46 ->  | DI101: =+CJ46 ->  | DJ101: =+CK46 ->  | EL101: 0 | KK101: 3 | KL101: 11 | KM101: 45 | KN101: 1.676336753 | LI101: 3 | LJ101: 11 | LK101: 45
CW102: =IF($DB102="",0,+$DB102) -> 0 | CX102: =IF($DB102="",0,0) -> 0 | CZ102: Attribute | DA102: 18 | EM102: 0 | KK102: 3 | KL102: 12 | KM102: 46 | KN102: 5.592839863 | LI102: 3 | LJ102: 12 | LK102: 46
CW103: =IF($DB103="",0,0) -> 0 | CX103: =IF($DB103="",0,+$DB103) -> 0 | CZ103: Attribute | DA103: 19 | EN103: 0 | KK103: 3 | KL103: 13 | KM103: 47 | KN103: 4.329107679 | LI103: 3 | LJ103: 13 | LK103: 47
CW104: =IF($DB104="",0,+$DB104) -> 0 | CX104: =IF($DB104="",0,0) -> 0 | CZ104: Attribute | DA104: 20 | EO104: 0 | KK104: 3 | KL104: 14 | KM104: 48 | KN104: 5.367141384 | LI104: 3 | LJ104: 14 | LK104: 48
DB105: =SUM(DB65:DB104) -> 107.2120153 | DC105: =SUM(DC65:DC104) -> 88.36846292 | DD105: 81.1065276 | DE105: 62.31055631 | DF105: 83.20764775 | DG105: 74.49874535 | DH105: 49.27396086 | DI105: 43.83159658 | DJ105: 46.98961481 | DK105: 46.98961481 | DL105: 55.66070941 | DM105: 43.00517056 | DN105: 31.78606053 | DO105: 30.61903888 | DP105: 32.38539621 | DQ105: 33.45051865 | DR105: 15.22293901 | DS105: 15.22293901 | DT105: 8.130137246 | DU105: 10 | DV105: 0 | DW105: 0 | DX105: 0 | DY105: 0 | DZ105: 0 | EA105: 0 | EB105: 0 | EC105: 0 | ED105: 0 | EE105: 0 | EF105: 0 | EG105: 0 | EH105: 0 | EI105: 0 | EJ105: 0 | EK105: 0 | EL105: 0 | EM105: 0 | EN105: 0 | EO105: 0 | KK105: 3 | KL105: 15 | KM105: 49 | KN105: 4.943847309 | LI105: 3 | LJ105: 15 | LK105: 49
KK106: 3 | KL106: 16 | KM106: 50 | KN106: 2.72257436 | LI106: 3 | LJ106: 16 | LK106: 50
DA107: =TRANSPOSE(CV108:CV147) -> 1 | DB107: 1 | DC107: 1 | DD107: 1 | DE107: 1 | DF107: 1 | DG107: 1 | DH107: 1 | DI107: 1 | DJ107: 1 | DK107: 1 | DL107: 1 | DM107: 1 | DN107: 1 | DO107: 1 | DP107: 1 | DQ107: 1 | DR107: 1 | DS107: 1 | DT107: 1 | DU107: 1 | DV107: 1 | DW107: 0 | DX107: 0 | DY107: 0 | DZ107: 0 | EA107: 0 | EB107: 0 | EC107: 0 | ED107: 0 | EE107: 0 | EF107: 0 | EG107: 0 | EH107: 0 | EI107: 0 | EJ107: 0 | EK107: 0 | EL107: 0 | EM107: 0 | EN107: 0 | KK107: 3 | KL107: 17 | KM107: 51 | KN107: 3.297492133 | LI107: 3 | LJ107: 17 | LK107: 51
CP108: =IF(D10<>"",D10,"") -> A | CQ108: =+IF($CV108=1,(CT108)*8/($CU$152-1)+1,"") -> 4.575994109 | CR108: =+IF($CV108=1,(CU108)*8/($CU$152-1)+1,"") -> 1.000082111 | CT108: =IF(CV108=1,CY108,"") -> 3.71652176 | CU108: =IF(CV108=1,CZ108,"") -> 8.533768715e-05 | CV108: =IF(BG5="",0,1) -> 1 | CW108: Brand | CX108: 1 | CY108: 3.71652176 | CZ108: 8.533768715e-05 | KK108: 3 | KL108: 18 | KM108: =+KM107+1 -> 52 | KN108: 3.297492133 | LI108: 3 | LJ108: 18 | LK108: =+LK107+1 -> 52
CP109: =IF(D11<>"",D11,"") -> B | CQ109: =+IF($CV109=1,(CT109)*8/($CU$152-1)+1,"") -> 8.326754348 | CR109: =+IF($CV109=1,(CU109)*8/($CU$152-1)+1,"") -> 7.909220882 | CT109: =IF(CV109=1,CY109,"") -> 7.614677523 | CU109: =IF(CV109=1,CZ109,"") -> 7.180736032 | CV109: =IF(BG6="",0,1) -> 1 | CW109: Brand | CX109: 2 | CY109: 7.614677523 | CZ109: 7.180736032 | DA109: =IFERROR(IF(OR($CV109=0,DA$107=0),"",SQRT(($CY$108-$CY109)^2+($CZ$108-$CZ109)^2)),"") -> 8.1705179 | KK109: 3 | KL109: 19 | KM109: 53 | KN109: 4.61405326 | LI109: 3 | LJ109: 19 | LK109: 53
CP110: C | CQ110: 3.975159894 | CR110: 2.599299252 | CT110: 3.092076259 | CU110: 1.662147725 | CV110: 1 | CW110: Brand | CX110: 3 | CY110: 3.092076259 | CZ110: 1.662147725 | DA110: =IFERROR(IF(OR($CV110=0,DA$107=0),"",SQRT(($CY$108-$CY110)^2+($CZ$108-$CZ110)^2)),"") -> 1.7754953 | DB110: =IFERROR(IF(OR($CV110=0,DB$107=0),"",SQRT(($CY$109-$CY110)^2+($CZ$109-$CZ110)^2)),"") -> 7.135036027 | KK110: 3 | KL110: 20 | KM110: 54 | KN110: 4.815049573 | LI110: 3 | LJ110: 20 | LK110: 54
CP111: D | CQ111: 8.04329448 | CR111: 6.649578249 | CT111: 7.320078389 | CU111: 5.871592586 | CV111: 1 | CW111: Brand | CX111: 4 | CY111: 7.320078389 | CZ111: 5.871592586 | DA111: =IFERROR(IF(OR($CV111=0,DA$107=0),"",SQRT(($CY$108-$CY111)^2+($CZ$108-$CZ111)^2)),"") -> 6.889137663 | DB111: =IFERROR(IF(OR($CV111=0,DB$107=0),"",SQRT(($CY$109-$CY111)^2+($CZ$109-$CZ111)^2)),"") -> 1.341881222 | DC111: =IFERROR(IF(OR($CV111=0,DC$107=0),"",SQRT(($CY$110-$CY111)^2+($CZ$110-$CZ111)^2)),"") -> 5.966190413 | KK111: 4 | KL111: 5 | KM111: 55 | KN111: 6.907524787 | LI111: 4 | LJ111: 5 | LK111: 55
CP112: E | CQ112: 2.864973759 | CR112: 2.099180014 | CT112: 1.938262577 | CU112: 1.142375047 | CV112: 1 | CW112: Brand | CX112: 5 | CY112: 1.938262577 | CZ112: 1.142375047 | DA112: 2.113535309 | DB112: 8.287550303 | DC112: =IFERROR(IF(OR($CV112=0,DC$107=0),"",SQRT(($CY$110-$CY112)^2+($CZ$110-$CZ112)^2)),"") -> 1.265483958 | DD112: =IFERROR(IF(OR($CV112=0,DD$107=0),"",SQRT(($CY$111-$CY112)^2+($CZ$111-$CZ112)^2)),"") -> 7.16445671 | KK112: =+KK111 -> 4 | KL112: =+KL111+1 -> 6 | KM112: 56 | KN112: 6.12907066 | LI112: =+LI111 -> 4 | LJ112: =+LJ111+1 -> 6 | LK112: 56
CP113: F | CQ113: =+IF($CV113=1,(CT113)*8/($CU$152-1)+1,"") -> 3.323807802 | CR113: =+IF($CV113=1,(CU113)*8/($CU$152-1)+1,"") -> 2.962762811 | CT113: 2.415127654 | CU113: 2.039894495 | CV113: 1 | CW113: Brand | CX113: 6 | CY113: 2.415127654 | CZ113: 2.039894495 | DA113: 2.419596664 | DB113: 7.311878729 | DC113: 0.7752109626 | DD113: =IFERROR(IF(OR($CV113=0,DD$107=0),"",SQRT(($CY$111-$CY113)^2+($CZ$111-$CZ113)^2)),"") -> 6.224182835 | DE113: =IFERROR(IF(OR($CV113=0,DE$107=0),"",SQRT(($CY$112-$CY113)^2+($CZ$112-$CZ113)^2)),"") -> 1.016337277 | KK113: 4 | KL113: 7 | KM113: 57 | LI113: 4 | LJ113: 7 | LK113: 57
CP114: G | CQ114: 8.043292972 | CR114: 6.649565571 | CT114: 7.320076822 | CU114: 5.871579409 | CV114: 1 | CW114: Brand | CX114: 7 | CY114: 7.320076822 | CZ114: 5.871579409 | DA114: 6.889125613 | DB114: 1.341894421 | DC114: 5.966180006 | DD114: 1.326972976e-05 | DE114: =IFERROR(IF(OR($CV114=0,DE$107=0),"",SQRT(($CY$112-$CY114)^2+($CZ$112-$CZ114)^2)),"") -> 7.164446836 | DF114: =IFERROR(IF(OR($CV114=0,DF$107=0),"",SQRT(($CY$113-$CY114)^2+($CZ$113-$CZ114)^2)),"") -> 6.224173489 | KK114: 4 | KL114: 8 | KM114: 58 | KN114: 2.284346052 | LI114: 4 | LJ114: 8 | LK114: 58
CP115: H | CQ115: 7.338240136 | CR115: 4.649882324 | CT115: 6.587317168 | CU115: 3.793313597 | CV115: 1 | CW115: Brand | CX115: 8 | CY115: 6.587317168 | CZ115: 3.793313597 | DA115: 4.757104887 | DB115: 3.539788137 | DC115: 4.093724097 | DD115: 2.203674786 | DE115: 5.351745863 | DF115: =IFERROR(IF(OR($CV115=0,DF$107=0),"",SQRT(($CY$113-$CY115)^2+($CZ$113-$CZ115)^2)),"") -> 4.525665022 | DG115: =IFERROR(IF(OR($CV115=0,DG$107=0),"",SQRT(($CY$114-$CY115)^2+($CZ$114-$CZ115)^2)),"") -> 2.203661838 | KK115: 4 | KL115: 9 | KM115: 59 | LI115: 4 | LJ115: 9 | LK115: 59
CP116: I | CQ116: 8.043290051 | CR116: 6.64957802 | CT116: 7.320073786 | CU116: 5.871592348 | CV116: 1 | CW116: Brand | CX116: 9 | CY116: 7.320073786 | CZ116: 5.871592348 | DA116: 6.889135053 | DB116: 1.341882464 | DC116: 5.966186984 | DD116: 4.608645059e-06 | DE116: 7.164453096 | DF116: 6.224179062 | DG116: =IFERROR(IF(OR($CV116=0,DG$107=0),"",SQRT(($CY$114-$CY116)^2+($CZ$114-$CZ116)^2)),"") -> 1.329033483e-05 | DH116: =IFERROR(IF(OR($CV116=0,DH$107=0),"",SQRT(($CY$115-$CY116)^2+($CZ$115-$CZ116)^2)),"") -> 2.203673031 | KK116: 4 | KL116: 10 | KM116: 60 | LI116: 4 | LJ116: 10 | LK116: 60
CP117: J | CQ117: 8.043278832 | CR117: 6.649596738 | CT117: 7.320062126 | CU117: 5.871611801 | CV117: 1 | CW117: Brand | CX117: 10 | CY117: 7.320062126 | CZ117: 5.871611801 | DA117: 6.889145534 | DB117: 1.341866045 | DC117: 5.966192446 | DD117: 2.517362602e-05 | DE117: 7.164457178 | DF117: 6.224181849 | DG117: 3.55703749e-05 | DH117: =IFERROR(IF(OR($CV117=0,DH$107=0),"",SQRT(($CY$115-$CY117)^2+($CZ$115-$CZ117)^2)),"") -> 2.203687501 | DI117: =IFERROR(IF(OR($CV117=0,DI$107=0),"",SQRT(($CY$116-$CY117)^2+($CZ$116-$CZ117)^2)),"") -> 2.268041293e-05 | KK117: 4 | KL117: 11 | KM117: 61 | KN117: 6.907524787 | LI117: 4 | LJ117: 11 | LK117: 61
CP118: K | CQ118: 2.864820374 | CR118: 2.099378053 | CT118: 1.938103164 | CU118: 1.142580869 | CV118: 1 | CW118: Brand | CX118: 11 | CY118: 1.938103164 | CZ118: 1.142580869 | DA118: 2.113780675 | DB118: 8.287509531 | DC118: 1.265544792 | DD118: 7.164440601 | DE118: 0.0002603368535 | DF118: 1.016230341 | DG118: 7.164430727 | DH118: 5.351782399 | DI118: =IFERROR(IF(OR($CV118=0,DI$107=0),"",SQRT(($CY$116-$CY118)^2+($CZ$116-$CZ118)^2)),"") -> 7.164436987 | DJ118: =IFERROR(IF(OR($CV118=0,DJ$107=0),"",SQRT(($CY$117-$CY118)^2+($CZ$117-$CZ118)^2)),"") -> 7.164441069 | KK118: 4 | KL118: 12 | KM118: 62 | KN118: 2.284346052 | LI118: 4 | LJ118: 12 | LK118: 62
CP119: L | CQ119: 9 | CR119: 4.797511002 | CT119: 8.31438005 | CU119: 3.946743714 | CV119: 1 | CW119: Brand | CX119: 12 | CY119: 8.31438005 | CZ119: 3.946743714 | DA119: 6.059407001 | DB119: 3.308820022 | DC119: 5.700161026 | DD119: 2.166490012 | DE119: 6.965583798 | DF119: 6.199778446 | DG119: 2.166479024 | DH119: 1.733864758 | DI119: 2.166491913 | DJ119: =IFERROR(IF(OR($CV119=0,DJ$107=0),"",SQRT(($CY$117-$CY119)^2+($CZ$117-$CZ119)^2)),"") -> 2.166514548 | DK119: =IFERROR(IF(OR($CV119=0,DK$107=0),"",SQRT(($CY$118-$CY119)^2+($CZ$118-$CZ119)^2)),"") -> 6.965646861 | KK119: 4 | KL119: 13 | KM119: 63 | KN119: 2.284346052 | LI119: 4 | LJ119: 13 | LK119: 63
CP120: M | CQ120: 7.338220855 | CR120: 4.649899382 | CT120: 6.587297129 | CU120: 3.793331326 | CV120: 1 | CW120: Brand | CX120: 13 | CY120: 6.587297129 | CZ120: 3.793331326 | DA120: 4.75710693 | DB120: 3.539776987 | DC120: 4.093716218 | DD120: 2.203664729 | DE120: 5.351737237 | DF120: 4.525653417 | DG120: 2.203651781 | DH120: 2.675603502e-05 | DI120: 2.203662974 | DJ120: 2.203677444 | DK120: =IFERROR(IF(OR($CV120=0,DK$107=0),"",SQRT(($CY$118-$CY120)^2+($CZ$118-$CZ120)^2)),"") -> 5.351773772 | DL120: =IFERROR(IF(OR($CV120=0,DL$107=0),"",SQRT(($CY$119-$CY120)^2+($CZ$119-$CZ120)^2)),"") -> 1.73388315 | KK120: 4 | KL120: 14 | KM120: 64 | KN120: 1.369900853 | LI120: 4 | LJ120: 14 | LK120: 64
CP121: N | CQ121: 6.977080079 | CR121: 6.748908731 | CT121: 6.211964421 | CU121: 5.974826508 | CV121: 1 | CW121: Brand | CX121: 14 | CY121: 6.211964421 | CZ121: 5.974826508 | DA121: 6.474933677 | DB121: 1.849816701 | DC121: 5.32286581 | DD121: 1.112912309 | DE121: 6.451132813 | DF121: 5.4680581 | DG121: 1.112911972 | DH121: 2.213569123 | DI121: 1.112907749 | DJ121: 1.112894334 | DK121: 6.451084246 | DL121: =IFERROR(IF(OR($CV121=0,DL$107=0),"",SQRT(($CY$119-$CY121)^2+($CZ$119-$CZ121)^2)),"") -> 2.921176354 | DM121: =IFERROR(IF(OR($CV121=0,DM$107=0),"",SQRT(($CY$120-$CY121)^2+($CZ$120-$CZ121)^2)),"") -> 2.213548253 | KK121: 4 | KL121: 15 | KM121: 65 | KN121: =INDEX(branddiff,KO$56,KM121) -> 2.10970256 | LI121: 4 | LJ121: 15 | LK121: 65 | LL121: =INDEX(attdiff,LM$56,LK121) -> 
CP122: O | CQ122: 8.206012595 | CR122: 4.698844554 | CT122: 7.48919092 | CU122: 3.844199921 | CV122: 1 | CW122: Brand | CX122: 15 | CY122: 7.48919092 | CZ122: 3.844199921 | DA122: 5.386116367 | DB122: 3.338895043 | DC122: 4.908764522 | DD122: 2.034433598 | DE122: 6.173545425 | DF122: 5.385316713 | DG122: 2.034420597 | DH122: 0.9033081882 | DI122: 2.034433743 | DJ122: 2.034454099 | DK122: 6.173598689 | DL122: 0.8315361267 | DM122: =IFERROR(IF(OR($CV122=0,DM$107=0),"",SQRT(($CY$120-$CY122)^2+($CZ$120-$CZ122)^2)),"") -> 0.9033271969 | DN122: =IFERROR(IF(OR($CV122=0,DN$107=0),"",SQRT(($CY$121-$CY122)^2+($CZ$121-$CZ122)^2)),"") -> 2.484125033 | KK122: 4 | KL122: 16 | KM122: 66 | KN122: 7.953762393 | LI122: 4 | LJ122: 16 | LK122: 66
CP123: P | CQ123: 1.592169853 | CR123: 2.034159836 | CT123: 0.6154406517 | CU123: 1.074799738 | CV123: 1 | CW123: Brand | CX123: 16 | CY123: 0.6154406517 | CZ123: 1.074799738 | DA123: 3.28202911 | DB123: 9.288260053 | DC123: 2.545329367 | DD123: 8.243869771 | DE123: 1.324546816 | DF123: 2.042126635 | DG123: 8.24386083 | DH123: 6.56152625 | DI123: 8.24386589 | DJ123: 8.243867726 | DK123: 1.324398129 | DL123: 8.217160706 | DM123: 6.561515357 | DN123: =IFERROR(IF(OR($CV123=0,DN$107=0),"",SQRT(($CY$121-$CY123)^2+($CZ$121-$CZ123)^2)),"") -> 7.438503925 | DO123: =IFERROR(IF(OR($CV123=0,DO$107=0),"",SQRT(($CY$122-$CY123)^2+($CZ$122-$CZ123)^2)),"") -> 7.410669344 | KK123: 4 | KL123: 17 | KM123: 67 | KN123: 3.297492133 | LI123: 4 | LJ123: 17 | LK123: 67
CP124: Q | CQ124: 5.455487263 | CR124: 5.084293763 | CT124: 4.630576801 | CU124: 4.244796322 | CV124: 1 | CW124: Brand | CX124: 17 | CY124: 4.630576801 | CZ124: 4.244796322 | DA124: 4.342011972 | DB124: 4.186239255 | DC124: 3.006169938 | DD124: 3.143228415 | DE124: 4.107745568 | DF124: 3.125669047 | DG124: 3.143220255 | DH124: 2.008150769 | DI124: 3.143224354 | DJ124: 3.143224446 | DK124: 4.107694609 | DL124: 3.69584114 | DM124: 2.008127257 | DN124: 2.343883795 | DO124: =IFERROR(IF(OR($CV124=0,DO$107=0),"",SQRT(($CY$122-$CY124)^2+($CZ$122-$CZ124)^2)),"") -> 2.886546753 | DP124: =IFERROR(IF(OR($CV124=0,DP$107=0),"",SQRT(($CY$123-$CY124)^2+($CZ$123-$CZ124)^2)),"") -> 5.115681445 | KK124: 4 | KL124: 18 | KM124: 68 | KN124: 3.297492133 | LI124: 4 | LJ124: 18 | LK124: 68
CP125: R | CQ125: 5.455498122 | CR125: 5.084245985 | CT125: 4.630588087 | CU125: 4.244746667 | CV125: 1 | CW125: Brand | CX125: 18 | CY125: 4.630588087 | CZ125: 4.244746667 | DA125: 4.341965805 | DB125: 4.186266035 | DC125: 3.006133055 | DD125: 3.143244458 | DE125: 4.107715462 | DF125: 3.125642019 | DG125: 3.143236298 | DH125: 2.00812861 | DI125: 3.143240397 | DJ125: 3.143240489 | DK125: 4.107664507 | DL125: 3.695825887 | DM125: 2.008105098 | DN125: 2.343912832 | DO125: 2.886528686 | DP125: =IFERROR(IF(OR($CV125=0,DP$107=0),"",SQRT(($CY$123-$CY125)^2+($CZ$123-$CZ125)^2)),"") -> 5.115659533 | DQ125: =IFERROR(IF(OR($CV125=0,DQ$107=0),"",SQRT(($CY$124-$CY125)^2+($CZ$124-$CZ125)^2)),"") -> 5.092124893e-05 | KK125: 4 | KL125: 19 | KM125: 69 | KN125: 5.808711092 | LI125: 4 | LJ125: 19 | LK125: 69
CP126: S | CQ126: 2.536521155 | CR126: 6.852999275 | CT126: 1.596902605 | CU126: 6.08300755 | CV126: 1 | CW126: Brand | CX126: 19 | CY126: 1.596902605 | CZ126: 6.08300755 | DA126: 6.441640164 | DB126: 6.117076327 | DC126: 4.666856099 | DD126: 5.727079303 | DE126: 4.952411146 | DF126: 4.125076412 | DG126: 5.727078224 | DH126: 5.490622543 | DI126: 5.727074712 | DJ126: 5.727062342 | DK126: 4.952194827 | DL126: 7.048980522 | DM126: 5.490596936 | DN126: 4.61632957 | DO126: 6.303278606 | DP126: 5.103470687 | DQ126: =IFERROR(IF(OR($CV126=0,DQ$107=0),"",SQRT(($CY$124-$CY126)^2+($CZ$124-$CZ126)^2)),"") -> 3.547139643 | DR126: =IFERROR(IF(OR($CV126=0,DR$107=0),"",SQRT(($CY$125-$CY126)^2+($CZ$125-$CZ126)^2)),"") -> 3.547175027 | KK126: 4 | KL126: 20 | KM126: 70 | KN126: 1.676336753 | LI126: 4 | LJ126: 20 | LK126: 70
CP127: T | CQ127: 7.227343751 | CR127: 5.665620959 | CT127: 6.472062831 | CU127: 4.848968227 | CV127: 1 | CW127: Brand | CX127: 20 | CY127: 6.472062831 | CZ127: 4.848968227 | DA127: 5.577156253 | DB127: 2.596672762 | DC127: 4.645442298 | DD127: 1.328491989 | DE127: 5.856123098 | DF127: 4.934533237 | DG127: 1.328480846 | DH127: 1.061927615 | DI127: 1.328488868 | DJ127: 1.3284964 | DK127: 5.856116248 | DL127: 2.051375589 | DM127: 1.061907816 | DN127: 1.15551203 | DO127: 1.429723364 | DP127: 6.967379072 | DQ127: 1.938064624 | DR127: =IFERROR(IF(OR($CV127=0,DR$107=0),"",SQRT(($CY$125-$CY127)^2+($CZ$125-$CZ127)^2)),"") -> 1.938069381 | DS127: =IFERROR(IF(OR($CV127=0,DS$107=0),"",SQRT(($CY$126-$CY127)^2+($CZ$126-$CZ127)^2)),"") -> 5.028920389 | KK127: 5 | KL127: 6 | KM127: 71 | KN127: 1.457222599 | LI127: 5 | LJ127: 6 | LK127: 71
CP128: =IF(E$9<>"",E$9,"") -> Sweet Taste | CQ128: 6.847334176 | CR128: 8.489134375 | CT128: 6.077119827 | CU128: 7.78343868 | CV128: =IF(BG$5="",0,1) -> 1 | CW128: Attribute | CX128: 1 | CY128: 6.077119827 | CZ128: 7.78343868 | DA128: 8.133450221 | DB128: 1.651464244 | DC128: 6.810336854 | DD128: 2.2803731 | DE128: 7.825207059 | DF128: 6.81164345 | DG128: 2.280383293 | DH128: 4.022611031 | DI128: 2.280370791 | DJ128: 2.280348125 | DK128: 7.825116702 | DL128: 4.441346819 | DM128: 4.022590903 | DN128: 1.813632007 | DO128: 4.184680008 | DP128: 8.650767358 | DQ128: 3.822888497 | DR128: 3.82293019 | DS128: =IFERROR(IF(OR($CV128=0,DS$107=0),"",SQRT(($CY$126-$CY128)^2+($CZ$126-$CZ128)^2)),"") -> 4.792057219 | DT128: =IFERROR(IF(OR($CV128=0,DT$107=0),"",SQRT(($CY$127-$CY128)^2+($CZ$127-$CZ128)^2)),"") -> 2.960928371 | KK128: =+KK127 -> 5 | KL128: =+KL127+1 -> 7 | KM128: 72 | KN128: 6.907524787 | LI128: =+LI127 -> 5 | LJ128: =+LJ127+1 -> 7 | LK128: 72
CP129: =IF(F$9<>"",F$9,"") -> Savoury Taste | CQ129: 1 | CR129: 3.612705625 | CT129: 0 | CU129: 2.71537844 | CV129: =IF(BH$5="",0,1) -> 1 | CW129: Attribute | CX129: 2 | CY129: 0 | CZ129: 2.71537844 | DA129: 4.602754678 | DB129: 8.827385355 | DC129: 3.266531881 | DD129: 7.971526538 | DE129: 2.496237467 | DF129: 2.507811824 | DG129: 7.971519882 | DH129: 6.674930087 | DI129: 7.971522217 | DJ129: 7.971519213 | DK129: 2.495983989 | DL129: 8.405068474 | DM129: 6.674913174 | DN129: 7.015162412 | DO129: 7.573784957 | DP129: 1.752217359 | DQ129: 4.876613638 | DR129: 4.876608781 | DS129: 3.727066373 | DT129: =IFERROR(IF(OR($CV129=0,DT$107=0),"",SQRT(($CY$127-$CY129)^2+($CZ$127-$CZ129)^2)),"") -> 6.814675536 | DU129: =IFERROR(IF(OR($CV129=0,DU$107=0),"",SQRT(($CY$128-$CY129)^2+($CZ$128-$CZ129)^2)),"") -> 7.913066409 | KK129: 5 | KL129: 8 | KM129: 73 | KN129: 5.367141384 | LI129: 5 | LJ129: 8 | LK129: 73
CP130: =IF(G$9<>"",G$9,"") ->  | CV130: =IF(BI$5="",0,1) -> 0 | CW130: Attribute | CX130: 3 | CY130: 0 | CZ130: 4.5 | DU130: =IFERROR(IF(OR($CV130=0,DU$107=0),"",SQRT(($CY$128-$CY130)^2+($CZ$128-$CZ130)^2)),"") ->  | DV130: =IFERROR(IF(OR($CV130=0,DV$107=0),"",SQRT(($CY$129-$CY130)^2+($CZ$129-$CZ130)^2)),"") ->  | KK130: 5 | KL130: 9 | KM130: 74 | KN130: 6.907524787 | LI130: 5 | LJ130: 9 | LK130: 74
CP131: =IF(H$9<>"",H$9,"") ->  | CV131: =IF(BJ$5="",0,1) -> 0 | CW131: Attribute | CX131: 4 | CY131: 1 | CZ131: 0 | DV131: =IFERROR(IF(OR($CV131=0,DV$107=0),"",SQRT(($CY$129-$CY131)^2+($CZ$129-$CZ131)^2)),"") ->  | DW131: =IFERROR(IF(OR($CV131=0,DW$107=0),"",SQRT(($CY$130-$CY131)^2+($CZ$130-$CZ131)^2)),"") ->  | KK131: 5 | KL131: 10 | KM131: 75 | KN131: 6.907524787 | LI131: 5 | LJ131: 10 | LK131: 75
CP132: =IF(I$9<>"",I$9,"") ->  | CV132: =IF(BK$5="",0,1) -> 0 | CW132: Attribute | CX132: 5 | CY132: 0 | CZ132: 1 | DW132: =IFERROR(IF(OR($CV132=0,DW$107=0),"",SQRT(($CY$130-$CY132)^2+($CZ$130-$CZ132)^2)),"") ->  | DX132: =IFERROR(IF(OR($CV132=0,DX$107=0),"",SQRT(($CY$131-$CY132)^2+($CZ$131-$CZ132)^2)),"") ->  | KK132: 5 | KL132: 11 | KM132: 76 | LI132: 5 | LJ132: 11 | LK132: 76
CP133: =IF(J$9<>"",J$9,"") ->  | CV133: =IF(BL$5="",0,1) -> 0 | CW133: Attribute | CX133: 6 | CY133: 2 | CZ133: 0 | DU133: =IFERROR(IF(OR($CV133=0,DU$107=0),"",SQRT(($CY$128-$CY133)^2+($CZ$128-$CZ133)^2)),"") ->  | DV133: =IFERROR(IF(OR($CV133=0,DV$107=0),"",SQRT(($CY$129-$CY133)^2+($CZ$129-$CZ133)^2)),"") ->  | DX133: =IFERROR(IF(OR($CV133=0,DX$107=0),"",SQRT(($CY$131-$CY133)^2+($CZ$131-$CZ133)^2)),"") ->  | DY133: =IFERROR(IF(OR($CV133=0,DY$107=0),"",SQRT(($CY$132-$CY133)^2+($CZ$132-$CZ133)^2)),"") ->  | KK133: 5 | KL133: 12 | KM133: 77 | KN133: 6.594571186 | LI133: 5 | LJ133: 12 | LK133: 77
CP134: =IF(K$9<>"",K$9,"") ->  | CV134: =IF(BM$5="",0,1) -> 0 | CW134: Attribute | CX134: 7 | CY134: 0 | CZ134: 7 | DY134: =IFERROR(IF(OR($CV134=0,DY$107=0),"",SQRT(($CY$132-$CY134)^2+($CZ$132-$CZ134)^2)),"") ->  | DZ134: =IFERROR(IF(OR($CV134=0,DZ$107=0),"",SQRT(($CY$133-$CY134)^2+($CZ$133-$CZ134)^2)),"") ->  | KK134: 5 | KL134: 13 | KM134: 78 | KN134: 5.367141384 | LI134: 5 | LJ134: 13 | LK134: 78
CP135: =IF(L$9<>"",L$9,"") ->  | CV135: =IF(BN$5="",0,1) -> 0 | CW135: Attribute | CX135: 8 | CY135: 2 | CZ135: 0 | DW135: =IFERROR(IF(OR($CV135=0,DW$107=0),"",SQRT(($CY$130-$CY135)^2+($CZ$130-$CZ135)^2)),"") ->  | DZ135: =IFERROR(IF(OR($CV135=0,DZ$107=0),"",SQRT(($CY$133-$CY135)^2+($CZ$133-$CZ135)^2)),"") ->  | EA135: =IFERROR(IF(OR($CV135=0,EA$107=0),"",SQRT(($CY$134-$CY135)^2+($CZ$134-$CZ135)^2)),"") ->  | KK135: 5 | KL135: 14 | KM135: 79 | KN135: 6.408135184 | LI135: 5 | LJ135: 14 | LK135: 79
CP136: =IF(M$9<>"",M$9,"") ->  | CV136: =IF(BO$5="",0,1) -> 0 | CW136: Attribute | CX136: 9 | CY136: 0 | CZ136: 3 | EA136: =IFERROR(IF(OR($CV136=0,EA$107=0),"",SQRT(($CY$134-$CY136)^2+($CZ$134-$CZ136)^2)),"") ->  | EB136: =IFERROR(IF(OR($CV136=0,EB$107=0),"",SQRT(($CY$135-$CY136)^2+($CZ$135-$CZ136)^2)),"") ->  | KK136: 5 | KL136: 15 | KM136: 80 | KN136: 5.964885119 | LI136: 5 | LJ136: 15 | LK136: 80
CP137: =IF(N$9<>"",N$9,"") ->  | CV137: =IF(BP$5="",0,1) -> 0 | CW137: Attribute | CX137: 10 | CY137: 9 | CZ137: 0 | EB137: =IFERROR(IF(OR($CV137=0,EB$107=0),"",SQRT(($CY$135-$CY137)^2+($CZ$135-$CZ137)^2)),"") ->  | EC137: =IFERROR(IF(OR($CV137=0,EC$107=0),"",SQRT(($CY$136-$CY137)^2+($CZ$136-$CZ137)^2)),"") ->  | KK137: 5 | KL137: 16 | KM137: 81 | KN137: 1.676336753 | LI137: 5 | LJ137: 16 | LK137: 81
CP138: =IF(O$9<>"",O$9,"") ->  | CV138: =IF(BQ$5="",0,1) -> 0 | CW138: Attribute | CX138: 11 | CY138: 0 | CZ138: 8 | EC138: =IFERROR(IF(OR($CV138=0,EC$107=0),"",SQRT(($CY$136-$CY138)^2+($CZ$136-$CZ138)^2)),"") ->  | ED138: =IFERROR(IF(OR($CV138=0,ED$107=0),"",SQRT(($CY$137-$CY138)^2+($CZ$137-$CZ138)^2)),"") ->  | KK138: 5 | KL138: 17 | KM138: 82 | KN138: 4.329107679 | LI138: 5 | LJ138: 17 | LK138: 82
CP139: =IF(P$9<>"",P$9,"") ->  | CV139: =IF(BR$5="",0,1) -> 0 | CW139: Attribute | CX139: 12 | CY139: 7.5 | CZ139: 0 | ED139: =IFERROR(IF(OR($CV139=0,ED$107=0),"",SQRT(($CY$137-$CY139)^2+($CZ$137-$CZ139)^2)),"") ->  | EE139: =IFERROR(IF(OR($CV139=0,EE$107=0),"",SQRT(($CY$138-$CY139)^2+($CZ$138-$CZ139)^2)),"") ->  | KK139: 5 | KL139: 18 | KM139: 83 | KN139: 4.329107679 | LI139: 5 | LJ139: 18 | LK139: 83
CP140: =IF(Q$9<>"",Q$9,"") ->  | CV140: =IF(BS$5="",0,1) -> 0 | CW140: Attribute | CX140: 13 | CY140: 0 | CZ140: 3.998314412 | EE140: =IFERROR(IF(OR($CV140=0,EE$107=0),"",SQRT(($CY$138-$CY140)^2+($CZ$138-$CZ140)^2)),"") ->  | EF140: =IFERROR(IF(OR($CV140=0,EF$107=0),"",SQRT(($CY$139-$CY140)^2+($CZ$139-$CZ140)^2)),"") ->  | KK140: 5 | KL140: 19 | KM140: =+KM139+1 -> 84 | KN140: 5.130137246 | LI140: 5 | LJ140: 19 | LK140: =+LK139+1 -> 84
CP141: =IF(R$9<>"",R$9,"") ->  | CV141: =IF(BT$5="",0,1) -> 0 | CW141: Attribute | CX141: 14 | CY141: 7.004505631 | CZ141: 0 | EF141: =IFERROR(IF(OR($CV141=0,EF$107=0),"",SQRT(($CY$139-$CY141)^2+($CZ$139-$CZ141)^2)),"") ->  | EG141: =IFERROR(IF(OR($CV141=0,EG$107=0),"",SQRT(($CY$140-$CY141)^2+($CZ$140-$CZ141)^2)),"") ->  | KK141: 5 | KL141: 20 | KM141: 85 | KN141: 5.86128718 | LI141: 5 | LJ141: 20 | LK141: 85
CP142: =IF(S$9<>"",S$9,"") ->  | CV142: =IF(BU$5="",0,1) -> 0 | CW142: Attribute | CX142: 15 | CY142: 0 | CZ142: 0.9974396979 | EG142: =IFERROR(IF(OR($CV142=0,EG$107=0),"",SQRT(($CY$140-$CY142)^2+($CZ$140-$CZ142)^2)),"") ->  | EH142: =IFERROR(IF(OR($CV142=0,EH$107=0),"",SQRT(($CY$141-$CY142)^2+($CZ$141-$CZ142)^2)),"") ->  | KK142: 6 | KL142: 7 | KM142: 86 | KN142: 6.12907066 | LI142: 6 | LJ142: 7 | LK142: 86
CP143: =IF(T$9<>"",T$9,"") ->  | CV143: =IF(BV$5="",0,1) -> 0 | CW143: Attribute | CX143: 16 | CY143: 4.009975329 | CZ143: 0 | EH143: =IFERROR(IF(OR($CV143=0,EH$107=0),"",SQRT(($CY$141-$CY143)^2+($CZ$141-$CZ143)^2)),"") ->  | EI143: =IFERROR(IF(OR($CV143=0,EI$107=0),"",SQRT(($CY$142-$CY143)^2+($CZ$142-$CZ143)^2)),"") ->  | KK143: =+KK142 -> 6 | KL143: =+KL142+1 -> 8 | KM143: 87 | KN143: 4.631188626 | LI143: =+LI142 -> 6 | LJ143: =+LJ142+1 -> 8 | LK143: 87
CP144: =IF(U$9<>"",U$9,"") ->  | CV144: =IF(BW$5="",0,1) -> 0 | CW144: Attribute | CX144: 17 | CY144: 0 | CZ144: 8.002944484 | EI144: =IFERROR(IF(OR($CV144=0,EI$107=0),"",SQRT(($CY$142-$CY144)^2+($CZ$142-$CZ144)^2)),"") ->  | EJ144: =IFERROR(IF(OR($CV144=0,EJ$107=0),"",SQRT(($CY$143-$CY144)^2+($CZ$143-$CZ144)^2)),"") ->  | KK144: 6 | KL144: 9 | KM144: 88 | KN144: 6.12907066 | LI144: 6 | LJ144: 9 | LK144: 88
CP145: =IF(V$9<>"",V$9,"") ->  | CV145: =IF(BX$5="",0,1) -> 0 | CW145: Attribute | CX145: 18 | CY145: 4.307595031 | CZ145: 0 | EJ145: =IFERROR(IF(OR($CV145=0,EJ$107=0),"",SQRT(($CY$143-$CY145)^2+($CZ$143-$CZ145)^2)),"") ->  | EK145: =IFERROR(IF(OR($CV145=0,EK$107=0),"",SQRT(($CY$144-$CY145)^2+($CZ$144-$CZ145)^2)),"") ->  | KK145: 6 | KL145: 10 | KM145: 89 | KN145: 6.12907066 | LI145: 6 | LJ145: 10 | LK145: 89
CP146: =IF(W$9<>"",W$9,"") ->  | CV146: =IF(BY$5="",0,1) -> 0 | CW146: Attribute | CX146: 19 | CY146: 0 | CZ146: 5.325474062 | EK146: =IFERROR(IF(OR($CV146=0,EK$107=0),"",SQRT(($CY$144-$CY146)^2+($CZ$144-$CZ146)^2)),"") ->  | EL146: =IFERROR(IF(OR($CV146=0,EL$107=0),"",SQRT(($CY$145-$CY146)^2+($CZ$145-$CZ146)^2)),"") ->  | KK146: 6 | KL146: 11 | KM146: 90 | KN146: 1.457222599 | LI146: 6 | LJ146: 11 | LK146: 90
CP147: =IF(X$9<>"",X$9,"") ->  | CV147: =IF(BZ$5="",0,1) -> 0 | CW147: Attribute | CX147: 20 | CY147: 17.92031128 | CZ147: 0 | EL147: =IFERROR(IF(OR($CV147=0,EL$107=0),"",SQRT(($CY$145-$CY147)^2+($CZ$145-$CZ147)^2)),"") ->  | EM147: =IFERROR(IF(OR($CV147=0,EM$107=0),"",SQRT(($CY$146-$CY147)^2+($CZ$146-$CZ147)^2)),"") ->  | KK147: 6 | KL147: 12 | KM147: 91 | KN147: 5.926273374 | LI147: 6 | LJ147: 12 | LK147: 91
CQ148: Min | CR148: =MIN(CQ124:CR146) -> 1 | CT148: Min | CU148: =MIN(CT108:CU147) -> 0 | DA148: =IF(DA$107=1,SUM(DA109:DA147),"") -> 108.3051468 | DB148: =IF(DB107=1,SUM(DB109:DB147),"") -> 88.81995966 | DC148: 79.23702073 | DD148: 62.11211221 | DE148: 83.47368648 | DF148: 72.46573906 | DG148: 48.72338443 | DH148: 42.43780866 | DI148: 46.51974327 | DJ148: 46.51974023 | DK148: 55.61127258 | DL148: 43.04219477 | DM148: 30.94463199 | DN148: 29.2110616 | DO148: 32.67521172 | DP148: 32.70517545 | DQ148: 14.18475732 | DR148: 14.18478338 | DS148: 13.54804398 | DT148: 9.775603907 | DU148: 7.913066409 | DV148: 0 | KK148: 6 | KL148: 13 | KM148: 92 | KN148: 4.631188626 | LI148: 6 | LJ148: 13 | LK148: 92
CQ149: Max | CR149: =MAX(CQ124:CR147) -> 8.489134375 | CT149: Max | CU149: =MAX(CT108:CU147) -> 8.31438005 | KK149: 6 | KL149: 14 | KM149: 93 | KN149: 5.60660616 | LI149: 6 | LJ149: 14 | LK149: 93
CR150: =+CR149-CR148 -> 7.489134375 | CU150: =+CU149-CU148 -> 8.31438005 | CW150: Brand | CX150: 1 | DA150: =IF(DA108="","",DA108^2) ->  | DB150: =IF(DB108="","",DB108^2) ->  | KK150: 6 | KL150: 15 | KM150: 94 | KN150: 5.264943553 | LI150: 6 | LJ150: 15 | LK150: 94
CT151: Adj | CU151: =1-CU148 -> 1 | CW151: Brand | CX151: 2 | DA151: =IF(DA109="","",DA109^2) -> 66.75736275 | KK151: 6 | KL151: 16 | KM151: 95 | KN151: 2.479603413 | LI151: 6 | LJ151: 16 | LK151: 95
CT152: Range | CU152: =+CU151+CU149 -> 9.31438005 | CW152: Brand | CX152: 3 | DA152: 3.152383562 | DB152: 50.9087391 | KK152: 6 | KL152: 17 | KM152: 96 | KN152: 3.519117166 | LI152: 6 | LJ152: 17 | LK152: 96
CT153: To 9 | CU153: =8/CU152 -> 0.8588870067 | CW153: Brand | CX153: 4 | DA153: 47.46021774 | DB153: 1.800645213 | DC153: 35.59542805 | KK153: 6 | KL153: 18 | KM153: 97 | KN153: =INDEX(branddiff,KO$56,KM153) -> 3.519117166 | LI153: 6 | LJ153: 18 | LK153: 97 | LL153: =INDEX(attdiff,LM$56,LK153) -> 
CW154: Brand | CX154: 5 | DA154: 4.467031501 | DB154: 68.68349002 | DC154: 1.601449648 | DD154: 51.32943995 | KK154: 6 | KL154: 19 | KM154: 98 | KN154: 4.491977432 | LI154: 6 | LJ154: 19 | LK154: 98
CW155: Brand | CX155: 6 | DA155: 5.854448017 | DB155: 53.46357055 | DC155: 0.6009520365 | DD155: 38.74045197 | DE155: 1.03294146 | KK155: 6 | KL155: 20 | KM155: 99 | KN155: 5.084295255 | LI155: 6 | LJ155: 20 | LK155: 99
CW156: Brand | CX156: 7 | DA156: 47.46005172 | DB156: 1.800680637 | DC156: 35.59530387 | DD156: 1.760857279e-10 | DE156: 51.32929846 | DF156: 38.74033562 | KK156: 7 | KL156: 8 | KM156: 100 | KN156: 2.284346052 | LI156: 7 | LJ156: 8 | LK156: 100
CW157: Brand | CX157: 8 | DA157: 22.6300469 | DB157: 12.53010005 | DC157: 16.75857699 | DD157: 4.856182562 | DE157: 28.64118378 | DF157: =IF(DF115="","",DF115^2) -> 20.48164389 | DG157: 4.856125495 | KK157: =+KK156 -> 7 | KL157: =+KL156+1 -> 9 | KM157: 101 | LI157: =+LI156 -> 7 | LJ157: =+LJ156+1 -> 9 | LK157: 101
CW158: Brand | CX158: 9 | DA158: 47.46018178 | DB158: 1.800648548 | DC158: 35.59538712 | DD158: 2.123960928e-11 | DE158: 51.32938816 | DF158: 38.740405 | DG158: 1.766329998e-10 | DH158: 4.856174827 | KK158: 7 | KL158: 10 | KM158: 102 | LI158: 7 | LJ158: 10 | LK158: 102
CW159: Brand | CX159: 10 | DA159: 47.46032619 | DB159: 1.800604484 | DC159: 35.59545231 | DD159: 6.337114469e-10 | DE159: 51.32944666 | DF159: 38.74043969 | DG159: 1.265251571e-09 | DH159: 4.8562386 | DI159: 5.144011307e-10 | KK159: 7 | KL159: 11 | KM159: 103 | KN159: 6.907524787 | LI159: 7 | LJ159: 11 | LK159: 103
CW160: Brand | CX160: 11 | DA160: 4.468068741 | DB160: 68.68281422 | DC160: 1.601603621 | DD160: 51.32920913 | DE160: 6.77752773e-08 | DF160: 1.032724107 | DG160: 51.32906764 | DH160: 28.64157485 | DI160: 51.32915734 | DJ160: 51.32921582 | KK160: 7 | KL160: 12 | KM160: 104 | KN160: 2.284346052 | LI160: 7 | LJ160: 12 | LK160: 104
CW161: Brand | CX161: 12 | DA161: 36.7164132 | DB161: 10.94828994 | DC161: 32.49183572 | DD161: 4.693678972 | DE161: 48.51935765 | DF161: 38.43725278 | DG161: 4.69363136 | DH161: 3.006287 | DI161: 4.693687208 | DJ161: 4.693785286 | DK161: 48.52023619 | KK161: 7 | KL161: 13 | KM161: 105 | KN161: 2.284346052 | LI161: 7 | LJ161: 13 | LK161: 105
CW162: Brand | CX162: 13 | DA162: 22.63006635 | DB162: 12.53002112 | DC162: 16.75851247 | DD162: 4.856138238 | DE162: 28.64109145 | DF162: 20.48153885 | DG162: 4.856081172 | DH162: 7.1588541e-10 | DI162: 4.856130504 | DJ162: 4.856194275 | DK162: 28.6414825 | DL162: 3.006350778 | KK162: 7 | KL162: 14 | KM162: 106 | KN162: 1.369900853 | LI162: 7 | LJ162: 14 | LK162: 106
CW163: Brand | CX163: 14 | DA163: 41.92476612 | DB163: 3.421821828 | DC163: 28.33290043 | DD163: 1.238573808 | DE163: 41.61711457 | DF163: 29.89965938 | DG163: 1.238573057 | DH163: 4.899888263 | DI163: 1.238563657 | DJ163: 1.2385338 | DK163: 41.61648795 | DL163: 8.533271294 | DM163: 4.899795868 | EG163: =IF(EG121="","",EG121^2) ->  | KK163: 7 | KL163: 15 | KM163: 107 | KN163: 2.10970256 | LI163: 7 | LJ163: 15 | LK163: 107
CW164: Brand | CX164: 15 | DA164: 29.01024952 | DB164: 11.14822011 | DC164: 24.09596913 | DD164: 4.138920065 | DE164: 38.11266311 | DF164: 29.0016361 | DG164: 4.138867165 | DH164: 0.8159656828 | DI164: 4.138920656 | DJ164: 4.139003481 | DK164: 38.11332077 | DL164: 0.6914523299 | DM164: 0.8160000247 | DN164: 6.170877181 | KK164: 7 | KL164: 16 | KM164: 108 | KN164: 7.953762393 | LI164: 7 | LJ164: 16 | LK164: 108
CW165: Brand | CX165: 16 | DA165: 10.77171508 | DB165: 86.27177481 | DC165: 6.478701588 | DD165: 67.96138881 | DE165: 1.754424269 | DF165: 4.170281195 | DG165: 67.96124139 | DH165: 43.05362672 | DI165: 67.96132481 | DJ165: 67.96135508 | DK165: 1.754030403 | DL165: 67.52173006 | DM165: 43.05348378 | DN165: 55.33134064 | DO165: 54.91802012 | KK165: 7 | KL165: 17 | KM165: 109 | KN165: 3.297492133 | LI165: 7 | LJ165: 17 | LK165: 109
CW166: Brand | CX166: 17 | DA166: 18.85306796 | DB166: 17.5245991 | DC166: 9.037057698 | DD166: 9.879884871 | DE166: 16.87357365 | DF166: 9.769806993 | DG166: 9.879833572 | DH166: 4.032669513 | DI166: 9.87985934 | DJ166: 9.879859915 | DK166: 16.873155 | DL166: 13.65924173 | DM166: 4.032575082 | DN166: 5.493791246 | DO166: 8.332152156 | DP166: 26.17019664 | KK166: 7 | KL166: 18 | KM166: 110 | KN166: 3.297492133 | LI166: 7 | LJ166: 18 | LK166: 110
CW167: Brand | CX167: 18 | DA167: 18.85266706 | DB167: 17.52482331 | DC167: 9.036835944 | DD167: 9.879985725 | DE167: 16.87332632 | DF167: 9.769638032 | DG167: 9.879934426 | DH167: 4.032580513 | DI167: 9.879960194 | DJ167: 9.879960772 | DK167: 16.8729077 | DL167: 13.65912899 | DM167: 4.032486085 | DN167: 5.493927364 | DO167: 8.332047853 | DP167: 26.16997246 | DQ167: 2.592973592e-09 | KK167: 7 | KL167: 19 | KM167: 111 | KN167: 5.808711092 | LI167: 7 | LJ167: 19 | LK167: 111
CW168: Brand | CX168: 19 | DA168: 41.494728 | DB168: 37.41862279 | DC168: 21.77954585 | DD168: 32.79943734 | DE168: 24.52637616 | DF168: 17.01625541 | DG168: 32.79942498 | DH168: 30.14693591 | DI168: 32.79938476 | DJ168: 32.79924307 | DK168: 24.52423361 | DL168: 49.6881264 | DM168: 30.14665471 | DN168: 21.3104987 | DO168: 39.73132119 | DP168: 26.04541305 | DQ168: 12.58219965 | DR168: 12.58245068 | KK168: 7 | KL168: 20 | KM168: 112 | KN168: 1.676336753 | LI168: 7 | LJ168: 20 | LK168: 112
CW169: Brand | CX169: 20 | DA169: 31.10467187 | DB169: 6.742709431 | DC169: 21.58013414 | DD169: 1.764890965 | DE169: 34.29417774 | DF169: 24.34961826 | DG169: 1.764861358 | DH169: 1.12769026 | DI169: 1.764882672 | DJ169: 1.764902684 | DK169: 34.29409751 | DL169: 4.208141807 | DM169: 1.12764821 | DN169: 1.33520805 | DO169: 2.044108898 | DP169: 48.54437113 | DQ169: 3.756094488 | DR169: 3.756112927 | DS169: 25.29004028 | KK169: 8 | KL169: 9 | KM169: 113 | KN169: 2.284346052 | LI169: 8 | LJ169: 9 | LK169: 113
CW170: Attribute | CX170: 1 | DA170: 66.15301249 | DB170: 2.727334149 | DC170: 46.38068807 | DD170: 5.200101474 | DE170: 61.23386551 | DF170: 46.39848649 | DG170: 5.200147964 | DH170: 16.18139951 | DI170: 5.200090942 | DJ170: 5.199987572 | DK170: 61.2324514 | DL170: 19.72556156 | DM170: 16.18123758 | DN170: 3.289261055 | DO170: 17.51154677 | DP170: 74.83577587 | DQ170: 14.61447646 | DR170: 14.61479524 | DS170: 22.96381239 | DT170: 8.767096815 | DV170: =IF(DV128="","",DV128^2) ->  | KK170: =+KK169 -> 8 | KL170: =+KL169+1 -> 10 | KM170: 114 | KN170: 2.284346052 | LI170: =+LI169 -> 8 | LJ170: =+LJ169+1 -> 10 | LK170: 114
CW171: Attribute | CX171: 2 | DA171: 21.18535062 | DB171: 77.9227322 | DC171: 10.67023053 | DD171: 63.54523535 | DE171: 6.231201492 | DF171: 6.289120144 | DG171: 63.54512923 | DH171: 44.55469167 | DI171: 63.54516646 | DJ171: 63.54511856 | DK171: 6.229936073 | DL171: 70.64517605 | DM171: 44.55446588 | DN171: 49.21250367 | DO171: 57.36221857 | DP171: 3.070265673 | DQ171: 23.78136057 | DR171: 23.7813132 | DS171: 13.89102375 | DT171: 46.43980267 | DU171: 62.61661999 | KK171: 8 | KL171: 11 | KM171: 115 | KN171: 5.367141384 | LI171: 8 | LJ171: 11 | LK171: 115
CW172: Attribute | CX172: 3 | KK172: 8 | KL172: 12 | KM172: =+KM171+1 -> 116 | KN172: 2.10970256 | LI172: 8 | LJ172: 12 | LK172: =+LK171+1 -> 116
CW173: Attribute | CX173: 4 | KK173: 8 | KL173: 13 | KM173: 117 | LI173: 8 | LJ173: 13 | LK173: 117
CW174: Attribute | CX174: 5 | KK174: 8 | KL174: 14 | KM174: 118 | KN174: 2.10970256 | LI174: 8 | LJ174: 14 | LK174: 118
CW175: Attribute | CX175: 6 | KK175: 8 | KL175: 15 | KM175: 119 | KN175: 1.369900853 | LI175: 8 | LJ175: 15 | LK175: 119
CW176: Attribute | CX176: 7 | KK176: 8 | KL176: 16 | KM176: 120 | KN176: 6.408135184 | LI176: 8 | LJ176: 16 | LK176: 120
CW177: Attribute | CX177: 8 | DK177: =IF(DK135="","",DK135^2) ->  | KK177: 8 | KL177: 17 | KM177: 121 | KN177: 2.10970256 | LI177: 8 | LJ177: 17 | LK177: 121
CW178: Attribute | CX178: 9 | KK178: 8 | KL178: 18 | KM178: 122 | KN178: 2.10970256 | LI178: 8 | LJ178: 18 | LK178: 122
CW179: Attribute | CX179: 10 | KK179: 8 | KL179: 19 | KM179: 123 | KN179: 5.309015965 | LI179: 8 | LJ179: 19 | LK179: 123
CW180: Attribute | CX180: 11 | KK180: 8 | KL180: 20 | KM180: 124 | KN180: 1.369900853 | LI180: 8 | LJ180: 20 | LK180: 124
CW181: Attribute | CX181: 12 | KK181: 9 | KL181: 10 | KM181: 125 | LI181: 9 | LJ181: 10 | LK181: 125
CW182: Attribute | CX182: 13 | KK182: =+KK181 -> 9 | KL182: =+KL181+1 -> 11 | KM182: 126 | KN182: 6.907524787 | LI182: =+LI181 -> 9 | LJ182: =+LJ181+1 -> 11 | LK182: 126
CW183: Attribute | CX183: 14 | EL183: =IF(EL141="","",EL141^2) ->  | KK183: 9 | KL183: 12 | KM183: 127 | KN183: 2.284346052 | LI183: 9 | LJ183: 12 | LK183: 127
CW184: Attribute | CX184: 15 | KK184: 9 | KL184: 13 | KM184: 128 | KN184: 2.284346052 | LI184: 9 | LJ184: 13 | LK184: 128
CW185: Attribute | CX185: 16 | KK185: 9 | KL185: 14 | KM185: 129 | KN185: =INDEX(branddiff,KO$56,KM185) -> 1.369900853 | LI185: 9 | LJ185: 14 | LK185: 129 | LL185: =INDEX(attdiff,LM$56,LK185) -> 
CW186: Attribute | CX186: 17 | KK186: 9 | KL186: 15 | KM186: 130 | KN186: 2.10970256 | LI186: 9 | LJ186: 15 | LK186: 130
CW187: Attribute | CX187: 18 | KK187: 9 | KL187: 16 | KM187: 131 | KN187: 7.953762393 | LI187: 9 | LJ187: 16 | LK187: 131
CW188: Attribute | CX188: 19 | KK188: 9 | KL188: 17 | KM188: 132 | KN188: 3.297492133 | LI188: 9 | LJ188: 17 | LK188: 132
CW189: Attribute | CX189: 20 | KK189: 9 | KL189: 18 | KM189: 133 | KN189: 3.297492133 | LI189: 9 | LJ189: 18 | LK189: 133
CY190: =SUM(DA190:EM190) -> 5314.897241 | DA190: =IF(DA$107=1,SUM(DA151:DA189),"") -> 635.8668272 | DB190: =IF(DB$107=1,SUM(DB151:DB189),"") -> 545.6522416 | DC190: 389.5865652 | DD190: 352.2135192 | DE190: 502.3394305 | DF190: 373.3188419 | DG190: 262.1429188 | DH190: 190.2057233 | DI190: 257.2871285 | DJ190: 257.2871603 | DK190: 318.6723391 | DL190: 251.338181 | DM190: 148.8443472 | DN190: 147.6374079 | DO190: 188.2314156 | DP190: 204.8359948 | DQ190: 54.73413117 | DR190: 54.73467204 | DS190: 62.14487642 | DT190: 55.20689948 | DU190: 62.61661999 | DV190: 0 | EL190: =SUM(EL151:EL189) -> 0 | EM190: 0 | KK190: 9 | KL190: 19 | KM190: 134 | KN190: 5.808711092 | LI190: 9 | LJ190: 19 | LK190: 134
KK191: 9 | KL191: 20 | KM191: 135 | KN191: 1.676336753 | LI191: 9 | LJ191: 20 | LK191: 135
KK192: 10 | KL192: 11 | KM192: 136 | KN192: 6.907524787 | LI192: 10 | LJ192: 11 | LK192: 136
CW193: Brand | CX193: 1 | KK193: =+KK192 -> 10 | KL193: =+KL192+1 -> 12 | KM193: 137 | KN193: 2.284346052 | LI193: =+LI192 -> 10 | LJ193: =+LJ192+1 -> 12 | LK193: 137
CW194: Brand | CX194: 2 | DA194: =IFERROR((DA109-DB66)^2,"") -> 0.3148819305 | DB194: =IFERROR((DB109-DC66)^2,"") -> 0 | DT194: 0 | DU194: 0 | DV194: 0 | DW194: 0 | DX194: 0 | DY194: 0 | DZ194: 0 | EA194: 0 | EB194: 0 | EC194: 0 | ED194: 0 | EE194: 0 | EF194: 0 | EG194: 0 | EH194: 0 | EI194: 0 | EJ194: 0 | EK194: 0 | EL194: 0 | EM194: 0 | KK194: 10 | KL194: 13 | KM194: 138 | KN194: 2.284346052 | LI194: 10 | LJ194: 13 | LK194: 138
CW195: Brand | CX195: 3 | DA195: 0.2589290876 | DB195: =IFERROR((DB110-DC67)^2,"") -> 0.0517613643 | DC195: 0 | DT195: 0 | DU195: 0 | DV195: 0 | DW195: 0 | DX195: 0 | DY195: 0 | DZ195: 0 | EA195: 0 | EB195: 0 | EC195: 0 | ED195: 0 | EE195: 0 | EF195: 0 | EG195: 0 | EH195: 0 | EI195: 0 | EJ195: 0 | EK195: 0 | EL195: 0 | EM195: 0 | KK195: 10 | KL195: 14 | KM195: 139 | KN195: 1.369900853 | LI195: 10 | LJ195: 14 | LK195: 139
CW196: Brand | CX196: 4 | DA196: 0.08676940928 | DB196: =IFERROR((DB111-DC68)^2,"") -> 0.1118605027 | DC196: 0.01100468833 | DD196: 0 | DT196: 0 | DU196: 0 | DV196: 0 | DW196: 0 | DX196: 0 | DY196: 0 | DZ196: 0 | EA196: 0 | EB196: 0 | EC196: 0 | ED196: 0 | EE196: 0 | EF196: 0 | EG196: 0 | EH196: 0 | EI196: 0 | EJ196: 0 | EK196: 0 | EL196: 0 | EM196: 0 | KK196: 10 | KL196: 15 | KM196: 140 | KN196: 2.10970256 | LI196: 10 | LJ196: 15 | LK196: 140
CW197: Brand | CX197: 5 | DA197: 0.02917631011 | DB197: =IFERROR((DB112-DC69)^2,"") -> 0.1114143685 | DC197: 0.1688000194 | DD197: 0.06601401336 | DE197: 0 | DT197: 0 | DU197: 0 | DV197: 0 | DW197: 0 | DX197: 0 | DY197: 0 | DZ197: 0 | EA197: 0 | EB197: 0 | EC197: 0 | ED197: 0 | EE197: 0 | EF197: 0 | EG197: 0 | EH197: 0 | EI197: 0 | EJ197: 0 | EK197: 0 | EL197: 0 | EM197: 0 | KK197: 10 | KL197: 16 | KM197: 141 | KN197: 7.953762393 | LI197: 10 | LJ197: 16 | LK197: 141
CW198: Brand | CX198: 6 | DA198: 0.00360080988 | DB198: =IFERROR((DB113-DC70)^2,"") -> 0.0189242513 | DC198: 0.05053011134 | DD198: 0.009046325894 | DE198: 0.1943798677 | DF198: 0 | DT198: 0 | DU198: 0 | DV198: 0 | DW198: 0 | DX198: 0 | DY198: 0 | DZ198: 0 | EA198: 0 | EB198: 0 | EC198: 0 | ED198: 0 | EE198: 0 | EF198: 0 | EG198: 0 | EH198: 0 | EI198: 0 | EJ198: 0 | EK198: 0 | EL198: 0 | EM198: 0 | KK198: 10 | KL198: 17 | KM198: 142 | KN198: 3.297492133 | LI198: 10 | LJ198: 17 | LK198: 142
CW199: Brand | CX199: 7 | DA199: 0.08676231042 | DB199: =IFERROR((DB114-DC71)^2,"") -> 0.1118516737 | DC199: 0.01100250496 | DE199: 0.06600893918 | DF199: 0.009044548067 | DG199: 0 | DT199: 0 | DU199: 0 | DV199: 0 | DW199: 0 | DX199: 0 | DY199: 0 | DZ199: 0 | EA199: 0 | EB199: 0 | EC199: 0 | ED199: 0 | EE199: 0 | EF199: 0 | EG199: 0 | EH199: 0 | EI199: 0 | EJ199: 0 | EK199: 0 | EL199: 0 | EM199: 0 | KK199: 10 | KL199: 18 | KM199: 143 | KN199: 3.297492133 | LI199: 10 | LJ199: 18 | LK199: 143
CW200: Brand | CX200: 8 | DA200: 0.0348727321 | DB200: =IFERROR((DB115-DC72)^2,"") -> 0.05870735351 | DC200: 0.05540543035 | DD200: 0.006507853216 | DE200: 0.0002370220695 | DF200: 0.01113523108 | DG200: 0.006509942451 | DH200: 0 | DT200: 0 | DU200: 0 | DV200: 0 | DW200: 0 | DX200: 0 | DY200: 0 | DZ200: 0 | EA200: 0 | EB200: 0 | EC200: 0 | ED200: 0 | EE200: 0 | EF200: 0 | EG200: 0 | EH200: 0 | EI200: 0 | EJ200: 0 | EK200: 0 | EL200: 0 | EM200: 0 | KK200: 10 | KL200: 19 | KM200: 144 | KN200: 5.808711092 | LI200: 10 | LJ200: 19 | LK200: 144
CW201: Brand | CX201: 9 | DA201: 0.08676787146 | DB201: =IFERROR((DB116-DC73)^2,"") -> 0.1118596715 | DC201: 0.01100396881 | DE201: 0.06601215606 | DF201: 0.009045608096 | DH201: 0.006508136355 | DI201: 0 | DT201: 0 | DU201: 0 | DV201: 0 | DW201: 0 | DX201: 0 | DY201: 0 | DZ201: 0 | EA201: 0 | EB201: 0 | EC201: 0 | ED201: 0 | EE201: 0 | EF201: 0 | EG201: 0 | EH201: 0 | EI201: 0 | EJ201: 0 | EK201: 0 | EL201: 0 | EM201: 0 | KK201: 10 | KL201: 20 | KM201: 145 | KN201: 1.676336753 | LI201: 10 | LJ201: 20 | LK201: 145
... 45 more rows
